﻿Body Name,Body,Service Division Label,Service Division Code,Organisational Unit,Expenditure Category,Expenditure Code,CIPFA detailed expediture type,CIPFA detailed expediture code,Narrative,Date,Transaction number,Net Amount,Capital and Revenue,Supplier Name,Supplier ID,,
Chorley Borough Council,http://statistics.data.gov.uk/id/local-authority/30UE,Capital,Capital,Commercial & Property,Consultants Fees,03025,Capital Expenditure,Capital,Carry out works to unit 7 @ MW extension canopy,25/06/2021,0158094,"£2,275.00",Capital,3DG Design Ltd,80861,,
Chorley Borough Council,http://statistics.data.gov.uk/id/local-authority/30UE,Capital,Capital,Commercial & Property,Other Capital Related Fees,03024,Capital Expenditure,Capital,"New Entrance Canopy. Site check measure. Produce concept designs in 3D, Planning Application, Detailed Drawings",30/06/2021,0158095,"£2,275.00",Capital,3DG Design Ltd,80861,,
Chorley Borough Council,http://statistics.data.gov.uk/id/local-authority/30UE,Democratic Represent and  Mgnt,1007,Communities,Miscellaneous Expenses,40200,Miscellaneous Expenses,5034,"Sander PC KA300, Roll of 60 grade sandpaper - 50m, Roll of 240 grade sandpaper - 50m, Wood filler",23/06/2021,0158066,£367.54,Revenue,Ace Decor Ltd,17182,,
Chorley Borough Council,http://statistics.data.gov.uk/id/local-authority/30UE,Democratic Represent and  Mgnt,1007,Communities,Miscellaneous Expenses,40200,Miscellaneous Expenses,5034,Cancelled by cred cn284174,23/06/2021,0158069,£367.54,Revenue,Ace Decor Ltd,17182,,
Chorley Borough Council,http://statistics.data.gov.uk/id/local-authority/30UE,Central Support Services,1009,Customer & Digital,Telephones - Other,40085,Communication and Computing,5028,Adept Telecoms -  April + May 2021,09/06/2021,0156965,"£1,609.64",Revenue,Adept Telecom PLC,77452,,
Chorley Borough Council,http://statistics.data.gov.uk/id/local-authority/30UE,Central Support Services,1009,Customer & Digital,Telephones - Other,40085,Communication and Computing,5028,Adept Telecoms -  April + May 2021,16/06/2021,0157356,"£1,609.64",Revenue,Adept Telecom PLC,77452,,
Chorley Borough Council,http://statistics.data.gov.uk/id/local-authority/30UE,Unapportionable Central OHeads,1009,Commercial & Property,General Repairs - Reactive,20004,Repairs Maintenance & Alts,5005,"STONE WALL REPAIR, CORNER OF BURY LANE AND PLEASANT VIEW IN WITHNELL",09/06/2021,0156478,£213.00,Revenue,Adlington Dry Stone Walling,63372,,
Chorley Borough Council,http://statistics.data.gov.uk/id/local-authority/30UE,Central Support Services,1009,Commercial & Property,General Repairs - Reactive,20004,Repairs Maintenance & Alts,5005,Materials,09/06/2021,0156478,£37.00,Revenue,Adlington Dry Stone Walling,63372,,
Chorley Borough Council,http://statistics.data.gov.uk/id/local-authority/30UE,Service Management & Support,1009,Customer & Digital,Supplies-Grounds Maintenance,40025,"Equipment, Furniture & Materia",5023,As per quotation from NAME REDACTED - 20213565 / 20.05.2021,02/06/2021,0156740,£423.44,Revenue,Aebi Schmidt UK Ltd,17287,,
Chorley Borough Council,http://statistics.data.gov.uk/id/local-authority/30UE,Unapportionable Central OHeads,1009,Customer & Digital,Bank Charges,40151,Miscellaneous Expenses,5034,Additional Account Fees,09/06/2021,0157057,£902.57,Revenue,Allpay Net Ltd,17242,,
Chorley Borough Council,http://statistics.data.gov.uk/id/local-authority/30UE,Central Support Services,1009,Communities,External Contractor,40198,Miscellaneous Expenses,5034,Pest Control Contract Payments,11/06/2021,0156757,"£1,580.30",Revenue,ALPHA PEST CONTROL LIMITED,18208,,
Chorley Borough Council,http://statistics.data.gov.uk/id/local-authority/30UE,Central Support Services,1009,Communities,External Contractor,40198,Miscellaneous Expenses,5034,Pest Control External Contractor Costs,02/06/2021,0156936,"£2,103.57",Revenue,ALPHA PEST CONTROL LIMITED,18208,,
Chorley Borough Council,http://statistics.data.gov.uk/id/local-authority/30UE,Central Support Services,1009,Communities,External Contractor,40198,Miscellaneous Expenses,5034,Pest Control External Contractor Costs,04/06/2021,0156959,"£1,262.27",Revenue,ALPHA PEST CONTROL LIMITED,18208,,
Chorley Borough Council,http://statistics.data.gov.uk/id/local-authority/30UE,Central Support Services,1009,Communities,External Contractor,40198,Miscellaneous Expenses,5034,Pest Control External Contractor Costs,11/06/2021,0157107,"£2,977.66",Revenue,ALPHA PEST CONTROL LIMITED,18208,,
Chorley Borough Council,http://statistics.data.gov.uk/id/local-authority/30UE,Central Support Services,1009,Communities,External Contractor,40198,Miscellaneous Expenses,5034,Pest Control External Contractor Costs,30/06/2021,0158006,"£1,542.80",Revenue,ALPHA PEST CONTROL LIMITED,18208,,
Chorley Borough Council,http://statistics.data.gov.uk/id/local-authority/30UE,Central Support Services,1009,Communities,External Contractor,40198,Miscellaneous Expenses,5034,Pest Control External Contractor Costs,30/06/2021,0158073,"£2,360.54",Revenue,ALPHA PEST CONTROL LIMITED,18208,,
Chorley Borough Council,http://statistics.data.gov.uk/id/local-authority/30UE,Central Support Services,1009,Communities,External Contractor,40198,Miscellaneous Expenses,5034,Pest Control External Contractor Costs,30/06/2021,0158161,"£1,242.36",Revenue,ALPHA PEST CONTROL LIMITED,18208,,
Chorley Borough Council,http://statistics.data.gov.uk/id/local-authority/30UE,Central Support Services,1009,Communities,External Contractor,40198,Miscellaneous Expenses,5034,Pest Control External Contractor Costs,30/06/2021,0158183,"£2,503.69",Revenue,ALPHA PEST CONTROL LIMITED,18208,,
Chorley Borough Council,http://statistics.data.gov.uk/id/local-authority/30UE,Central Support Services,1009,Communities,External Contractor,40198,Miscellaneous Expenses,5034,Pest Control External Contractor Costs,30/06/2021,0158228,"£1,366.18",Revenue,ALPHA PEST CONTROL LIMITED,18208,,
Chorley Borough Council,http://statistics.data.gov.uk/id/local-authority/30UE,Corporate Management,1008,Policy & Governance,Car Leasing Payment,14100,Direct Employee Expenses,5001,REDACTED,02/06/2021,0156951,£355.50,Revenue,Alphabet (Uk) Fleet Management Ltd,16651,,
Chorley Borough Council,http://statistics.data.gov.uk/id/local-authority/30UE,Corporate Management,1008,Policy & Governance,Car Leasing Payment,14100,Direct Employee Expenses,5001,VAT,02/06/2021,0156951,£31.50,Revenue,Alphabet (Uk) Fleet Management Ltd,16651,,
Chorley Borough Council,http://statistics.data.gov.uk/id/local-authority/30UE,Control Accounts,Control,Policy & Governance,Manual Control Account,00001,Balance Sheet,Balance,- VAT,02/06/2021,0156951,-£31.50,Revenue,Alphabet (Uk) Fleet Management Ltd,16651,,
Chorley Borough Council,http://statistics.data.gov.uk/id/local-authority/30UE,Development Control,1091,Policy & Governance,Car Leasing Payment,14100,Direct Employee Expenses,5001,REDACTED,02/06/2021,0156951,£242.70,Revenue,Alphabet (Uk) Fleet Management Ltd,16651,,
Chorley Borough Council,http://statistics.data.gov.uk/id/local-authority/30UE,Development Control,1091,Policy & Governance,Car Leasing Payment,14100,Direct Employee Expenses,5001,VAT,02/06/2021,0156951,£20.65,Revenue,Alphabet (Uk) Fleet Management Ltd,16651,,
Chorley Borough Council,http://statistics.data.gov.uk/id/local-authority/30UE,Control Accounts,Control,Policy & Governance,Manual Control Account,00001,Balance Sheet,Balance,- VAT,02/06/2021,0156951,-£20.65,Revenue,Alphabet (Uk) Fleet Management Ltd,16651,,
Chorley Borough Council,http://statistics.data.gov.uk/id/local-authority/30UE,Unapportionable Central OHeads,1009,Commercial & Property,General Repairs - Reactive,20004,Repairs Maintenance & Alts,5005,"Primrose Gardens, access Control system issues, 24v inline dc psu x 1",23/06/2021,0157959,"£1,717.64",Revenue,Amalgamated Ltd,78289,,
Chorley Borough Council,http://statistics.data.gov.uk/id/local-authority/30UE,Central Support Services,1009,Communities,Impounded Dogs Costs,40207,Miscellaneous Expenses,5034,Kennelling retainer fee,16/06/2021,0157352,£320.00,Revenue,Animal Wardens Ltd,80965,,
Chorley Borough Council,http://statistics.data.gov.uk/id/local-authority/30UE,Corporate Management,1008,Chief Executive,Employee Related Insurance,18003,Indirect Employee Expenses,5002,"Risk Management Fee - Premium over payment - Balance due £2,500.00, Credit applied -£1,055.65, Amount due - 1,444.35",23/06/2021,0156317,"£2,500.00",Revenue,Aon UK Limited Accounts Division,76559,,
Chorley Borough Council,http://statistics.data.gov.uk/id/local-authority/30UE,Corporate Management,1008,Chief Executive,Employee Related Insurance,18003,Indirect Employee Expenses,5002,CREDIT APPLIED,23/06/2021,0156317,"-£1,055.65",Revenue,Aon UK Limited Accounts Division,76559,,
Chorley Borough Council,http://statistics.data.gov.uk/id/local-authority/30UE,Central Support Services,1009,Policy & Governance,Car Leasing Payment,14100,Direct Employee Expenses,5001,VIN REDACTED,02/06/2021,0156952,"£2,976.48",Revenue,Arnold Clark Finance Ltd,20685,,
Chorley Borough Council,http://statistics.data.gov.uk/id/local-authority/30UE,Central Support Services,1009,Policy & Governance,Car Leasing Payment,14100,Direct Employee Expenses,5001,vat,02/06/2021,0156952,£265.67,Revenue,Arnold Clark Finance Ltd,20685,,
Chorley Borough Council,http://statistics.data.gov.uk/id/local-authority/30UE,Control Accounts,Control,Policy & Governance,Manual Control Account,00001,Balance Sheet,Balance,-vat,02/06/2021,0156952,-£265.67,Revenue,Arnold Clark Finance Ltd,20685,,
Chorley Borough Council,http://statistics.data.gov.uk/id/local-authority/30UE,Development Control,1091,Policy & Governance,Car Leasing Payment,14100,Direct Employee Expenses,5001,VIN REDACTED,02/06/2021,0156953,£328.88,Revenue,Arnold Clark Finance Ltd,20685,,
Chorley Borough Council,http://statistics.data.gov.uk/id/local-authority/30UE,Development Control,1091,Policy & Governance,Car Leasing Payment,14100,Direct Employee Expenses,5001,vat,02/06/2021,0156953,£25.64,Revenue,Arnold Clark Finance Ltd,20685,,
Chorley Borough Council,http://statistics.data.gov.uk/id/local-authority/30UE,Development Control,1091,Policy & Governance,Car Leasing Payment,14100,Direct Employee Expenses,5001,-vat,02/06/2021,0156953,-£25.64,Revenue,Arnold Clark Finance Ltd,20685,,
Chorley Borough Council,http://statistics.data.gov.uk/id/local-authority/30UE,Service Management & Support,1009,Customer & Digital,Vehicles and Plant Maintenance,30045,Direct Transport Costs,5016,"FL66 OWC, Rear brake discs and pads, N/S/R Brake caliper",11/06/2021,0157137,£376.20,Revenue,Autofit,78140,,
Chorley Borough Council,http://statistics.data.gov.uk/id/local-authority/30UE,Service Management & Support,1009,Customer & Digital,Hire Of Vehicles and Plant,30028,Contrct Hire & Operating Lease,5018,ITT Invitation to Tender for contract hire with servicing and maintenance of Grounds Maintenance Machinery,04/06/2021,0155097,"£1,242.40",Revenue,Balmers Garden Machinery,17075,,
Chorley Borough Council,http://statistics.data.gov.uk/id/local-authority/30UE,Control Accounts,Control,Policy & Governance,General Balances,00100,Balance Sheet,Balance,28 march 21,02/06/2021,0155168,"£3,383.72",Revenue,Barclaycard Commercial,59848,,
Chorley Borough Council,http://statistics.data.gov.uk/id/local-authority/30UE,Control Accounts,Control,Policy & Governance,General Balances,00100,Balance Sheet,Balance,28 May 21,28/06/2021,0158143,"£3,583.12",Revenue,Barclaycard Commercial,59848,,
Chorley Borough Council,http://statistics.data.gov.uk/id/local-authority/30UE,Control Accounts,Control,Policy & Governance,General Balances,00100,Balance Sheet,Balance,28 April 21,28/06/2021,0158144,"£7,497.64",Revenue,Barclaycard Commercial,59848,,
Chorley Borough Council,http://statistics.data.gov.uk/id/local-authority/30UE,Corporate Management,1008,Policy & Governance,Bank Charges,40151,Miscellaneous Expenses,5034,31 jan 2021,02/06/2021,0155548,£15.00,Revenue,Barclaycard Merchant Services,61601,,
Chorley Borough Council,http://statistics.data.gov.uk/id/local-authority/30UE,Corporate Management,1008,Policy & Governance,Bank Charges,40151,Miscellaneous Expenses,5034,exempt,02/06/2021,0155548,"£2,345.16",Revenue,Barclaycard Merchant Services,61601,,
Chorley Borough Council,http://statistics.data.gov.uk/id/local-authority/30UE,Corporate Management,1008,Policy & Governance,Bank Charges,40151,Miscellaneous Expenses,5034,"Monthly, transaction and activity based charges",02/06/2021,0155595,£15.00,Revenue,Barclaycard Merchant Services,61601,,
Chorley Borough Council,http://statistics.data.gov.uk/id/local-authority/30UE,Corporate Management,1008,Policy & Governance,Bank Charges,40151,Miscellaneous Expenses,5034,"Monthly, transaction and activity based charges",02/06/2021,0155595,"£2,607.87",Revenue,Barclaycard Merchant Services,61601,,
Chorley Borough Council,http://statistics.data.gov.uk/id/local-authority/30UE,Corporate Management,1008,Policy & Governance,Bank Charges,40151,Miscellaneous Expenses,5034,March 21,02/06/2021,0155596,£15.00,Revenue,Barclaycard Merchant Services,61601,,
Chorley Borough Council,http://statistics.data.gov.uk/id/local-authority/30UE,Corporate Management,1008,Policy & Governance,Bank Charges,40151,Miscellaneous Expenses,5034,March 21,02/06/2021,0155596,"£1,571.20",Revenue,Barclaycard Merchant Services,61601,,
Chorley Borough Council,http://statistics.data.gov.uk/id/local-authority/30UE,Corporate Management,1008,Policy & Governance,Bank Charges,40151,Miscellaneous Expenses,5034,March 21,02/06/2021,0155597,£15.00,Revenue,Barclaycard Merchant Services,61601,,
Chorley Borough Council,http://statistics.data.gov.uk/id/local-authority/30UE,Corporate Management,1008,Policy & Governance,Bank Charges,40151,Miscellaneous Expenses,5034,March 21,02/06/2021,0155597,£669.91,Revenue,Barclaycard Merchant Services,61601,,
Chorley Borough Council,http://statistics.data.gov.uk/id/local-authority/30UE,Corporate Management,1008,Policy & Governance,Bank Charges,40151,Miscellaneous Expenses,5034,30 April 2021,02/06/2021,0156389,£15.00,Revenue,Barclaycard Merchant Services,61601,,
Chorley Borough Council,http://statistics.data.gov.uk/id/local-authority/30UE,Corporate Management,1008,Policy & Governance,Bank Charges,40151,Miscellaneous Expenses,5034,30 April 2021,02/06/2021,0156389,"£3,577.70",Revenue,Barclaycard Merchant Services,61601,,
Chorley Borough Council,http://statistics.data.gov.uk/id/local-authority/30UE,Corporate Management,1008,Policy & Governance,Bank Charges,40151,Miscellaneous Expenses,5034,30 April 2021,02/06/2021,0156390,£15.00,Revenue,Barclaycard Merchant Services,61601,,
Chorley Borough Council,http://statistics.data.gov.uk/id/local-authority/30UE,Corporate Management,1008,Policy & Governance,Bank Charges,40151,Miscellaneous Expenses,5034,30 April 2021,02/06/2021,0156390,"£1,748.33",Revenue,Barclaycard Merchant Services,61601,,
Chorley Borough Council,http://statistics.data.gov.uk/id/local-authority/30UE,Corporate Management,1008,Policy & Governance,Bank Charges,40151,Miscellaneous Expenses,5034,30 April 2021,02/06/2021,0156391,£15.00,Revenue,Barclaycard Merchant Services,61601,,
Chorley Borough Council,http://statistics.data.gov.uk/id/local-authority/30UE,Corporate Management,1008,Policy & Governance,Bank Charges,40151,Miscellaneous Expenses,5034,30 April 2021,02/06/2021,0156391,£636.07,Revenue,Barclaycard Merchant Services,61601,,
Chorley Borough Council,http://statistics.data.gov.uk/id/local-authority/30UE,Corporate Management,1008,Policy & Governance,Bank Charges,40151,Miscellaneous Expenses,5034,31 Dec 2020,02/06/2021,0156693,£15.00,Revenue,Barclaycard Merchant Services,61601,,
Chorley Borough Council,http://statistics.data.gov.uk/id/local-authority/30UE,Corporate Management,1008,Policy & Governance,Bank Charges,40151,Miscellaneous Expenses,5034,31 Dec 2020,02/06/2021,0156693,"£2,107.29",Revenue,Barclaycard Merchant Services,61601,,
Chorley Borough Council,http://statistics.data.gov.uk/id/local-authority/30UE,Corporate Management,1008,Policy & Governance,Bank Charges,40151,Miscellaneous Expenses,5034,31 Dec 2020,02/06/2021,0156699,£15.00,Revenue,Barclaycard Merchant Services,61601,,
Chorley Borough Council,http://statistics.data.gov.uk/id/local-authority/30UE,Corporate Management,1008,Policy & Governance,Bank Charges,40151,Miscellaneous Expenses,5034,31 Dec 2020,02/06/2021,0156699,"£1,143.43",Revenue,Barclaycard Merchant Services,61601,,
Chorley Borough Council,http://statistics.data.gov.uk/id/local-authority/30UE,Corporate Management,1008,Policy & Governance,Bank Charges,40151,Miscellaneous Expenses,5034,31 Dec 2020,02/06/2021,0156700,£15.00,Revenue,Barclaycard Merchant Services,61601,,
Chorley Borough Council,http://statistics.data.gov.uk/id/local-authority/30UE,Corporate Management,1008,Policy & Governance,Bank Charges,40151,Miscellaneous Expenses,5034,31 Dec 2020,02/06/2021,0156700,£359.18,Revenue,Barclaycard Merchant Services,61601,,
Chorley Borough Council,http://statistics.data.gov.uk/id/local-authority/30UE,Corporate Management,1008,Policy & Governance,Bank Charges,40151,Miscellaneous Expenses,5034,31 Oct 2020,02/06/2021,0156702,£15.00,Revenue,Barclaycard Merchant Services,61601,,
Chorley Borough Council,http://statistics.data.gov.uk/id/local-authority/30UE,Corporate Management,1008,Policy & Governance,Bank Charges,40151,Miscellaneous Expenses,5034,31 Oct 2020,02/06/2021,0156702,"£1,238.88",Revenue,Barclaycard Merchant Services,61601,,
Chorley Borough Council,http://statistics.data.gov.uk/id/local-authority/30UE,Corporate Management,1008,Policy & Governance,Bank Charges,40151,Miscellaneous Expenses,5034,31 Oct 2020,02/06/2021,0156703,£15.00,Revenue,Barclaycard Merchant Services,61601,,
Chorley Borough Council,http://statistics.data.gov.uk/id/local-authority/30UE,Corporate Management,1008,Policy & Governance,Bank Charges,40151,Miscellaneous Expenses,5034,31 Oct 2020,02/06/2021,0156703,£445.45,Revenue,Barclaycard Merchant Services,61601,,
Chorley Borough Council,http://statistics.data.gov.uk/id/local-authority/30UE,Corporate Management,1008,Policy & Governance,Bank Charges,40151,Miscellaneous Expenses,5034,31 May 21,28/06/2021,0157413,£15.00,Revenue,Barclaycard Merchant Services,61601,,
Chorley Borough Council,http://statistics.data.gov.uk/id/local-authority/30UE,Corporate Management,1008,Policy & Governance,Bank Charges,40151,Miscellaneous Expenses,5034,31 May 21,28/06/2021,0157413,"£2,487.59",Revenue,Barclaycard Merchant Services,61601,,
Chorley Borough Council,http://statistics.data.gov.uk/id/local-authority/30UE,Corporate Management,1008,Policy & Governance,Bank Charges,40151,Miscellaneous Expenses,5034,31 May 21,28/06/2021,0157414,£15.00,Revenue,Barclaycard Merchant Services,61601,,
Chorley Borough Council,http://statistics.data.gov.uk/id/local-authority/30UE,Corporate Management,1008,Policy & Governance,Bank Charges,40151,Miscellaneous Expenses,5034,31 May 21,28/06/2021,0157414,"£1,318.46",Revenue,Barclaycard Merchant Services,61601,,
Chorley Borough Council,http://statistics.data.gov.uk/id/local-authority/30UE,Corporate Management,1008,Policy & Governance,Bank Charges,40151,Miscellaneous Expenses,5034,31 May 21,28/06/2021,0157415,£15.00,Revenue,Barclaycard Merchant Services,61601,,
Chorley Borough Council,http://statistics.data.gov.uk/id/local-authority/30UE,Corporate Management,1008,Policy & Governance,Bank Charges,40151,Miscellaneous Expenses,5034,31 May 21,28/06/2021,0157415,£482.79,Revenue,Barclaycard Merchant Services,61601,,
Chorley Borough Council,http://statistics.data.gov.uk/id/local-authority/30UE,Service Management & Support,1009,Customer & Digital,Supplies-Grounds Maintenance,40025,"Equipment, Furniture & Materia",5023,Supply 3 hitch locks for trailors,30/06/2021,0158110,£300.00,Revenue,Barlow Trailers Ltd,47717,,
Chorley Borough Council,http://statistics.data.gov.uk/id/local-authority/30UE,Business Support,1095,Commercial & Property,Grants To Other Organisations,40127,Grants and Subscriptions,5031,Grant-relocation of business,23/06/2021,0157418,"£3,000.00",Revenue,Bespoke Digital Agency Ltd,82022,,
Chorley Borough Council,http://statistics.data.gov.uk/id/local-authority/30UE,Central Support Services,1009,Policy & Governance,External Contractor,40198,Miscellaneous Expenses,5034,Ad hoc payroll charges for April 2021 - recall payment for NAME REDACTED,30/06/2021,0158182,£989.24,Revenue,Blackpool Borough Council,16518,,
Chorley Borough Council,http://statistics.data.gov.uk/id/local-authority/30UE,Unapportionable Central OHeads,1009,Policy & Governance,Mayors Medals,40029,"Equipment, Furniture & Materia",5023,Update to Mayor`s Honours Board - hand painted signwriting in 23.5ct gold leaf of additional name.,25/06/2021,0158122,£330.00,Revenue,Brian the Brush Ltd,60093,,
Chorley Borough Council,http://statistics.data.gov.uk/id/local-authority/30UE,Central Support Services,1009,Customer & Digital,Telephones - Rentals,40083,Communication and Computing,5028,Annual rental,16/06/2021,0157410,"£2,298.98",Revenue,BT Redcare,21115,,
Chorley Borough Council,http://statistics.data.gov.uk/id/local-authority/30UE,Capital,Capital,Commercial & Property,Main Contractor,03007,Capital Expenditure,Capital,Astley Hall Renovation / Conservation Project,16/06/2021,0157236,"£91,731.31",Capital,Bullen Conservation Ltd,68424,,
Chorley Borough Council,http://statistics.data.gov.uk/id/local-authority/30UE,Corporate Management,1008,Chief Executive,External Audit,40064,Services,5027,National Fraud Initiative Fees 2020/21,11/06/2021,0153432,"£2,450.00",Revenue,Cabinet Office - SSCL Accounts Receivable,76360,,
Chorley Borough Council,http://statistics.data.gov.uk/id/local-authority/30UE,Service Management & Support,1009,Customer & Digital,Gas,20014,Energy Costs,5006,Astley Hall Park Pavillion,30/06/2021,0158203,£819.00,Revenue,Calor Gas Limited,22104,,
Chorley Borough Council,http://statistics.data.gov.uk/id/local-authority/30UE,Corporate Management,1008,Policy & Governance,Agency Staff,13000,Direct Employee Expenses,5001,Covid Grants agency staff - NAME REDACTED,30/06/2021,0156879,£624.00,Revenue,Castlefield Recruitment Limited,80454,,
Chorley Borough Council,http://statistics.data.gov.uk/id/local-authority/30UE,Central Support Services,1009,Policy & Governance,Agency Staff,13000,Direct Employee Expenses,5001,NAME REDACTED - 4 days per week x 8 weeks,02/06/2021,0156880,"£2,200.00",Revenue,Castlefield Recruitment Limited,80454,,
Chorley Borough Council,http://statistics.data.gov.uk/id/local-authority/30UE,Unapportionable Central OHeads,1009,Policy & Governance,Agency Staff,13000,Direct Employee Expenses,5001,NAME REDACTED - 4 days per week x 8 weeks,04/06/2021,0156937,"£2,200.00",Revenue,Castlefield Recruitment Limited,80454,,
Chorley Borough Council,http://statistics.data.gov.uk/id/local-authority/30UE,Corporate Management,1008,Policy & Governance,Agency Staff,13000,Direct Employee Expenses,5001,Temporary employment of NAME REDACTED,04/06/2021,0156938,£600.00,Revenue,Castlefield Recruitment Limited,80454,,
Chorley Borough Council,http://statistics.data.gov.uk/id/local-authority/30UE,Corporate Management,1008,Policy & Governance,Agency Staff,13000,Direct Employee Expenses,5001,Covid Grants agency staff - NAME REDACTED,30/06/2021,0156939,£620.00,Revenue,Castlefield Recruitment Limited,80454,,
Chorley Borough Council,http://statistics.data.gov.uk/id/local-authority/30UE,Central Support Services,1009,Policy & Governance,Agency Staff,13000,Direct Employee Expenses,5001,NAME REDACTED - 4 days per week x 8 weeks,09/06/2021,0157079,"£1,100.00",Revenue,Castlefield Recruitment Limited,80454,,
Chorley Borough Council,http://statistics.data.gov.uk/id/local-authority/30UE,Corporate Management,1008,Policy & Governance,Agency Staff,13000,Direct Employee Expenses,5001,Covid Grants agency staff - NAME REDACTED,30/06/2021,0157297,£496.00,Revenue,Castlefield Recruitment Limited,80454,,
Chorley Borough Council,http://statistics.data.gov.uk/id/local-authority/30UE,Unapportionable Central OHeads,1009,Policy & Governance,Agency Staff,13000,Direct Employee Expenses,5001,NAME REDACTED - 4 days per week x 8 weeks,16/06/2021,0157298,"£1,650.00",Revenue,Castlefield Recruitment Limited,80454,,
Chorley Borough Council,http://statistics.data.gov.uk/id/local-authority/30UE,Corporate Management,1008,Policy & Governance,Agency Staff,13000,Direct Employee Expenses,5001,Covid Grants agency staff - NAME REDACTED,30/06/2021,0158062,£620.00,Revenue,Castlefield Recruitment Limited,80454,,
Chorley Borough Council,http://statistics.data.gov.uk/id/local-authority/30UE,Central Support Services,1009,Policy & Governance,Agency Staff,13000,Direct Employee Expenses,5001,NAME REDACTED - 4 days per week x 8 weeks,23/06/2021,0158063,"£2,200.00",Revenue,Castlefield Recruitment Limited,80454,,
Chorley Borough Council,http://statistics.data.gov.uk/id/local-authority/30UE,Corporate Management,1008,Policy & Governance,Agency Staff,13000,Direct Employee Expenses,5001,NAME REDACTED to 30th June 2021,30/06/2021,0158192,"£1,925.00",Revenue,Castlefield Recruitment Limited,80454,,
Chorley Borough Council,http://statistics.data.gov.uk/id/local-authority/30UE,Corporate Management,1008,Policy & Governance,Agency Staff,13000,Direct Employee Expenses,5001,Covid Grants agency staff - NAME REDACTED,30/06/2021,0158193,£620.00,Revenue,Castlefield Recruitment Limited,80454,,
Chorley Borough Council,http://statistics.data.gov.uk/id/local-authority/30UE,Corporate Management,1008,Commercial & Property,Miscellaneous Expenses,40200,Miscellaneous Expenses,5034,Covid spraying of all buildings,30/06/2021,0158224,"£5,650.00",Revenue,Castus Solutions Limited,78812,,
Chorley Borough Council,http://statistics.data.gov.uk/id/local-authority/30UE,Parking Services,1066,Commercial & Property,External Contractors,50008,Private Contractors,5042,"MIPERMIT FEES, MIPERMIT CHARGE, ELECPAYBANKFEE",04/06/2021,0156333,£316.51,Revenue,Chipside Ltd,22063,,
Chorley Borough Council,http://statistics.data.gov.uk/id/local-authority/30UE,Parking Services,1066,Commercial & Property,External Contractors,50008,Private Contractors,5042,"Notice Processing Services, Automated Telephone and Internet Payments, Internet Evidence and Submission Services",04/06/2021,0156452,£264.81,Revenue,Chipside Ltd,22063,,
Chorley Borough Council,http://statistics.data.gov.uk/id/local-authority/30UE,Parking Services,1066,Commercial & Property,External Contractors,50008,Private Contractors,5042,"MIPERMIT FEES, MIPERMIT CHARGE, ELECPAYBANKFEE",04/06/2021,0156460,£333.64,Revenue,Chipside Ltd,22063,,
Chorley Borough Council,http://statistics.data.gov.uk/id/local-authority/30UE,Parking Services,1066,Commercial & Property,External Contractors,50008,Private Contractors,5042,"MIPERMIT FEES, MIPERMIT CHARGE, ELECPAYBANKFEE",04/06/2021,0156463,£283.31,Revenue,Chipside Ltd,22063,,
Chorley Borough Council,http://statistics.data.gov.uk/id/local-authority/30UE,Parking Services,1066,Commercial & Property,External Contractors,50008,Private Contractors,5042,"Notice Processing Services, Automated Telephone and Internet Payments, Internet Evidence and Submission Services",09/06/2021,0156617,£267.72,Revenue,Chipside Ltd,22063,,
Chorley Borough Council,http://statistics.data.gov.uk/id/local-authority/30UE,Parking Services,1066,Commercial & Property,External Contractors,50008,Private Contractors,5042,"MIPERMIT FEES, MIPERMIT CHARGE, ELECPAYBANKFEE",09/06/2021,0156617,£24.84,Revenue,Chipside Ltd,22063,,
Chorley Borough Council,http://statistics.data.gov.uk/id/local-authority/30UE,Parking Services,1066,Commercial & Property,Tools & Equipment - Purchase,40003,"Equipment, Furniture & Materia",5023,"Zebra Handhelds, TC57 x 2 @ £750 each, TC57 - Rugged Boot with Handstrap x 2 @ £40 each, OneCare - Essential",09/06/2021,0156895,£250.00,Revenue,Chipside Ltd,22063,,
Chorley Borough Council,http://statistics.data.gov.uk/id/local-authority/30UE,Parking Services,1066,Commercial & Property,Tools & Equipment - Purchase,40003,"Equipment, Furniture & Materia",5023,"Zebra Handhelds, TC57 x 2 @ £750 each, TC57 - Rugged Boot with Handstrap x 2 @ £40 each, OneCare - Essential",09/06/2021,0156896,"£3,241.00",Revenue,Chipside Ltd,22063,,
Chorley Borough Council,http://statistics.data.gov.uk/id/local-authority/30UE,Parking Services,1066,Commercial & Property,External Contractors,50008,Private Contractors,5042,"MIPERMIT FEES, MIPERMIT CHARGE, ELECPAYBANKFEE",18/06/2021,0157238,£353.55,Revenue,Chipside Ltd,22063,,
Chorley Borough Council,http://statistics.data.gov.uk/id/local-authority/30UE,Corporate Management,1008,Customer & Digital,Taxi Testing & Vehicle Safety Report,40234,Services,5027,mot,11/06/2021,0157200,"£1,151.85",Revenue,Chorley Autocare Ltd,17110,,
Chorley Borough Council,http://statistics.data.gov.uk/id/local-authority/30UE,Corporate Management,1008,Customer & Digital,Taxi Testing & Vehicle Safety Report,40234,Services,5027,taxi test,11/06/2021,0157200,£179.55,Revenue,Chorley Autocare Ltd,17110,,
Chorley Borough Council,http://statistics.data.gov.uk/id/local-authority/30UE,Elections,1012,Policy & Governance,Rent/Hire Of Premises,20017,Premises Rents,5007,room hire for polling station 6 May 2021,11/06/2021,0157280,£400.00,Revenue,Chorley Methodist Church,18422,,
Chorley Borough Council,http://statistics.data.gov.uk/id/local-authority/30UE,Central Support Services,1009,Commercial & Property,Miscellaneous Expenses,40200,Miscellaneous Expenses,5034,"Installation of 9 x frame fitted windows blinds, spring loaded operating mechanism in temporary Tatton units for duration of use",23/06/2021,0157365,£834.00,Revenue,Chorley Window Blinds,54011,,
Chorley Borough Council,http://statistics.data.gov.uk/id/local-authority/30UE,Central Support Services,1009,Communities,Children's Activities,40188,Miscellaneous Expenses,5034,"Lancashire Breaktime Respite Care by Inspire Youth Zone, February Term Time",23/06/2021,0158002,£973.50,Revenue,Chorley Youth Zone,77339,,
Chorley Borough Council,http://statistics.data.gov.uk/id/local-authority/30UE,Central Support Services,1009,Communities,Children's Activities,40188,Miscellaneous Expenses,5034,"Lancashire Breaktime Respite Care by Inspire Youth Zone, March 21 Term Time",23/06/2021,0158003,"£1,380.00",Revenue,Chorley Youth Zone,77339,,
Chorley Borough Council,http://statistics.data.gov.uk/id/local-authority/30UE,Central Support Services,1009,Communities,Children's Activities,40188,Miscellaneous Expenses,5034,Lancashire Breaktime Respite Care by Inspire Youth Zone,23/06/2021,0158004,"£1,320.00",Revenue,Chorley Youth Zone,77339,,
Chorley Borough Council,http://statistics.data.gov.uk/id/local-authority/30UE,Community Development,1097,Communities,Core Funding Grants,40133,Grants and Subscriptions,5031,Chorley`s contributions for 2021/22,23/06/2021,0158005,"£20,000.00",Revenue,Chorley Youth Zone,77339,,
Chorley Borough Council,http://statistics.data.gov.uk/id/local-authority/30UE,Unapportionable Central OHeads,1009,Policy & Governance,Exhibitions & Special Events,40158,Miscellaneous Expenses,5034,First Aid Cover at Corporate Events 2021,16/06/2021,0157389,£250.00,Revenue,Chorley`s Angels Community Group,63882,,
Chorley Borough Council,http://statistics.data.gov.uk/id/local-authority/30UE,Capital,Capital,Commercial & Property,Other Capital Related Fees,03024,Capital Expenditure,Capital,"As per quote reference 5765 please provide the following (7.5% discount applied to prices):
x6 Bmaxx 6x3m PVC Roof in new design @ £433.83 each",09/06/2021,0156882,"£2,602.98",Capital,City B Group Ltd,47300,,
Chorley Borough Council,http://statistics.data.gov.uk/id/local-authority/30UE,Capital,Capital,Commercial & Property,Other Capital Related Fees,03024,Capital Expenditure,Capital,x4 Bmaxx 3x3 PVC Roof in new design @ £248.83 each,09/06/2021,0156882,£995.32,Capital,City B Group Ltd,47300,,
Chorley Borough Council,http://statistics.data.gov.uk/id/local-authority/30UE,Capital,Capital,Commercial & Property,Other Capital Related Fees,03024,Capital Expenditure,Capital,x6 6x3m Frame Refurbishment @ £115.63 each,09/06/2021,0156882,£693.78,Capital,City B Group Ltd,47300,,
Chorley Borough Council,http://statistics.data.gov.uk/id/local-authority/30UE,Capital,Capital,Commercial & Property,Other Capital Related Fees,03024,Capital Expenditure,Capital,x4 3x3 Frame Refurbishment @ £60.13 each,09/06/2021,0156882,£240.52,Capital,City B Group Ltd,47300,,
Chorley Borough Council,http://statistics.data.gov.uk/id/local-authority/30UE,Capital,Capital,Commercial & Property,Other Capital Related Fees,03024,Capital Expenditure,Capital,x16 Roof Prints with the new design @ £69.38 each,09/06/2021,0156882,"£1,110.08",Capital,City B Group Ltd,47300,,
Chorley Borough Council,http://statistics.data.gov.uk/id/local-authority/30UE,Capital,Capital,Commercial & Property,Other Capital Related Fees,03024,Capital Expenditure,Capital,x6 4x2m Bmaxx PVC Roof and New Framework @ £763.13 each,09/06/2021,0156882,"£4,578.78",Capital,City B Group Ltd,47300,,
Chorley Borough Council,http://statistics.data.gov.uk/id/local-authority/30UE,Service Management & Support,1009,Customer & Digital,Supplies-Grounds Maintenance,40025,"Equipment, Furniture & Materia",5023,provide 2 operatives and MEWP to assist installation of hanging baskets and complete the survey of the play equipment,16/06/2021,0157191,"£1,200.00",Revenue,City Illuminations Ltd,77388,,
Chorley Borough Council,http://statistics.data.gov.uk/id/local-authority/30UE,Central Support Services,1009,Policy & Governance,Computer Software-Additional,40102,Communication and Computing,5028,"Changes to Accounts Payable Invoice authorisation Alerter emails, include Purchase Order and Invoice values",18/06/2021,0154100,"£4,770.00",Revenue,Civica UK Limited,17463,,
Chorley Borough Council,http://statistics.data.gov.uk/id/local-authority/30UE,Homelessness,1075,Communities,IT Software - Annual Licences,40101,Communication and Computing,5028,"Licence, Support & Maintenance for the period 01/07/2021 to 30/06/2022: SSL Security on test site for Chorley Council",11/06/2021,0157092,"£11,441.89",Revenue,Civica UK Limited,17463,,
Chorley Borough Council,http://statistics.data.gov.uk/id/local-authority/30UE,Democratic Represent and  Mgnt,1007,Communities,Supplies-Grounds Maintenance,40025,"Equipment, Furniture & Materia",5023,Resurfacing paths through Duxbury Woods to specification and plan provided. to start on site from the 19th April.,09/06/2021,0157066,"£14,984.45",Revenue,Conservation Contracts North West,20520,,
Chorley Borough Council,http://statistics.data.gov.uk/id/local-authority/30UE,Democratic Represent and  Mgnt,1007,Communities,Supplies-Grounds Maintenance,40025,"Equipment, Furniture & Materia",5023,"Duxbury Woods extra path works including materials, lab and, plant  due to the bad weather",09/06/2021,0157067,"£1,471.43",Revenue,Conservation Contracts North West,20520,,
Chorley Borough Council,http://statistics.data.gov.uk/id/local-authority/30UE,Unapportionable Central OHeads,1009,Commercial & Property,General Repairs - Reactive,20004,Repairs Maintenance & Alts,5005,Primrose Gardens  - reactive repair works,02/06/2021,0156760,£286.62,Revenue,Corlett Electrical Eng Co Ltd,16271,,
Chorley Borough Council,http://statistics.data.gov.uk/id/local-authority/30UE,Central Support Services,1009,Commercial & Property,General Repairs - Reactive,20004,Repairs Maintenance & Alts,5005,"Unit 17 Chorley North, Install new distribution board as old one was broken and repair any faults",09/06/2021,0157016,"£1,271.79",Revenue,Corlett Electrical Eng Co Ltd,16271,,
Chorley Borough Council,http://statistics.data.gov.uk/id/local-authority/30UE,Community Development,1097,Commercial & Property,General Repairs - Reactive,20004,Repairs Maintenance & Alts,5005,35-39 Market St  (CAB / MP) - reactive repair works,23/06/2021,0157307,£558.05,Revenue,Corlett Electrical Eng Co Ltd,16271,,
Chorley Borough Council,http://statistics.data.gov.uk/id/local-authority/30UE,Business Support,1095,Commercial & Property,General Repairs - Reactive,20004,Repairs Maintenance & Alts,5005,Strawberry Fields  - reactive repair works,23/06/2021,0157367,£315.45,Revenue,Corlett Electrical Eng Co Ltd,16271,,
Chorley Borough Council,http://statistics.data.gov.uk/id/local-authority/30UE,Elections,1012,Policy & Governance,Rent/Hire Of Premises,20017,Premises Rents,5007,Works to be carried out on 5th May 2021 at Spring Meadow Community Centre,30/06/2021,0158194,£260.50,Revenue,Corlett Electrical Eng Co Ltd,16271,,
Chorley Borough Council,http://statistics.data.gov.uk/id/local-authority/30UE,Unapportionable Central OHeads,1009,Commercial & Property,Planned Maintenance,20006,Repairs Maintenance & Alts,5005,"Unit 13 Chorley North, Please carry out the lighting and distribution board works as discussed",30/06/2021,0158309,"£1,895.00",Revenue,Corlett Electrical Eng Co Ltd,16271,,
Chorley Borough Council,http://statistics.data.gov.uk/id/local-authority/30UE,Unapportionable Central OHeads,1009,Commercial & Property,Gas,20014,Energy Costs,5006,Sep-20 Oct-20,23/06/2021,0158018,£495.81,Revenue,Corona Energy Retail 2 Ltd,67249,,
Chorley Borough Council,http://statistics.data.gov.uk/id/local-authority/30UE,Democratic Represent and  Mgnt,1007,Commercial & Property,Gas,20014,Energy Costs,5006,Sep-20 Oct-20,23/06/2021,0158021,£543.29,Revenue,Corona Energy Retail 2 Ltd,67249,,
Chorley Borough Council,http://statistics.data.gov.uk/id/local-authority/30UE,Unapportionable Central OHeads,1009,Commercial & Property,Gas,20014,Energy Costs,5006,Aug-20 Sep-20,23/06/2021,0158025,£445.46,Revenue,Corona Energy Retail 2 Ltd,67249,,
Chorley Borough Council,http://statistics.data.gov.uk/id/local-authority/30UE,Democratic Represent and  Mgnt,1007,Commercial & Property,Gas,20014,Energy Costs,5006,Jul-20 Aug-20,23/06/2021,0158026,£452.96,Revenue,Corona Energy Retail 2 Ltd,67249,,
Chorley Borough Council,http://statistics.data.gov.uk/id/local-authority/30UE,Unapportionable Central OHeads,1009,Commercial & Property,Gas,20014,Energy Costs,5006,Jun-20 Jul-20,23/06/2021,0158034,£290.24,Revenue,Corona Energy Retail 2 Ltd,67249,,
Chorley Borough Council,http://statistics.data.gov.uk/id/local-authority/30UE,Democratic Represent and  Mgnt,1007,Commercial & Property,Gas,20014,Energy Costs,5006,Jun-20 Jul-20,23/06/2021,0158036,£402.38,Revenue,Corona Energy Retail 2 Ltd,67249,,
Chorley Borough Council,http://statistics.data.gov.uk/id/local-authority/30UE,Homelessness,1075,Commercial & Property,Gas,20014,Energy Costs,5006,Jun-20 Jul-20,23/06/2021,0158037,£442.38,Revenue,Corona Energy Retail 2 Ltd,67249,,
Chorley Borough Council,http://statistics.data.gov.uk/id/local-authority/30UE,Homelessness,1075,Commercial & Property,Gas,20014,Energy Costs,5006,Sep-20 Oct-20,23/06/2021,0158041,£474.88,Revenue,Corona Energy Retail 2 Ltd,67249,,
Chorley Borough Council,http://statistics.data.gov.uk/id/local-authority/30UE,Democratic Represent and  Mgnt,1007,Commercial & Property,Gas,20014,Energy Costs,5006,Apr-21 May-21,23/06/2021,0158102,"£6,085.44",Revenue,Corona Energy Retail 2 Ltd,67249,,
Chorley Borough Council,http://statistics.data.gov.uk/id/local-authority/30UE,Democratic Represent and  Mgnt,1007,Commercial & Property,Gas,20014,Energy Costs,5006,Apr-21 May-21,23/06/2021,0158104,"£1,596.03",Revenue,Corona Energy Retail 2 Ltd,67249,,
Chorley Borough Council,http://statistics.data.gov.uk/id/local-authority/30UE,Democratic Represent and  Mgnt,1007,Commercial & Property,Gas,20014,Energy Costs,5006,Apr-21 May-21,23/06/2021,0158105,"£1,039.70",Revenue,Corona Energy Retail 2 Ltd,67249,,
Chorley Borough Council,http://statistics.data.gov.uk/id/local-authority/30UE,Business Support,1095,Commercial & Property,Gas,20014,Energy Costs,5006,Apr-21 May-21,23/06/2021,0158106,"£1,939.46",Revenue,Corona Energy Retail 2 Ltd,67249,,
Chorley Borough Council,http://statistics.data.gov.uk/id/local-authority/30UE,Corporate Management,1008,Customer & Digital,Items For Resale,40027,"Equipment, Furniture & Materia",5023,"240L wheeled bins   Colour =GREY, unbranded.   Unit price £17:79",30/06/2021,0158211,"£2,312.70",Revenue,Craemer UK Ltd,64712,,
Chorley Borough Council,http://statistics.data.gov.uk/id/local-authority/30UE,Unapportionable Central OHeads,1009,Policy & Governance,Publications,40054,"Printing, Stationery & General",5026,VAT Standard - Croner Apr 21- Mar 22,04/06/2021,0156930,£456.19,Revenue,Croner - I Limited,77418,,
Chorley Borough Council,http://statistics.data.gov.uk/id/local-authority/30UE,Service Management & Support,1009,Customer & Digital,Diesel/Derv,30007,Direct Transport Costs,5016,"Fuel procured via the chest on 04/06/21, 7000litres of road diesel, 1700litres of gas oil",16/06/2021,0157214,"£7,353.50",Revenue,Crown Oil Ltd,16739,,
Chorley Borough Council,http://statistics.data.gov.uk/id/local-authority/30UE,Service Management & Support,1009,Customer & Digital,Diesel/Derv,30007,Direct Transport Costs,5016,"Fuel procured via the chest on 04/06/21, 7000litres of road diesel, 1700litres of gas oil",16/06/2021,0157225,£985.83,Revenue,Crown Oil Ltd,16739,,
Chorley Borough Council,http://statistics.data.gov.uk/id/local-authority/30UE,Elections,1012,Policy & Governance,Computer Software-Maintenance,40107,Communication and Computing,5028,"Support contract for two fujitsu scanners 1 April 2021, Fujitsu fi-6770  £276.00, Fujitsu fi-6670 £398.00",30/06/2021,0154216,£674.00,Revenue,CSG Limited,65095,,
Chorley Borough Council,http://statistics.data.gov.uk/id/local-authority/30UE,Central Support Services,1009,Commercial & Property,Professional Fees,40063,Services,5027,"Alker Lane cycleway Design, including: Detailed drawing showing proposed cycle route, Construction build up details",02/06/2021,0155083,"£5,000.00",Revenue,Curtins Consulting Limited,20049,,
Chorley Borough Council,http://statistics.data.gov.uk/id/local-authority/30UE,Central Support Services,1009,Commercial & Property,Professional Fees,40063,Services,5027,"Technical drawings for the S278 works. Detailed drawings for the upgrade of the 2 bus stops, Change in speed limit signs",02/06/2021,0156136,"£1,000.00",Revenue,Curtins Consulting Limited,20049,,
Chorley Borough Council,http://statistics.data.gov.uk/id/local-authority/30UE,Central Support Services,1009,Commercial & Property,Professional Fees,40063,Services,5027,"Alker Lane cycleway Design, including: Detailed drawing showing proposed cycle route, Construction build up details",02/06/2021,0156613,"£1,000.00",Revenue,Curtins Consulting Limited,20049,,
Chorley Borough Council,http://statistics.data.gov.uk/id/local-authority/30UE,Central Support Services,1009,Commercial & Property,Professional Fees,40063,Services,5027,"Technical drawings for the S278 works. Detailed drawings for the upgrade of the 2 bus stops, Change in speed limit signs",02/06/2021,0156613,£500.00,Revenue,Curtins Consulting Limited,20049,,
Chorley Borough Council,http://statistics.data.gov.uk/id/local-authority/30UE,Central Support Services,1009,Commercial & Property,Professional Fees,40063,Services,5027,Update flood risk assessment Alker Lane,02/06/2021,0156794,£500.00,Revenue,Curtins Consulting Limited,20049,,
Chorley Borough Council,http://statistics.data.gov.uk/id/local-authority/30UE,Central Support Services,1009,Commercial & Property,Professional Fees,40063,Services,5027,Further transport assessment Alker Lane,09/06/2021,0156929,£500.00,Revenue,Curtins Consulting Limited,20049,,
Chorley Borough Council,http://statistics.data.gov.uk/id/local-authority/30UE,Other Short Term Debtors,,Policy & Governance,Other Debtors,00098,Balance Sheet,Balance,Cycle Scheme for ZW,09/06/2021,0157131,£583.33,Revenue,Cyclescheme Ltd,78414,,
Chorley Borough Council,http://statistics.data.gov.uk/id/local-authority/30UE,Corporate Management,1008,Policy & Governance,Miscellaneous Expenses,40200,Miscellaneous Expenses,5034,Hire of 8 x portable hand wash stations @ £45 each per week from May 3rd - May 30th 2021. Invoice ref: 3133.,09/06/2021,0157144,"£1,440.00",Revenue,Cyril Unsworth Ltd,78887,,
Chorley Borough Council,http://statistics.data.gov.uk/id/local-authority/30UE,Capital,Capital,Communities,Grants,03002,Capital Expenditure,Capital,NAME REDACTED,09/06/2021,0157050,"£3,064.25",Capital,D J Bathing,78482,,
Chorley Borough Council,http://statistics.data.gov.uk/id/local-authority/30UE,Business Support,1095,Commercial & Property,Cleaning/Attendants' Services,20041,Cleaning and Domestic Supplies,5012,Cleaning service for week ending 23/05/21 NAME REDACTED 24.5 hours @ 13.55,04/06/2021,0156977,£331.98,Revenue,Daniel Adams Recruitment,78104,,
Chorley Borough Council,http://statistics.data.gov.uk/id/local-authority/30UE,Business Support,1095,Commercial & Property,Cleaning/Attendants' Services,20041,Cleaning and Domestic Supplies,5012,Cleaning services for week ending 30/05/21 NAME REDACTED x 20 hours @ 13.55,09/06/2021,0157098,£271.00,Revenue,Daniel Adams Recruitment,78104,,
Chorley Borough Council,http://statistics.data.gov.uk/id/local-authority/30UE,Business Support,1095,Commercial & Property,Cleaning/Attendants' Services,20041,Cleaning and Domestic Supplies,5012,Week Ending 16/05/2021 NAME REDACTED 20.00 Standard Rate @ 13.55,09/06/2021,0157183,£271.00,Revenue,Daniel Adams Recruitment,78104,,
Chorley Borough Council,http://statistics.data.gov.uk/id/local-authority/30UE,Business Support,1095,Commercial & Property,Cleaning/Attendants' Services,20041,Cleaning and Domestic Supplies,5012,Week Ending 13/06/2021 NAME REDACTED 20.00 Standard Rate @ 13.55,30/06/2021,0158281,£271.00,Revenue,Daniel Adams Recruitment,78104,,
Chorley Borough Council,http://statistics.data.gov.uk/id/local-authority/30UE,Business Support,1095,Commercial & Property,Cleaning/Attendants' Services,20041,Cleaning and Domestic Supplies,5012,"Per your invoice 653216, week ending 20/06/2021. 20 hours cleaning service NAME REDACTED @ 13.55",30/06/2021,0158282,£271.00,Revenue,Daniel Adams Recruitment,78104,,
Chorley Borough Council,http://statistics.data.gov.uk/id/local-authority/30UE,Capital,Capital,Policy & Governance,Main Contractor,03007,Capital Expenditure,Capital,acquisition of ADDRESS REDACTED,02/06/2021,0154989,"£160,000.00",Capital,NAME REDACTED,81957,,
Chorley Borough Council,http://statistics.data.gov.uk/id/local-authority/30UE,Development Control,1091,Communities,Legal Fees,40171,Miscellaneous Expenses,5034,Eaves Green Inquiry - brief to counsel 11/05/21 and refresher 12/05/21,04/06/2021,0156997,"£21,000.00",Revenue,David Forsdick,81904,,
Chorley Borough Council,http://statistics.data.gov.uk/id/local-authority/30UE,Corporate Management,1008,Commercial & Property,Tools & Equipment - Purchase,40003,"Equipment, Furniture & Materia",5023,"27 x PD605UNC 85176200, 7 x PD505UNC 85176200, 34 x CH10A07 85176200, 34 x PS1044 UK / EU Total £7057 + VAT",02/06/2021,0156244,"£7,057.00",Revenue,DCS 2 Way Radio Ltd,77666,,
Chorley Borough Council,http://statistics.data.gov.uk/id/local-authority/30UE,Democratic Represent and  Mgnt,1007,Communities,Computer Equipment-Purchase,40098,Communication and Computing,5028,"Legend Club - Leisure Centre Management, 3 year contract period, Year One total £38,739.00",23/06/2021,0154981,"£1,580.00",Revenue,Debit Finance Collections Plc T/A Legend Software,80920,,
Chorley Borough Council,http://statistics.data.gov.uk/id/local-authority/30UE,Democratic Represent and  Mgnt,1007,Communities,Computer Equipment-Purchase,40098,Communication and Computing,5028,"Legend Club - Leisure Centre Management, 3 year contract period, Year One total £38,739.00",23/06/2021,0156229,"£1,580.00",Revenue,Debit Finance Collections Plc T/A Legend Software,80920,,
Chorley Borough Council,http://statistics.data.gov.uk/id/local-authority/30UE,Democratic Represent and  Mgnt,1007,Communities,Computer Equipment-Purchase,40098,Communication and Computing,5028,"Legend Club - Leisure Centre Management, 3 year contract period, Year One total £38,739.00",23/06/2021,0157087,"£1,580.00",Revenue,Debit Finance Collections Plc T/A Legend Software,80920,,
Chorley Borough Council,http://statistics.data.gov.uk/id/local-authority/30UE,Building Control,1090,Customer & Digital,Agency Staff,13000,Direct Employee Expenses,5001,"Agency fees for NAME REDACTED Building Control Officer plus travel costs for invoices 0013658, 00137444 and 00137579",02/06/2021,0156860,"£1,368.85",Revenue,Deekay Technical Recruit Ltd,17160,,
Chorley Borough Council,http://statistics.data.gov.uk/id/local-authority/30UE,Building Control,1090,Customer & Digital,Agency Staff,13000,Direct Employee Expenses,5001,"Agency fees for NAME REDACTED Building Control Officer plus travel costs for invoices 0013658, 00137444 and 00137579",02/06/2021,0156865,"£1,378.30",Revenue,Deekay Technical Recruit Ltd,17160,,
Chorley Borough Council,http://statistics.data.gov.uk/id/local-authority/30UE,Building Control,1090,Customer & Digital,Agency Staff,13000,Direct Employee Expenses,5001,"Agency fees for NAME REDACTED Building Control Officer plus travel costs for invoices 0013658, 00137444 and 00137579",02/06/2021,0156866,"£1,379.20",Revenue,Deekay Technical Recruit Ltd,17160,,
Chorley Borough Council,http://statistics.data.gov.uk/id/local-authority/30UE,Building Control,1090,Customer & Digital,Agency Staff,13000,Direct Employee Expenses,5001,Agency Fees for NAME REDACTED Building Control Officer plus travel costs,09/06/2021,0156961,"£1,838.10",Revenue,Deekay Technical Recruit Ltd,17160,,
Chorley Borough Council,http://statistics.data.gov.uk/id/local-authority/30UE,Building Control,1090,Customer & Digital,Agency Staff,13000,Direct Employee Expenses,5001,Agency Fees for NAME REDACTED Building Control Officer plus travel costs,09/06/2021,0157012,"£1,883.55",Revenue,Deekay Technical Recruit Ltd,17160,,
Chorley Borough Council,http://statistics.data.gov.uk/id/local-authority/30UE,Building Control,1090,Customer & Digital,Agency Staff,13000,Direct Employee Expenses,5001,Agency Fees for NAME REDACTED Building Control Officer plus travel costs,09/06/2021,0157075,"£1,787.46",Revenue,Deekay Technical Recruit Ltd,17160,,
Chorley Borough Council,http://statistics.data.gov.uk/id/local-authority/30UE,Corporate Management,1008,Policy & Governance,Refunds,40220,Miscellaneous Expenses,5034,Business Grant Recovery 2020 BGR0053,30/06/2021,0158151,"£1,608,753.00",Revenue,Dept for Business Energy & Ind. Strategy (BEIS),82937,,
Chorley Borough Council,http://statistics.data.gov.uk/id/local-authority/30UE,Democratic Represent and  Mgnt,1007,Customer & Digital,Grounds Maintenance Contractor,20043,Grounds Maintenance Costs,5013,1 days work for man and machine at Blainscough nature reserve to scrape back the paths,09/06/2021,0157078,£250.00,Revenue,Derek R Smith,21092,,
Chorley Borough Council,http://statistics.data.gov.uk/id/local-authority/30UE,Central Support Services,1009,Customer & Digital,Mobile Voice and Data,40086,Communication and Computing,5028,03 Feb 2021,30/06/2021,0158204,"£2,837.63",Revenue,EE - Orange,16486,,
Chorley Borough Council,http://statistics.data.gov.uk/id/local-authority/30UE,Unapportionable Central OHeads,1009,Commercial & Property,General Repairs - Reactive,20004,Repairs Maintenance & Alts,5005,Community Centres  - reactive repair works,02/06/2021,0156807,£623.43,Revenue,EFT Construction,78195,,
Chorley Borough Council,http://statistics.data.gov.uk/id/local-authority/30UE,Central Support Services,1009,Commercial & Property,General Repairs - Reactive,20004,Repairs Maintenance & Alts,5005,Union St - reactive repair works,02/06/2021,0156833,£268.93,Revenue,EFT Construction,78195,,
Chorley Borough Council,http://statistics.data.gov.uk/id/local-authority/30UE,Unapportionable Central OHeads,1009,Commercial & Property,General Repairs - Reactive,20004,Repairs Maintenance & Alts,5005,car parks - reactive repair works,23/06/2021,0157273,£406.73,Revenue,EFT Construction,78195,,
Chorley Borough Council,http://statistics.data.gov.uk/id/local-authority/30UE,Business Support,1095,Commercial & Property,Planned Maintenance,20006,Repairs Maintenance & Alts,5005,Painting of canopy at market walk mgt suite,23/06/2021,0157323,"£2,123.00",Revenue,EFT Construction,78195,,
Chorley Borough Council,http://statistics.data.gov.uk/id/local-authority/30UE,Unapportionable Central OHeads,1009,Commercial & Property,General Repairs - Reactive,20004,Repairs Maintenance & Alts,5005,Garages - reactive repair works,30/06/2021,0158310,£291.63,Revenue,EFT Construction,78195,,
Chorley Borough Council,http://statistics.data.gov.uk/id/local-authority/30UE,Unapportionable Central OHeads,1009,Commercial & Property,General Repairs - Reactive,20004,Repairs Maintenance & Alts,5005,commercial properties - reactive repair works,30/06/2021,0158311,£734.89,Revenue,EFT Construction,78195,,
Chorley Borough Council,http://statistics.data.gov.uk/id/local-authority/30UE,Unapportionable Central OHeads,1009,Commercial & Property,General Repairs - Reactive,20004,Repairs Maintenance & Alts,5005,Cotswold House - reactive repair works,30/06/2021,0158312,£959.00,Revenue,EFT Construction,78195,,
Chorley Borough Council,http://statistics.data.gov.uk/id/local-authority/30UE,Unapportionable Central OHeads,1009,Commercial & Property,General Repairs - Reactive,20004,Repairs Maintenance & Alts,5005,Bengal St - reactive repair works,30/06/2021,0158313,£289.47,Revenue,EFT Construction,78195,,
Chorley Borough Council,http://statistics.data.gov.uk/id/local-authority/30UE,Business Support,1095,Commercial & Property,Internet Charges,40104,Communication and Computing,5028,"For all regular, monthly invoices to cover Operate Growth, Connect Growth and Public IP & Call Charges",04/06/2021,0156969,"£3,810.00",Revenue,Essensys Ltd,77836,,
Chorley Borough Council,http://statistics.data.gov.uk/id/local-authority/30UE,Business Support,1095,Commercial & Property,Internet Charges,40104,Communication and Computing,5028,"For all regular, monthly invoices to cover Operate Growth, Connect Growth and Public IP & Call Charges",04/06/2021,0156981,£257.62,Revenue,Essensys Ltd,77836,,
Chorley Borough Council,http://statistics.data.gov.uk/id/local-authority/30UE,Capital,Capital,Commercial & Property,Other Contractor,03012,Capital Expenditure,Capital,"48 port LAN switches, works including: Stacking Cables, Single-Mode Fibre Modules, UPS 2200 Rack mountable",30/06/2021,0158166,"£18,741.64",Capital,Essensys Ltd,77836,,
Chorley Borough Council,http://statistics.data.gov.uk/id/local-authority/30UE,Unapportionable Central OHeads,1009,Policy & Governance,Tools & Equipment - Purchase,40003,"Equipment, Furniture & Materia",5023,"2 x Fall Arrest Lanyards, 2 x Working at height helmets following Eurosafe PPE report notifying of expiry date of equipment",04/06/2021,0156972,£317.61,Revenue,Eurosafe Solutions Limited,66302,,
Chorley Borough Council,http://statistics.data.gov.uk/id/local-authority/30UE,Service Management & Support,1009,Customer & Digital,Supplies-Grounds Maintenance,40025,"Equipment, Furniture & Materia",5023,"3 Choisya ternata `Aztex Pearl`, 18 Mahonia aquifolium, 2 Pieris japonica forest flame, 9 Skimmia japonica `Rubella`",30/06/2021,0158207,£470.35,Revenue,Everglades Nurseries Ltd,20202,,
Chorley Borough Council,http://statistics.data.gov.uk/id/local-authority/30UE,Service Management & Support,1009,Customer & Digital,Vehicles and Plant Maintenance,30045,Direct Transport Costs,5016,"as per quotation Q13649, Inspection and Diagnosis @265.00 , Parts required to carry out repair inhouse @ 1649.36",30/06/2021,0158189,"£1,914.36",Revenue,F R Sharrock Ltd,18091,,
Chorley Borough Council,http://statistics.data.gov.uk/id/local-authority/30UE,Corporate Management,1008,Customer & Digital,Items For Resale,40027,"Equipment, Furniture & Materia",5023,"20 X 200m Standard Braked castor wheels, for 1100L bin. UNIT Price = £8:00",04/06/2021,0157080,£160.00,Revenue,Fairport Containers Ltd,17735,,
Chorley Borough Council,http://statistics.data.gov.uk/id/local-authority/30UE,Corporate Management,1008,Customer & Digital,Items For Resale,40027,"Equipment, Furniture & Materia",5023,"20 X 200m Standard swivel castor wheels, for 1100L bin. Unit Price = £8.00",04/06/2021,0157080,£160.00,Revenue,Fairport Containers Ltd,17735,,
Chorley Borough Council,http://statistics.data.gov.uk/id/local-authority/30UE,Corporate Management,1008,Customer & Digital,Items For Resale,40027,"Equipment, Furniture & Materia",5023,"10 X 200m Standard swivel castor wheels, for 660L bin. Unit Price = £8.00",04/06/2021,0157080,£80.00,Revenue,Fairport Containers Ltd,17735,,
Chorley Borough Council,http://statistics.data.gov.uk/id/local-authority/30UE,Corporate Management,1008,Customer & Digital,Items For Resale,40027,"Equipment, Furniture & Materia",5023,"10 X 200m Standard Braked castor wheels, for 660L bin. UNIT Price = £8.00",04/06/2021,0157080,£80.00,Revenue,Fairport Containers Ltd,17735,,
Chorley Borough Council,http://statistics.data.gov.uk/id/local-authority/30UE,Corporate Management,1008,Customer & Digital,Unitary Payment(S),50009,Private Contractors,5042,Provision of waste and recycling collection services 2021-2022,09/06/2021,0156857,"£186,160.36",Revenue,FCC Environment Services (UK) Limited,77903,,
Chorley Borough Council,http://statistics.data.gov.uk/id/local-authority/30UE,Corporate Management,1008,Customer & Digital,Unitary Payment(S),50009,Private Contractors,5042,Provision of waste and recycling collection services 2021-2022,25/06/2021,0158148,"£8,935.01",Revenue,FCC Environment Services (UK) Limited,77903,,
Chorley Borough Council,http://statistics.data.gov.uk/id/local-authority/30UE,Corporate Management,1008,Customer & Digital,Unitary Payment(S),50009,Private Contractors,5042,Provision of waste and recycling collection services 2021-2022,25/06/2021,0158159,"£190,333.31",Revenue,FCC Environment Services (UK) Limited,77903,,
Chorley Borough Council,http://statistics.data.gov.uk/id/local-authority/30UE,Tourism,1039,Policy & Governance,Supplies-Grounds Maintenance,40025,"Equipment, Furniture & Materia",5023,"2021 Chorley Flower Show Marquees, Event Date : 31 July 2021 - 01 - August - 2021",09/06/2021,0157182,"£38,542.72",Revenue,Field and Lawn Ltd,74977,,
Chorley Borough Council,http://statistics.data.gov.uk/id/local-authority/30UE,Democratic Represent and  Mgnt,1007,Communities,Miscellaneous Expenses,40200,Miscellaneous Expenses,5034,"Schools Programme Manager License, May 21 - April 2022",02/06/2021,0156932,£500.04,Revenue,Fitronics Ltd T/A Cap2 Solutions,80937,,
Chorley Borough Council,http://statistics.data.gov.uk/id/local-authority/30UE,Democratic Represent and  Mgnt,1007,Communities,Miscellaneous Expenses,40200,Miscellaneous Expenses,5034,"Schools Programme manager Set UP, Internal Ref TRP-21-006775",02/06/2021,0156933,£300.00,Revenue,Fitronics Ltd T/A Cap2 Solutions,80937,,
Chorley Borough Council,http://statistics.data.gov.uk/id/local-authority/30UE,Democratic Represent and  Mgnt,1007,Communities,Miscellaneous Expenses,40200,Miscellaneous Expenses,5034,"Course Pro up to 1500 Bookings, May 2021 - April 2022",02/06/2021,0156934,"£3,000.00",Revenue,Fitronics Ltd T/A Cap2 Solutions,80937,,
Chorley Borough Council,http://statistics.data.gov.uk/id/local-authority/30UE,Democratic Represent and  Mgnt,1007,Communities,Miscellaneous Expenses,40200,Miscellaneous Expenses,5034,"Schools Programme Manager License, May 21 - April 2022",02/06/2021,0156935,£500.04,Revenue,Fitronics Ltd T/A Cap2 Solutions,80937,,
Chorley Borough Council,http://statistics.data.gov.uk/id/local-authority/30UE,Parking Services,1066,Commercial & Property,Tools & Equipment - Purchase,40003,"Equipment, Furniture & Materia",5023,"Strada Download Customisation - update of Bank Holiday Dates for Flat Iron machines (2021-2025), Strada Download Copy x 3",16/06/2021,0157359,£295.00,Revenue,Flow Bird Smart City UK Ltd,16279,,
Chorley Borough Council,http://statistics.data.gov.uk/id/local-authority/30UE,Democratic Represent and  Mgnt,1007,Commercial & Property,Consultants` Fees,40077,Services,5027,"Management Options Appraisal for Chorley BC, Professional Fees",04/06/2021,0155030,"£2,500.00",Revenue,FMG Consulting Ltd,82051,,
Chorley Borough Council,http://statistics.data.gov.uk/id/local-authority/30UE,Corporate Management,1008,Policy & Governance,Professional Fees,40063,Services,5027,Professional Fees - Amendment of Shared Services Agreement between Chorley Borough Council and South Ribble Council,25/06/2021,0154317,"£2,070.00",Revenue,Forbes Solicitors,17527,,
Chorley Borough Council,http://statistics.data.gov.uk/id/local-authority/30UE,Homelessness,1075,Commercial & Property,Furniture - Purchase,40012,"Equipment, Furniture & Materia",5023,CH03K - Chester Gents Wardrobe Oak x 2  @ £215.25,04/06/2021,0156940,£430.50,Revenue,Furniture Resource Centre Ltd,22085,,
Chorley Borough Council,http://statistics.data.gov.uk/id/local-authority/30UE,Homelessness,1075,Commercial & Property,Furniture - Purchase,40012,"Equipment, Furniture & Materia",5023,374 Waterproof Mattress x 1 @ £114.69,04/06/2021,0156940,£114.69,Revenue,Furniture Resource Centre Ltd,22085,,
Chorley Borough Council,http://statistics.data.gov.uk/id/local-authority/30UE,Homelessness,1075,Commercial & Property,Furniture - Purchase,40012,"Equipment, Furniture & Materia",5023,629 Single bed base x 1 @ £76.21,04/06/2021,0156940,£76.21,Revenue,Furniture Resource Centre Ltd,22085,,
Chorley Borough Council,http://statistics.data.gov.uk/id/local-authority/30UE,Homelessness,1075,Commercial & Property,Furniture - Purchase,40012,"Equipment, Furniture & Materia",5023,CH09K Drawers x 1 @ £123.39,04/06/2021,0156940,£123.39,Revenue,Furniture Resource Centre Ltd,22085,,
Chorley Borough Council,http://statistics.data.gov.uk/id/local-authority/30UE,Democratic Represent and  Mgnt,1007,Policy & Governance,Tools & Equipment - Purchase,40003,"Equipment, Furniture & Materia",5023,"Delivery to Astley Hall, Museum & Art Gallery, Chorley, PR7 1XA. 1x Chair Sack Truck (90kg Capacity); part no 66416",11/06/2021,0157209,£263.00,Revenue,Furniture@Work Ltd,22138,,
Chorley Borough Council,http://statistics.data.gov.uk/id/local-authority/30UE,Unapportionable Central OHeads,1009,Commercial & Property,General Repairs - Reactive,20004,Repairs Maintenance & Alts,5005,"White Hart, Supply two scaffold towers to provide access to the two flat roof areas, Cordon off base using heras fencing",30/06/2021,0158322,"£1,100.00",Revenue,Gables UK Ltd,82246,,
Chorley Borough Council,http://statistics.data.gov.uk/id/local-authority/30UE,Democratic Represent and  Mgnt,1007,Commercial & Property,Tools & Equipment - Hire,40004,"Equipment, Furniture & Materia",5023,"All seasons hyproliser rental monthly fee 420.14, 12 months contract",09/06/2021,0156434,£420.14,Revenue,Gaffey Technical Services Ltd,18844,,
Chorley Borough Council,http://statistics.data.gov.uk/id/local-authority/30UE,Democratic Represent and  Mgnt,1007,Commercial & Property,Tools & Equipment - Hire,40004,"Equipment, Furniture & Materia",5023,"All seasons hyproliser rental monthly fee 420.14, 12 months contract",16/06/2021,0157241,£420.14,Revenue,Gaffey Technical Services Ltd,18844,,
Chorley Borough Council,http://statistics.data.gov.uk/id/local-authority/30UE,Democratic Represent and  Mgnt,1007,Customer & Digital,Playground Equipment,40008,"Equipment, Furniture & Materia",5023,"Birds Nest Seat Rosette, 5mm Coupling Link, Oilite Bushes (Wicksteed Type), Imperial, Oilite Bush (Record Type)",30/06/2021,0158196,£831.11,Revenue,GB Sport & Leisure,21305,,
Chorley Borough Council,http://statistics.data.gov.uk/id/local-authority/30UE,Service Management & Support,1009,Customer & Digital,Hire Of Vehicles and Plant,30028,Contrct Hire & Operating Lease,5018,3 Year Contract hire 1x Schmidt Swingo 200+ as per ITT including servicing and Maintenance,02/06/2021,0156782,"£2,019.85",Revenue,Go Plant Fleet Services Ltd,80857,,
Chorley Borough Council,http://statistics.data.gov.uk/id/local-authority/30UE,Service Management & Support,1009,Customer & Digital,Hire Of Vehicles and Plant,30028,Contrct Hire & Operating Lease,5018,3 Year Contract hire 1x Schmidt Swingo 200+ as per ITT including servicing and Maintenance,02/06/2021,0156783,"£2,019.85",Revenue,Go Plant Fleet Services Ltd,80857,,
Chorley Borough Council,http://statistics.data.gov.uk/id/local-authority/30UE,Service Management & Support,1009,Customer & Digital,Hire Of Vehicles and Plant,30028,Contrct Hire & Operating Lease,5018,3 Year Contract hire 1x Johnston CN101 as per ITT including servicing and Maintenance,02/06/2021,0156784,"£1,762.23",Revenue,Go Plant Fleet Services Ltd,80857,,
Chorley Borough Council,http://statistics.data.gov.uk/id/local-authority/30UE,Service Management & Support,1009,Customer & Digital,Hire Of Vehicles and Plant,30028,Contrct Hire & Operating Lease,5018,3 Year Contract Hire Chassis mounted sweeper as per ITT. Including servicing and Maintenance. to be paid monthly in arrears,02/06/2021,0156785,"£2,772.31",Revenue,Go Plant Fleet Services Ltd,80857,,
Chorley Borough Council,http://statistics.data.gov.uk/id/local-authority/30UE,Service Management & Support,1009,Customer & Digital,Supplies-Grounds Maintenance,40025,"Equipment, Furniture & Materia",5023,"Quantity x10, Schmidt Poly mixed wire brushes @ £43.25 each, Carriage charge £51.75",02/06/2021,0156859,£484.27,Revenue,Go Plant Fleet Services Ltd,80857,,
Chorley Borough Council,http://statistics.data.gov.uk/id/local-authority/30UE,Corporate Management,1008,Customer & Digital,Professional Fees,40063,Services,5027,2021-2022 Garden Waste Subscription payments,11/06/2021,0157220,£708.33,Revenue,GoCardless,77457,,
Chorley Borough Council,http://statistics.data.gov.uk/id/local-authority/30UE,Corporate Management,1008,Customer & Digital,Professional Fees,40063,Services,5027,2021-2022 Garden Waste Subscription payments,18/06/2021,0157346,£742.23,Revenue,GoCardless,77457,,
Chorley Borough Council,http://statistics.data.gov.uk/id/local-authority/30UE,Central Support Services,1009,Commercial & Property,Professional Fees,40063,Services,5027,"Topo survey  - Cowling Farm, Chorley",23/06/2021,0158076,£350.00,Revenue,Gosling Consulting Limited,78380,,
Chorley Borough Council,http://statistics.data.gov.uk/id/local-authority/30UE,Central Support Services,1009,Commercial & Property,Professional Fees,40063,Services,5027,Alker Lane Project Time May 2021 - 6.15 days at £325 per day,23/06/2021,0158080,"£1,998.75",Revenue,Gosling Consulting Limited,78380,,
Chorley Borough Council,http://statistics.data.gov.uk/id/local-authority/30UE,Central Support Services,1009,Commercial & Property,Professional Fees,40063,Services,5027,"Tatton Gardens / May 2021 , 2.35 days at £325 per day",23/06/2021,0158081,£763.75,Revenue,Gosling Consulting Limited,78380,,
Chorley Borough Council,http://statistics.data.gov.uk/id/local-authority/30UE,Capital,Capital,Commercial & Property,Other Capital Related Fees,03024,Capital Expenditure,Capital,Sustainable furniture samples for new seating area in market (Purchased by Gosling Consulting Services on our behalf),23/06/2021,0158084,£296.00,Capital,Gosling Consulting Limited,78380,,
Chorley Borough Council,http://statistics.data.gov.uk/id/local-authority/30UE,Capital,Capital,Commercial & Property,Other Capital Related Fees,03024,Capital Expenditure,Capital,"Power wash and colour wash panels on Chorley market, 3 days labour and colour wash",09/06/2021,0156347,£680.00,Capital,GPS Plastering,80998,,
Chorley Borough Council,http://statistics.data.gov.uk/id/local-authority/30UE,Central Support Services,1009,Customer & Digital,Vandalism Repairs,20005,Repairs Maintenance & Alts,5005,Graffiti removal contract December 2020 ongoing,09/06/2021,0156982,£300.00,Revenue,Graffiti Away Ltd,78340,,
Chorley Borough Council,http://statistics.data.gov.uk/id/local-authority/30UE,Central Support Services,1009,Customer & Digital,Vandalism Repairs,20005,Repairs Maintenance & Alts,5005,Graffiti Removal Contract June 2021 ongoing,30/06/2021,0157971,£610.00,Revenue,Graffiti Away Ltd,78340,,
Chorley Borough Council,http://statistics.data.gov.uk/id/local-authority/30UE,Corporate Management,1008,Policy & Governance,External Audit,40064,Services,5027,Chorley Council Main Audit Fee 2020-21,23/06/2021,0158097,"£8,711.50",Revenue,Grant Thornton UK LLP,57322,,
Chorley Borough Council,http://statistics.data.gov.uk/id/local-authority/30UE,Corporate Management,1008,Commercial & Property,Publicity - Advertising,40157,Miscellaneous Expenses,5034,"3 months social media April to June 2021, Total £1500",09/06/2021,0156983,£500.00,Revenue,Gravity,77837,,
Chorley Borough Council,http://statistics.data.gov.uk/id/local-authority/30UE,Corporate Management,1008,Policy & Governance,Miscellaneous Expenses,40200,Miscellaneous Expenses,5034,Hire of 8 mobile hand wash sinks from 1st to 31st May 2021. Contract 0023538.,04/06/2021,0156971,"£1,440.00",Revenue,Hallmark Catering,78575,,
Chorley Borough Council,http://statistics.data.gov.uk/id/local-authority/30UE,Corporate Management,1008,Policy & Governance,Miscellaneous Expenses,40200,Miscellaneous Expenses,5034,Hire of eight mobile hand wash sinks from 1st to 30 June 2021. Contract number: 023688,30/06/2021,0158293,"£1,440.00",Revenue,Hallmark Catering,78575,,
Chorley Borough Council,http://statistics.data.gov.uk/id/local-authority/30UE,Economic Development,1096,Commercial & Property,Fixtures & Fittings - Purchase,20027,Fixtures and Fittings,5010,37 x Flagpole White Dome Top 46mm White Push Fit Dome Top - Pole 46mm internal Diameter @ £7.00 + Vat each,16/06/2021,0157331,£271.50,Revenue,Hampshire Flag Company,22296,,
Chorley Borough Council,http://statistics.data.gov.uk/id/local-authority/30UE,Service Management & Support,1009,Customer & Digital,Supplies-Grounds Maintenance,40025,"Equipment, Furniture & Materia",5023,"As per quotation received from NAME REDACTED, PPRS2513 – Chorley Borough printed Sacks, Quantity 60k",09/06/2021,0157010,"£5,660.38",Revenue,Harrisons Packaging Ltd,17555,,
Chorley Borough Council,http://statistics.data.gov.uk/id/local-authority/30UE,Development Control,1091,Customer & Digital,General Subscriptions,40146,Grants and Subscriptions,5031,Renew Annual Subscription to DCP Online April 2021,30/06/2021,0158419,"£3,765.00",Revenue,Haymarket Publishing Services Ltd,16347,,
Chorley Borough Council,http://statistics.data.gov.uk/id/local-authority/30UE,Business Support,1095,Policy & Governance,Legal Fees,40171,Miscellaneous Expenses,5034,Legal fees in connection to the lease of Units 2 and 3 Market walk Extensions to Sports Direct Retail,11/06/2021,0157011,"£3,516.00",Revenue,Hill Dickinson LLP,62638,,
Chorley Borough Council,http://statistics.data.gov.uk/id/local-authority/30UE,Capital,Capital,Policy & Governance,Main Contractor,03007,Capital Expenditure,Capital,SDLT due on purchase,09/06/2021,0156912,"£4,800.00",Capital,HM Revenue & Customs,56499,,
Chorley Borough Council,http://statistics.data.gov.uk/id/local-authority/30UE,Community Development,1097,Policy & Governance,Core Funding Grants,40133,Grants and Subscriptions,5031,Extension to the annual commission for the provision of a children and families support service in Chorley,30/06/2021,0158213,"£3,666.66",Revenue,Home-Start Central Lancashire Ltd,20585,,
Chorley Borough Council,http://statistics.data.gov.uk/id/local-authority/30UE,Corporate Management,1008,Policy & Governance,Other Fees,40212,Miscellaneous Expenses,5034,Subsidy for the provision of a meals on wheels service in Chorley up to 23 May 2021,16/06/2021,0157210,"£2,122.52",Revenue,I Care GB Ltd,77247,,
Chorley Borough Council,http://statistics.data.gov.uk/id/local-authority/30UE,Corporate Management,1008,Policy & Governance,Other Fees,40212,Miscellaneous Expenses,5034,Subsidy for the provision of a meals on wheels service in Chorley up to 23/05/21,25/06/2021,0158164,"£1,983.71",Revenue,I Care GB Ltd,77247,,
Chorley Borough Council,http://statistics.data.gov.uk/id/local-authority/30UE,Democratic Represent and  Mgnt,1007,Communities,Miscellaneous Expenses,40200,Miscellaneous Expenses,5034,"Physio Control Lifepak CR+ Paediatric Defibrillation Electrodes, CHARGE-PAK Charging stick, 2 x Quickpak electrode pads",02/06/2021,0156651,£80.00,Revenue,Imperative Training Limited T/A Defibshop,78355,,
Chorley Borough Council,http://statistics.data.gov.uk/id/local-authority/30UE,Democratic Represent and  Mgnt,1007,Communities,Miscellaneous Expenses,40200,Miscellaneous Expenses,5034,"Physio Control Lifepak CR+ Paediatric Defibrillation Electrodes, CHARGE-PAK Charging stick, 2 x Quickpak electrode pads",02/06/2021,0156651,£157.00,Revenue,Imperative Training Limited T/A Defibshop,78355,,
Chorley Borough Council,http://statistics.data.gov.uk/id/local-authority/30UE,Democratic Represent and  Mgnt,1007,Communities,Miscellaneous Expenses,40200,Miscellaneous Expenses,5034,"Physio Control Lifepak CR+ Paediatric Defibrillation Electrodes, CHARGE-PAK Charging stick, 2 x Quickpak electrode pads",02/06/2021,0156651,£157.00,Revenue,Imperative Training Limited T/A Defibshop,78355,,
Chorley Borough Council,http://statistics.data.gov.uk/id/local-authority/30UE,Unapportionable Central OHeads,1009,Policy & Governance,Training Course Fees,17010,Indirect Employee Expenses,5002,Director Development Programme - 14 June - 189 June NAME REDACTED,09/06/2021,0156743,"£1,475.00",Revenue,In Professional Development,82306,,
Chorley Borough Council,http://statistics.data.gov.uk/id/local-authority/30UE,Central Support Services,1009,Policy & Governance,Training Course Fees,17010,Indirect Employee Expenses,5002,Director Development Programme - 14 June - 189 June NAME REDACTED,09/06/2021,0156743,"£1,475.00",Revenue,In Professional Development,82306,,
Chorley Borough Council,http://statistics.data.gov.uk/id/local-authority/30UE,Central Support Services,1009,Policy & Governance,Training Course Fees,17010,Indirect Employee Expenses,5002,Director Development Programme - 14 June - 189 June NAME REDACTED,09/06/2021,0156743,"£1,475.00",Revenue,In Professional Development,82306,,
Chorley Borough Council,http://statistics.data.gov.uk/id/local-authority/30UE,Central Support Services,1009,Customer & Digital,IT Software - Annual Licences,40101,Communication and Computing,5028,"21/22 renewal membership for Chorley Council is £ 2,260",11/06/2021,0157208,"£2,260.00",Revenue,iNetwork (Tameside Council),19554,,
Chorley Borough Council,http://statistics.data.gov.uk/id/local-authority/30UE,Capital,Capital,Commercial & Property,Main Contractor,03007,Capital Expenditure,Capital,"Market Street Redevelopment, Demolition of Former Buzz Bingo and Units 7 – 11",16/06/2021,0157196,"£57,627.40",Capital,Inglenorth (Contracting) Limited,81123,,
Chorley Borough Council,http://statistics.data.gov.uk/id/local-authority/30UE,Corporate Management,1008,Customer & Digital,Clinical Waste Collection,50007,Private Contractors,5042,Provision of service for the collection and disposal of Clinical Waste from domestic properties in the Chorley area,02/06/2021,0156750,"£1,089.84",Revenue,Initial,78488,,
Chorley Borough Council,http://statistics.data.gov.uk/id/local-authority/30UE,Control Accounts,Control,System,Manual Control Account,00001,Balance Sheet,Balance,,30/06/2021,0156372,"£2,621.53",Revenue,Inland Revenue,17445,,
Chorley Borough Council,http://statistics.data.gov.uk/id/local-authority/30UE,Control Accounts,Control,System,Manual Control Account,00001,Balance Sheet,Balance,,30/06/2021,0156634,"£1,740.00",Revenue,Inland Revenue,17445,,
Chorley Borough Council,http://statistics.data.gov.uk/id/local-authority/30UE,Control Accounts,Control,System,Manual Control Account,00001,Balance Sheet,Balance,,30/06/2021,0156774,£285.55,Revenue,Inland Revenue,17445,,
Chorley Borough Council,http://statistics.data.gov.uk/id/local-authority/30UE,Control Accounts,Control,System,Manual Control Account,00001,Balance Sheet,Balance,,30/06/2021,0156966,£409.60,Revenue,Inland Revenue,17445,,
Chorley Borough Council,http://statistics.data.gov.uk/id/local-authority/30UE,Control Accounts,Control,System,Manual Control Account,00001,Balance Sheet,Balance,,30/06/2021,0157089,"£1,170.21",Revenue,Inland Revenue,17445,,
Chorley Borough Council,http://statistics.data.gov.uk/id/local-authority/30UE,Control Accounts,Control,System,Manual Control Account,00001,Balance Sheet,Balance,,30/06/2021,0157994,£810.40,Revenue,Inland Revenue,17445,,
Chorley Borough Council,http://statistics.data.gov.uk/id/local-authority/30UE,Central Support Services,1009,Communities,Miscellaneous Expenses,40200,Miscellaneous Expenses,5034,BTEC Level 3 Certificate for Animal Inspectors (SRF) 6 x days training from 15th June 2021 (Group 5) for NAME REDACTED,04/06/2021,0156855,£950.00,Revenue,Institute Of Licensing,16987,,
Chorley Borough Council,http://statistics.data.gov.uk/id/local-authority/30UE,Democratic Represent and  Mgnt,1007,Communities,Miscellaneous Expenses,40200,Miscellaneous Expenses,5034,"Squash Racket x2, Squash Balls, Shuttlecocks, Pocket Mask x3, Disposable Masks x2, Blue Shoes x6, Telescopic Pole",09/06/2021,0157009,£269.03,Revenue,J P Lennard Limited,80934,,
Chorley Borough Council,http://statistics.data.gov.uk/id/local-authority/30UE,Community Development,1097,Commercial & Property,Rent/Hire Of Premises,20017,Premises Rents,5007,35-37 Market St Rent 12mths @ £7218.75 per quarter,16/06/2021,0157371,"£7,218.75",Revenue,J R Keys,17124,,
Chorley Borough Council,http://statistics.data.gov.uk/id/local-authority/30UE,Tourism,1039,Policy & Governance,Publicity - Advertising,40157,Miscellaneous Expenses,5034,"Description: A5 ad (The PR Pointer and The Handbook) – CFS – July issue Supplier: Jam Publications, Cost: £578+VAT",25/06/2021,0158150,£578.00,Revenue,Jam Design and Publications Ltd,76061,,
Chorley Borough Council,http://statistics.data.gov.uk/id/local-authority/30UE,Central Support Services,1009,Communities,Miscellaneous Expenses,40200,Miscellaneous Expenses,5034,"Work with the Chair of the DHR Panel:Overview Report, Action Plans, Executive Summary: Home Office QA Panel.",04/06/2021,0156868,£350.00,Revenue,John Doyle Projects,66412,,
Chorley Borough Council,http://statistics.data.gov.uk/id/local-authority/30UE,Capital,Capital,Policy & Governance,Main Contractor,03007,Capital Expenditure,Capital,ADDRESS REDACTED,02/06/2021,0154695,"£155,000.00",Capital,NAME REDACTED,81804,,
Chorley Borough Council,http://statistics.data.gov.uk/id/local-authority/30UE,Service Management & Support,1009,Customer & Digital,Supplies-Grounds Maintenance,40025,"Equipment, Furniture & Materia",5023,1 pallet ( 28 bags ) of postcrete,11/06/2021,0157154,£280.00,Revenue,John H Mayor & Sons Ltd,16635,,
Chorley Borough Council,http://statistics.data.gov.uk/id/local-authority/30UE,Development Control,1091,Customer & Digital,Statutory Notices,40160,Miscellaneous Expenses,5034,Planning Public Notices to appear in the Chorley Guardian April 2021 to March 2022,02/06/2021,0156692,£527.28,Revenue,JPI Media - Johnston Publishing Ltd,20072,,
Chorley Borough Council,http://statistics.data.gov.uk/id/local-authority/30UE,Central Support Services,1009,Commercial & Property,Professional Fees,40063,Services,5027,Security needs assessment.,16/06/2021,0156398,£900.00,Revenue,Kabsec Consultancy,80255,,
Chorley Borough Council,http://statistics.data.gov.uk/id/local-authority/30UE,Capital,Capital,Policy & Governance,Main Contractor,03007,Capital Expenditure,Capital,ADDRESS REDACTED,28/06/2021,0158152,"£160,000.00",Capital,NAME REDACTED,82928,,
Chorley Borough Council,http://statistics.data.gov.uk/id/local-authority/30UE,Homelessness,1075,Communities,External Contractor,40198,Miscellaneous Expenses,5034,"Provision of young people`s housing drop in and mediation service (9 hours weekly: Monday, Wednesday & Friday afternoons)",16/06/2021,0157332,"£3,750.00",Revenue,Key,61252,,
Chorley Borough Council,http://statistics.data.gov.uk/id/local-authority/30UE,Service Management & Support,1009,Customer & Digital,Protective Clothing,40040,"Clothing, Uniforms and Laundry",5025,"Size 2 XL Uneek Polo Shirt 190gsm, 100% cotton, colour red Streetscene c/w Chorley Council white version logo",02/06/2021,0156541,£151.84,Revenue,Key Engineering & Hygene Supplies,51615,,
Chorley Borough Council,http://statistics.data.gov.uk/id/local-authority/30UE,Service Management & Support,1009,Customer & Digital,Protective Clothing,40040,"Clothing, Uniforms and Laundry",5025,vatable,02/06/2021,0156541,£116.16,Revenue,Key Engineering & Hygene Supplies,51615,,
Chorley Borough Council,http://statistics.data.gov.uk/id/local-authority/30UE,Democratic Represent and  Mgnt,1007,Communities,Miscellaneous Expenses,40200,Miscellaneous Expenses,5034,"Moldex Series 7000 Mask Body Medium x5, ABEK1P3 R Pre-Assembled Filters (Wrap 2) Box 3 Pairs x4",16/06/2021,0157221,£715.73,Revenue,Key Engineering & Hygene Supplies,51615,,
Chorley Borough Council,http://statistics.data.gov.uk/id/local-authority/30UE,Democratic Represent and  Mgnt,1007,Communities,Miscellaneous Expenses,40200,Miscellaneous Expenses,5034,non-vat,16/06/2021,0157221,£60.44,Revenue,Key Engineering & Hygene Supplies,51615,,
Chorley Borough Council,http://statistics.data.gov.uk/id/local-authority/30UE,Democratic Represent and  Mgnt,1007,Communities,Miscellaneous Expenses,40200,Miscellaneous Expenses,5034,"Moldex Series 7000 Mask Body Medium x5, ABEK1P3 R Pre-Assembled Filters (Wrap 2) Box 3 Pairs x4",23/06/2021,0158043,£284.64,Revenue,Key Engineering & Hygene Supplies,51615,,
Chorley Borough Council,http://statistics.data.gov.uk/id/local-authority/30UE,Service Management & Support,1009,Customer & Digital,Hire of Plant,40001,"Equipment, Furniture & Materia",5023,Hire a small rotovator for 1 week,09/06/2021,0157064,£260.00,Revenue,KH Hire Ltd,78531,,
Chorley Borough Council,http://statistics.data.gov.uk/id/local-authority/30UE,Service Management & Support,1009,Customer & Digital,Tools & Equipment - Hire,40004,"Equipment, Furniture & Materia",5023,Hire of a small tractor/rotovator for a fortnight (17th March - 31st March),09/06/2021,0157065,"£1,064.00",Revenue,KH Hire Ltd,78531,,
Chorley Borough Council,http://statistics.data.gov.uk/id/local-authority/30UE,Development Control,1091,Policy & Governance,Legal Fees,40171,Miscellaneous Expenses,5034,counsel fees for Chisnell Racetrack,16/06/2021,0157343,£500.00,Revenue,Killian Garvey,81544,,
Chorley Borough Council,http://statistics.data.gov.uk/id/local-authority/30UE,Democratic Represent and  Mgnt,1007,Policy & Governance,Arts Development Initiatives,40187,Miscellaneous Expenses,5034,"Forest School Practitioner Training Level 3 Course for NAME REDACTED, Reference 1703AAB",09/06/2021,0157031,£820.00,Revenue,Kindling Play and Training,81412,,
Chorley Borough Council,http://statistics.data.gov.uk/id/local-authority/30UE,Central Support Services,1009,Customer & Digital,Computer Equipment-Purchase,40098,Communication and Computing,5028,iPhone SE 64GB Black,11/06/2021,0157124,"£3,359.85",Revenue,Kingsfield Computer Products LTD,77551,,
Chorley Borough Council,http://statistics.data.gov.uk/id/local-authority/30UE,Precepts and Collection Fund,Precepts,Policy & Governance,LCC Precept,02009,Precepts & Collection Fund,Precept,LCC Council tax precept,28/06/2021,0155633,"£5,460,616.68",Revenue,Lancashire County Council,18386,,
Chorley Borough Council,http://statistics.data.gov.uk/id/local-authority/30UE,Collection Fund Revenue Accoun,,Policy & Governance,NNDR County Share,02036,Precepts & Collection Fund,Precept,LCC Business Rates precept,28/06/2021,0155633,"£137,015.00",Revenue,Lancashire County Council,18386,,
Chorley Borough Council,http://statistics.data.gov.uk/id/local-authority/30UE,Precepts and Collection Fund,Precepts,Policy & Governance,LCC Precept,02009,Precepts & Collection Fund,Precept,LCC Council Tax Precept,28/06/2021,0156942,"£5,460,622.00",Revenue,Lancashire County Council,18386,,
Chorley Borough Council,http://statistics.data.gov.uk/id/local-authority/30UE,Collection Fund Revenue Accoun,,Policy & Governance,NNDR County Share,02036,Precepts & Collection Fund,Precept,LCC Business Rates Precept,28/06/2021,0156942,"£137,018.00",Revenue,Lancashire County Council,18386,,
Chorley Borough Council,http://statistics.data.gov.uk/id/local-authority/30UE,Capital,Capital,Communities,Grants,03002,Capital Expenditure,Capital,NAME REDACTED,02/06/2021,0156943,"£4,022.50",Capital,Lancashire County Council,17758,,
Chorley Borough Council,http://statistics.data.gov.uk/id/local-authority/30UE,Central Support Services,1009,Commercial & Property,General Repairs - Reactive,20004,Repairs Maintenance & Alts,5005,Town Hall  - reactive repair works,02/06/2021,0156843,£479.50,Revenue,Lancashire Gas Services Ltd,78192,,
Chorley Borough Council,http://statistics.data.gov.uk/id/local-authority/30UE,Unapportionable Central OHeads,1009,Commercial & Property,General Repairs - Reactive,20004,Repairs Maintenance & Alts,5005,Town Hall  - reactive repair works,02/06/2021,0156844,£375.95,Revenue,Lancashire Gas Services Ltd,78192,,
Chorley Borough Council,http://statistics.data.gov.uk/id/local-authority/30UE,Central Support Services,1009,Commercial & Property,General Repairs - Reactive,20004,Repairs Maintenance & Alts,5005,Astley Hall and Buildings  - reactive repair works,02/06/2021,0156848,£395.42,Revenue,Lancashire Gas Services Ltd,78192,,
Chorley Borough Council,http://statistics.data.gov.uk/id/local-authority/30UE,Unapportionable Central OHeads,1009,Commercial & Property,General Repairs - Reactive,20004,Repairs Maintenance & Alts,5005,Brinscall Baths swimming pool pump 2 new pump set to replace existing pump that is beyond economical repair,04/06/2021,0157000,"£4,095.05",Revenue,Lancashire Gas Services Ltd,78192,,
Chorley Borough Council,http://statistics.data.gov.uk/id/local-authority/30UE,Central Support Services,1009,Commercial & Property,General Repairs - Reactive,20004,Repairs Maintenance & Alts,5005,"Clayton Green, Service inspection to 4 high level heaters in the sports hall. Also include the basket ball net pully system",04/06/2021,0157001,"£1,756.00",Revenue,Lancashire Gas Services Ltd,78192,,
Chorley Borough Council,http://statistics.data.gov.uk/id/local-authority/30UE,Democratic Represent and  Mgnt,1007,Communities,General Repairs - Reactive,20004,Repairs Maintenance & Alts,5005,Works Order No. 12798 - minor leak form Roof Tile in Male Foyer Toilets,16/06/2021,0157339,£333.40,Revenue,Lancashire Gas Services Ltd,78192,,
Chorley Borough Council,http://statistics.data.gov.uk/id/local-authority/30UE,Capital,Capital,Communities,Other Capital Related Fees,03024,Capital Expenditure,Capital,"Supply & install black sink unit with white sink and mixer tap, customer supplied chair & tap set, Box in all pipework",18/06/2021,0157969,"£4,052.00",Capital,Lancashire Gas Services Ltd,78192,,
Chorley Borough Council,http://statistics.data.gov.uk/id/local-authority/30UE,Corporate Management,1008,Communities,Miscellaneous Expenses,40200,Miscellaneous Expenses,5034,"All Seasons, Supply and install covid screens to reception  19/02/2021",23/06/2021,0158088,£886.00,Revenue,Lancashire Gas Services Ltd,78192,,
Chorley Borough Council,http://statistics.data.gov.uk/id/local-authority/30UE,Unapportionable Central OHeads,1009,Policy & Governance,Pensions Increase Act Payments,18005,Indirect Employee Expenses,5002,pension strain dec-20,02/06/2021,0155575,"£58,560.00",Revenue,Lancashire Pensions Services DD ONLY,16696,,
Chorley Borough Council,http://statistics.data.gov.uk/id/local-authority/30UE,Unapportionable Central OHeads,1009,Policy & Governance,Pensions Increase Act Payments,18005,Indirect Employee Expenses,5002,CAY February 21,02/06/2021,0155576,"£17,414.86",Revenue,Lancashire Pensions Services DD ONLY,16696,,
Chorley Borough Council,http://statistics.data.gov.uk/id/local-authority/30UE,Unapportionable Central OHeads,1009,Policy & Governance,Pensions Increase Act Payments,18005,Indirect Employee Expenses,5002,CAY Oct 20,02/06/2021,0155577,"£17,414.86",Revenue,Lancashire Pensions Services DD ONLY,16696,,
Chorley Borough Council,http://statistics.data.gov.uk/id/local-authority/30UE,Unapportionable Central OHeads,1009,Policy & Governance,Pensions Increase Act Payments,18005,Indirect Employee Expenses,5002,Pension Strain -  Apr 21,02/06/2021,0156904,"£5,464.82",Revenue,Lancashire Pensions Services DD ONLY,16696,,
Chorley Borough Council,http://statistics.data.gov.uk/id/local-authority/30UE,Unapportionable Central OHeads,1009,Policy & Governance,Pensions Increase Act Payments,18005,Indirect Employee Expenses,5002,CAY March 21,28/06/2021,0158140,"£17,312.09",Revenue,Lancashire Pensions Services DD ONLY,16696,,
Chorley Borough Council,http://statistics.data.gov.uk/id/local-authority/30UE,Other Short Term Creditors,,Policy & Governance,General Balances,00100,Balance Sheet,Balance,EES,28/06/2021,0158141,"£45,366.64",Revenue,Lancashire Pensions Services DD ONLY,16696,,
Chorley Borough Council,http://statistics.data.gov.uk/id/local-authority/30UE,Unapportionable Central OHeads,1009,Policy & Governance,Pensions Increase Act Payments,18005,Indirect Employee Expenses,5002,CAY April 21,28/06/2021,0158142,"£17,025.05",Revenue,Lancashire Pensions Services DD ONLY,16696,,
Chorley Borough Council,http://statistics.data.gov.uk/id/local-authority/30UE,Precepts and Collection Fund,Precepts,Policy & Governance,LCFA Precept,02011,Precepts & Collection Fund,Precept,LCFA CTax precept,02/06/2021,0155646,"£271,005.00",Revenue,Lancs Combined Fire Authority,17768,,
Chorley Borough Council,http://statistics.data.gov.uk/id/local-authority/30UE,Collection Fund Revenue Accoun,,Policy & Governance,NNDR Fire Share,02037,Precepts & Collection Fund,Precept,LCFA BRates precepts,02/06/2021,0155646,"£14,855.00",Revenue,Lancs Combined Fire Authority,17768,,
Chorley Borough Council,http://statistics.data.gov.uk/id/local-authority/30UE,Precepts and Collection Fund,Precepts,Policy & Governance,LCFA Precept,02011,Precepts & Collection Fund,Precept,LCFA Council Tax Precept,02/06/2021,0156945,"£271,012.00",Revenue,Lancs Combined Fire Authority,17768,,
Chorley Borough Council,http://statistics.data.gov.uk/id/local-authority/30UE,Collection Fund Revenue Accoun,,Policy & Governance,NNDR Fire Share,02037,Precepts & Collection Fund,Precept,LCFA Business Rates Precept,02/06/2021,0156945,"£14,851.00",Revenue,Lancs Combined Fire Authority,17768,,
Chorley Borough Council,http://statistics.data.gov.uk/id/local-authority/30UE,Planning Policy,1092,Communities,Professional Fees,40063,Services,5027,Waiver to commission a sustainability appraisal of the safeguarded sites,04/06/2021,0156775,"£12,933.00",Revenue,Land Use Consultants (LUC) Ltd,81849,,
Chorley Borough Council,http://statistics.data.gov.uk/id/local-authority/30UE,Capital,Capital,Communities,Main Contractor,03007,Capital Expenditure,Capital,"Play equipment installation, safety surfacing, landscaping as set out in the ITQ and Specification at Longfield Avenue, Coppull",30/06/2021,0158319,"£45,002.50",Capital,Landscape Engineering Ltd,54727,,
Chorley Borough Council,http://statistics.data.gov.uk/id/local-authority/30UE,Central Support Services,1009,Commercial & Property,Planned Maintenance,20006,Repairs Maintenance & Alts,5005,"All Seasons Leisure, CCTV unit, mainline pan and tilt Camera and/or pushrod CCTV Camera as required",02/06/2021,0155718,£695.00,Revenue,Lanes Group plc,20269,,
Chorley Borough Council,http://statistics.data.gov.uk/id/local-authority/30UE,Unapportionable Central OHeads,1009,Customer & Digital,Performing Rights Society Fees,40148,Grants and Subscriptions,5031,Language Line Annual Fee 2020,18/06/2021,0157980,£295.00,Revenue,Language Line Ltd,16342,,
Chorley Borough Council,http://statistics.data.gov.uk/id/local-authority/30UE,Capital,Capital,Communities,Main Contractor,03007,Capital Expenditure,Capital,"Design & Construction: Artificial Grass Pitch, New Fencing, Hardstanding, Floodlighting and Track Works at Westway Fields",02/06/2021,0155089,"£30,930.88",Capital,Lano Sports,80704,,
Chorley Borough Council,http://statistics.data.gov.uk/id/local-authority/30UE,Capital,Capital,Communities,Main Contractor,03007,Capital Expenditure,Capital,"Design & Construction: Artificial Grass Pitch, New Fencing, Hardstanding, Floodlighting and Track Works at Westway Fields",02/06/2021,0156257,"£192,770.25",Capital,Lano Sports,80704,,
Chorley Borough Council,http://statistics.data.gov.uk/id/local-authority/30UE,Capital,Capital,Communities,Main Contractor,03007,Capital Expenditure,Capital,"Design & Construction: Artificial Grass Pitch, New Fencing, Hardstanding, Floodlighting and Track Works at Westway Fields",28/06/2021,0158096,"£278,747.40",Capital,Lano Sports,80704,,
Chorley Borough Council,http://statistics.data.gov.uk/id/local-authority/30UE,Democratic Represent and  Mgnt,1007,Communities,Consultants` Fees,40077,Services,5027,High Level VAT advise outsourced Leisure Management,11/06/2021,0156975,"£3,360.00",Revenue,LAVAT Consulting Ltd,76942,,
Chorley Borough Council,http://statistics.data.gov.uk/id/local-authority/30UE,Democratic Represent and  Mgnt,1007,Communities,Miscellaneous Expenses,40200,Miscellaneous Expenses,5034,NRLF - Monitoring and Evaluation Grant,09/06/2021,0157138,"£1,542.00",Revenue,Leisure-net Solutions Ltd,82420,,
Chorley Borough Council,http://statistics.data.gov.uk/id/local-authority/30UE,Democratic Represent and  Mgnt,1007,Communities,Miscellaneous Expenses,40200,Miscellaneous Expenses,5034,"Les Mills Plus - June 2021 - £365.00, Clayton Green Covid Relief - £109.50",18/06/2021,0157460,£255.50,Revenue,Les Mills Fitness UK Ltd,81122,,
Chorley Borough Council,http://statistics.data.gov.uk/id/local-authority/30UE,Democratic Represent and  Mgnt,1007,Communities,Miscellaneous Expenses,40200,Miscellaneous Expenses,5034,"Les Mills Plus  = £365.00, All Seasons Covid Relief -£109.50",18/06/2021,0157461,£255.50,Revenue,Les Mills Fitness UK Ltd,81122,,
Chorley Borough Council,http://statistics.data.gov.uk/id/local-authority/30UE,Unapportionable Central OHeads,1009,Customer & Digital,Professional Fees,14011,Direct Employee Expenses,5001,Empty Homes Review 2021,30/06/2021,0158085,"£2,467.38",Revenue,Liberata (Capacity Grid),67989,,
Chorley Borough Council,http://statistics.data.gov.uk/id/local-authority/30UE,Business Support,1095,Commercial & Property,Planned Maintenance,20006,Repairs Maintenance & Alts,5005,"Market Walk Ext, Remedial works",02/06/2021,0156840,"£1,135.00",Revenue,Lightning Consultants (UK) Ltd,17446,,
Chorley Borough Council,http://statistics.data.gov.uk/id/local-authority/30UE,Business Support,1095,Commercial & Property,Planned Maintenance,20006,Repairs Maintenance & Alts,5005,"Strawberry Fields, Remedial Works",02/06/2021,0156842,£978.00,Revenue,Lightning Consultants (UK) Ltd,17446,,
Chorley Borough Council,http://statistics.data.gov.uk/id/local-authority/30UE,Capital,Capital,Commercial & Property,Main Contractor,03007,Capital Expenditure,Capital,Project management services for Astley Hall Restoration project,16/06/2021,0157203,"£3,235.00",Capital,Linchpin Ltd,80779,,
Chorley Borough Council,http://statistics.data.gov.uk/id/local-authority/30UE,Tourism,1039,Policy & Governance,Publicity - Advertising,40157,Miscellaneous Expenses,5034,"Description: A4 ad (back cover) – Northern Life Magazine – CFS – July/August issue, Supplier: Loop Publishing, Cost: £550+VAT",23/06/2021,0158001,£550.00,Revenue,Loop Publishing Ltd,18770,,
Chorley Borough Council,http://statistics.data.gov.uk/id/local-authority/30UE,Central Support Services,1009,Communities,Miscellaneous Expenses,40200,Miscellaneous Expenses,5034,"Chair/Author - Domestic Homicide Review in the Case of NAME REDACTED, Fully Revised Report and Executive Summary",02/06/2021,0156867,"£1,350.00",Revenue,M.A.Noble,66411,,
Chorley Borough Council,http://statistics.data.gov.uk/id/local-authority/30UE,Democratic Represent and  Mgnt,1007,Communities,Miscellaneous Expenses,40200,Miscellaneous Expenses,5034,"6xEasy-fit Silicone Cap, 2xFloat Discs (4pcs per set), 6xFloat bands (up to 12mths), 6xFloat bands (12-36 mths), 6xFloat band",02/06/2021,0156863,£215.00,Revenue,Mares S.p.A,82058,,
Chorley Borough Council,http://statistics.data.gov.uk/id/local-authority/30UE,Democratic Represent and  Mgnt,1007,Communities,Miscellaneous Expenses,40200,Miscellaneous Expenses,5034,zero vat,02/06/2021,0156863,£64.80,Revenue,Mares S.p.A,82058,,
Chorley Borough Council,http://statistics.data.gov.uk/id/local-authority/30UE,Democratic Represent and  Mgnt,1007,Communities,Miscellaneous Expenses,40200,Miscellaneous Expenses,5034,"All Seasons Leisure Ctr Latex Swim Caps-Red 650 @ 0.90 each, 465022 Screen Cha 1 @ £15.00",02/06/2021,0156925,£600.00,Revenue,Mares S.p.A,82058,,
Chorley Borough Council,http://statistics.data.gov.uk/id/local-authority/30UE,Democratic Represent and  Mgnt,1007,Communities,Miscellaneous Expenses,40200,Miscellaneous Expenses,5034,"Fusion Air, Black/Green/Smoke, Endura, Clear/Blue/Clear, Sea Demon Junior, Black/Blue/Hologram",09/06/2021,0157076,£437.52,Revenue,Mares S.p.A,82058,,
Chorley Borough Council,http://statistics.data.gov.uk/id/local-authority/30UE,Democratic Represent and  Mgnt,1007,Communities,Miscellaneous Expenses,40200,Miscellaneous Expenses,5034,none vat item,09/06/2021,0157076,£26.52,Revenue,Mares S.p.A,82058,,
Chorley Borough Council,http://statistics.data.gov.uk/id/local-authority/30UE,Unapportionable Central OHeads,1009,Policy & Governance,Agency Staff,13000,Direct Employee Expenses,5001,19/5/2021,04/06/2021,0156754,"£2,583.22",Revenue,Matrix SCM Ltd,22128,,
Chorley Borough Council,http://statistics.data.gov.uk/id/local-authority/30UE,Unapportionable Central OHeads,1009,Policy & Governance,Agency Staff,13000,Direct Employee Expenses,5001,no attached schedule for split,04/06/2021,0156960,"£2,159.22",Revenue,Matrix SCM Ltd,22128,,
Chorley Borough Council,http://statistics.data.gov.uk/id/local-authority/30UE,Central Support Services,1009,Policy & Governance,Agency Staff,13000,Direct Employee Expenses,5001,NAME REDACTED,04/06/2021,0157074,£476.35,Revenue,Matrix SCM Ltd,22128,,
Chorley Borough Council,http://statistics.data.gov.uk/id/local-authority/30UE,Unapportionable Central OHeads,1009,Policy & Governance,Agency Staff,13000,Direct Employee Expenses,5001,NAME REDACTED,04/06/2021,0157074,£556.05,Revenue,Matrix SCM Ltd,22128,,
Chorley Borough Council,http://statistics.data.gov.uk/id/local-authority/30UE,Economic Development,1096,Policy & Governance,Agency Staff,13000,Direct Employee Expenses,5001,NAME REDACTED,04/06/2021,0157074,£552.91,Revenue,Matrix SCM Ltd,22128,,
Chorley Borough Council,http://statistics.data.gov.uk/id/local-authority/30UE,Economic Development,1096,Policy & Governance,Agency Staff,13000,Direct Employee Expenses,5001,NAME REDACTED,04/06/2021,0157074,£550.56,Revenue,Matrix SCM Ltd,22128,,
Chorley Borough Council,http://statistics.data.gov.uk/id/local-authority/30UE,Unapportionable Central OHeads,1009,Policy & Governance,Agency Staff,13000,Direct Employee Expenses,5001,9/6/2021,23/06/2021,0157436,£995.88,Revenue,Matrix SCM Ltd,22128,,
Chorley Borough Council,http://statistics.data.gov.uk/id/local-authority/30UE,Unapportionable Central OHeads,1009,Policy & Governance,Agency Staff,13000,Direct Employee Expenses,5001,16/06/2021,25/06/2021,0158008,"£2,945.79",Revenue,Matrix SCM Ltd,22128,,
Chorley Borough Council,http://statistics.data.gov.uk/id/local-authority/30UE,Central Support Services,1009,Policy & Governance,Agency Staff,13000,Direct Employee Expenses,5001,NAME REDACTED,30/06/2021,0158184,£476.35,Revenue,Matrix SCM Ltd,22128,,
Chorley Borough Council,http://statistics.data.gov.uk/id/local-authority/30UE,Unapportionable Central OHeads,1009,Policy & Governance,Agency Staff,13000,Direct Employee Expenses,5001,NAME REDACTED,30/06/2021,0158184,£460.75,Revenue,Matrix SCM Ltd,22128,,
Chorley Borough Council,http://statistics.data.gov.uk/id/local-authority/30UE,Economic Development,1096,Policy & Governance,Agency Staff,13000,Direct Employee Expenses,5001,NAME REDACTED,30/06/2021,0158184,£581.06,Revenue,Matrix SCM Ltd,22128,,
Chorley Borough Council,http://statistics.data.gov.uk/id/local-authority/30UE,Capital,Capital,Communities,Grants,03002,Capital Expenditure,Capital,Transfer of S106 contribustions,02/06/2021,0156946,"£8,524.61",Capital,Mawdesley Millennium Green Trust,22078,,
Chorley Borough Council,http://statistics.data.gov.uk/id/local-authority/30UE,Elections,1012,Policy & Governance,Rent/Hire Of Premises,20017,Premises Rents,5007,room hire for polling station 6 May 2021,18/06/2021,0157984,£380.00,Revenue,Mawdesley Village Hall,18423,,
Chorley Borough Council,http://statistics.data.gov.uk/id/local-authority/30UE,Unapportionable Central OHeads,1009,Commercial & Property,Planned Maintenance,20006,Repairs Maintenance & Alts,5005,"Legionella monitoring, Astley Hall, Coach House and Farmhouse",16/06/2021,0157333,£75.00,Revenue,Maxigiene Environmental Services Ltd,67160,,
Chorley Borough Council,http://statistics.data.gov.uk/id/local-authority/30UE,Unapportionable Central OHeads,1009,Commercial & Property,Planned Maintenance,20006,Repairs Maintenance & Alts,5005,"Legionella monitoring, Parks Buildings -  Devonshire rec, harpers rec",16/06/2021,0157333,£40.00,Revenue,Maxigiene Environmental Services Ltd,67160,,
Chorley Borough Council,http://statistics.data.gov.uk/id/local-authority/30UE,Unapportionable Central OHeads,1009,Commercial & Property,Planned Maintenance,20006,Repairs Maintenance & Alts,5005,"Legionella monitoring, Community centres",16/06/2021,0157333,£169.16,Revenue,Maxigiene Environmental Services Ltd,67160,,
Chorley Borough Council,http://statistics.data.gov.uk/id/local-authority/30UE,Unapportionable Central OHeads,1009,Commercial & Property,Planned Maintenance,20006,Repairs Maintenance & Alts,5005,"Legionella monitoring, WC`s including cemetery wc",16/06/2021,0157333,£65.00,Revenue,Maxigiene Environmental Services Ltd,67160,,
Chorley Borough Council,http://statistics.data.gov.uk/id/local-authority/30UE,Central Support Services,1009,Commercial & Property,Planned Maintenance,20006,Repairs Maintenance & Alts,5005,"Legionella monitoring, sports pitches/pavilions",16/06/2021,0157333,£72.08,Revenue,Maxigiene Environmental Services Ltd,67160,,
Chorley Borough Council,http://statistics.data.gov.uk/id/local-authority/30UE,Unapportionable Central OHeads,1009,Commercial & Property,Planned Maintenance,20006,Repairs Maintenance & Alts,5005,"Legionella monitoring, Bengal St",16/06/2021,0157333,£25.00,Revenue,Maxigiene Environmental Services Ltd,67160,,
Chorley Borough Council,http://statistics.data.gov.uk/id/local-authority/30UE,Unapportionable Central OHeads,1009,Commercial & Property,Planned Maintenance,20006,Repairs Maintenance & Alts,5005,"Legionella monitoring, chorley cem",16/06/2021,0157333,£20.00,Revenue,Maxigiene Environmental Services Ltd,67160,,
Chorley Borough Council,http://statistics.data.gov.uk/id/local-authority/30UE,Community Development,1097,Commercial & Property,Planned Maintenance,20006,Repairs Maintenance & Alts,5005,"Legionella monitoring, CAB (CIC)",16/06/2021,0157333,£20.00,Revenue,Maxigiene Environmental Services Ltd,67160,,
Chorley Borough Council,http://statistics.data.gov.uk/id/local-authority/30UE,Business Support,1095,Commercial & Property,Planned Maintenance,20006,Repairs Maintenance & Alts,5005,"Legionella monitoring, MW Mgt",16/06/2021,0157333,£20.00,Revenue,Maxigiene Environmental Services Ltd,67160,,
Chorley Borough Council,http://statistics.data.gov.uk/id/local-authority/30UE,Unapportionable Central OHeads,1009,Commercial & Property,Planned Maintenance,20006,Repairs Maintenance & Alts,5005,"Legionella monitoring, Cotswold House",16/06/2021,0157333,£20.00,Revenue,Maxigiene Environmental Services Ltd,67160,,
Chorley Borough Council,http://statistics.data.gov.uk/id/local-authority/30UE,Unapportionable Central OHeads,1009,Commercial & Property,Planned Maintenance,20006,Repairs Maintenance & Alts,5005,"Legionella monitoring, Market",16/06/2021,0157333,£20.00,Revenue,Maxigiene Environmental Services Ltd,67160,,
Chorley Borough Council,http://statistics.data.gov.uk/id/local-authority/30UE,Unapportionable Central OHeads,1009,Commercial & Property,Planned Maintenance,20006,Repairs Maintenance & Alts,5005,"Legionella monitoring, Primrose",16/06/2021,0157333,£30.00,Revenue,Maxigiene Environmental Services Ltd,67160,,
Chorley Borough Council,http://statistics.data.gov.uk/id/local-authority/30UE,Business Support,1095,Commercial & Property,Planned Maintenance,20006,Repairs Maintenance & Alts,5005,"Legionella monitoring, DOP",16/06/2021,0157333,£30.00,Revenue,Maxigiene Environmental Services Ltd,67160,,
Chorley Borough Council,http://statistics.data.gov.uk/id/local-authority/30UE,Unapportionable Central OHeads,1009,Commercial & Property,Planned Maintenance,20006,Repairs Maintenance & Alts,5005,"Legionella monitoring, Town Hall",16/06/2021,0157333,£25.00,Revenue,Maxigiene Environmental Services Ltd,67160,,
Chorley Borough Council,http://statistics.data.gov.uk/id/local-authority/30UE,Unapportionable Central OHeads,1009,Commercial & Property,Planned Maintenance,20006,Repairs Maintenance & Alts,5005,"Legionella monitoring, Union St",16/06/2021,0157333,£25.00,Revenue,Maxigiene Environmental Services Ltd,67160,,
Chorley Borough Council,http://statistics.data.gov.uk/id/local-authority/30UE,Service Management & Support,1009,Customer & Digital,Supplies-Grounds Maintenance,40025,"Equipment, Furniture & Materia",5023,Deliver 20 ton of Grade 1 top soil to Bengal St depot,18/06/2021,0157347,£445.00,Revenue,Mc & Ma Stewart (Haulage Ltd),16627,,
Chorley Borough Council,http://statistics.data.gov.uk/id/local-authority/30UE,Democratic Represent and  Mgnt,1007,Customer & Digital,Playground Equipment,40008,"Equipment, Furniture & Materia",5023,"Supply 90m3 of play bark. Deliver to Yarrow Depot,",18/06/2021,0157348,"£3,375.00",Revenue,Mc & Ma Stewart (Haulage Ltd),16627,,
Chorley Borough Council,http://statistics.data.gov.uk/id/local-authority/30UE,Collection Fund Revenue Accoun,,Policy & Governance,Transitional Protection,02033,Precepts & Collection Fund,Precept,trans protn cont,02/06/2021,0155545,"£6,051.00",Revenue,Ministry of Housing Communities & Local Government,16280,,
Chorley Borough Council,http://statistics.data.gov.uk/id/local-authority/30UE,Collection Fund Revenue Accoun,,Policy & Governance,NNDR Central Share,02034,Precepts & Collection Fund,Precept,central share BR,02/06/2021,0155545,"£1,540,965.00",Revenue,Ministry of Housing Communities & Local Government,16280,,
Chorley Borough Council,http://statistics.data.gov.uk/id/local-authority/30UE,Collection Fund Revenue Accoun,,Policy & Governance,NNDR Central Share,02034,Precepts & Collection Fund,Precept,deficit coll fund,02/06/2021,0155545,"-£2,230.00",Revenue,Ministry of Housing Communities & Local Government,16280,,
Chorley Borough Council,http://statistics.data.gov.uk/id/local-authority/30UE,Collection Fund Revenue Accoun,,Policy & Governance,Transitional Protection,02033,Precepts & Collection Fund,Precept,Trans Protn Contributions,02/06/2021,0156898,"£3,838.00",Revenue,Ministry of Housing Communities & Local Government,16280,,
Chorley Borough Council,http://statistics.data.gov.uk/id/local-authority/30UE,Collection Fund Revenue Accoun,,Policy & Governance,NNDR Central Share,02034,Precepts & Collection Fund,Precept,Central Share BR,02/06/2021,0156898,"£1,157,638.00",Revenue,Ministry of Housing Communities & Local Government,16280,,
Chorley Borough Council,http://statistics.data.gov.uk/id/local-authority/30UE,Collection Fund Revenue Accoun,,Policy & Governance,NNDR Central Share,02034,Precepts & Collection Fund,Precept,Deficit Collection Fun,02/06/2021,0156898,"-£527,076.00",Revenue,Ministry of Housing Communities & Local Government,16280,,
Chorley Borough Council,http://statistics.data.gov.uk/id/local-authority/30UE,Collection Fund Revenue Accoun,,Policy & Governance,Transitional Protection,02033,Precepts & Collection Fund,Precept,Transitional Relief,02/06/2021,0156898,£0.00,Revenue,Ministry of Housing Communities & Local Government,16280,,
Chorley Borough Council,http://statistics.data.gov.uk/id/local-authority/30UE,Collection Fund Revenue Accoun,,Policy & Governance,Transitional Protection,02033,Precepts & Collection Fund,Precept,trans protn contributions,28/06/2021,0158163,"£3,839.00",Revenue,Ministry of Housing Communities & Local Government,16280,,
Chorley Borough Council,http://statistics.data.gov.uk/id/local-authority/30UE,Collection Fund Revenue Accoun,,Policy & Governance,NNDR Central Share,02034,Precepts & Collection Fund,Precept,central share BR,28/06/2021,0158163,"£1,157,638.00",Revenue,Ministry of Housing Communities & Local Government,16280,,
Chorley Borough Council,http://statistics.data.gov.uk/id/local-authority/30UE,Collection Fund Revenue Accoun,,Policy & Governance,NNDR Central Share,02034,Precepts & Collection Fund,Precept,deficit collection fund,28/06/2021,0158163,"-£527,075.00",Revenue,Ministry of Housing Communities & Local Government,16280,,
Chorley Borough Council,http://statistics.data.gov.uk/id/local-authority/30UE,Capital,Capital,Communities,Grants,03002,Capital Expenditure,Capital,NAME REDACTED,09/06/2021,0157051,"£3,693.29",Capital,Mint Northwest Ltd,65607,,
Chorley Borough Council,http://statistics.data.gov.uk/id/local-authority/30UE,Private Sector HSG Renewal,1073,Communities,External Contractor,40198,Miscellaneous Expenses,5034,Ref 4680,16/06/2021,0157441,£256.00,Revenue,Mobility Care Services,70841,,
Chorley Borough Council,http://statistics.data.gov.uk/id/local-authority/30UE,Private Sector HSG Renewal,1073,Communities,External Contractor,40198,Miscellaneous Expenses,5034,Ref 4681,16/06/2021,0157441,£111.00,Revenue,Mobility Care Services,70841,,
Chorley Borough Council,http://statistics.data.gov.uk/id/local-authority/30UE,Private Sector HSG Renewal,1073,Communities,External Contractor,40198,Miscellaneous Expenses,5034,Ref 4682,16/06/2021,0157441,£111.00,Revenue,Mobility Care Services,70841,,
Chorley Borough Council,http://statistics.data.gov.uk/id/local-authority/30UE,Private Sector HSG Renewal,1073,Communities,External Contractor,40198,Miscellaneous Expenses,5034,Ref 4695,16/06/2021,0157441,£64.35,Revenue,Mobility Care Services,70841,,
Chorley Borough Council,http://statistics.data.gov.uk/id/local-authority/30UE,Private Sector HSG Renewal,1073,Communities,External Contractor,40198,Miscellaneous Expenses,5034,Ref 4696,16/06/2021,0157441,£66.00,Revenue,Mobility Care Services,70841,,
Chorley Borough Council,http://statistics.data.gov.uk/id/local-authority/30UE,Private Sector HSG Renewal,1073,Communities,External Contractor,40198,Miscellaneous Expenses,5034,Ref 4697,16/06/2021,0157441,£57.75,Revenue,Mobility Care Services,70841,,
Chorley Borough Council,http://statistics.data.gov.uk/id/local-authority/30UE,Private Sector HSG Renewal,1073,Communities,External Contractor,40198,Miscellaneous Expenses,5034,Ref 4700,16/06/2021,0157441,£128.00,Revenue,Mobility Care Services,70841,,
Chorley Borough Council,http://statistics.data.gov.uk/id/local-authority/30UE,Private Sector HSG Renewal,1073,Communities,External Contractor,40198,Miscellaneous Expenses,5034,Ref 4701,16/06/2021,0157441,£128.00,Revenue,Mobility Care Services,70841,,
Chorley Borough Council,http://statistics.data.gov.uk/id/local-authority/30UE,Private Sector HSG Renewal,1073,Communities,External Contractor,40198,Miscellaneous Expenses,5034,Ref 4702,16/06/2021,0157441,£408.00,Revenue,Mobility Care Services,70841,,
Chorley Borough Council,http://statistics.data.gov.uk/id/local-authority/30UE,Private Sector HSG Renewal,1073,Communities,External Contractor,40198,Miscellaneous Expenses,5034,Ref 4703,16/06/2021,0157441,£408.00,Revenue,Mobility Care Services,70841,,
Chorley Borough Council,http://statistics.data.gov.uk/id/local-authority/30UE,Private Sector HSG Renewal,1073,Communities,External Contractor,40198,Miscellaneous Expenses,5034,Ref 4704,16/06/2021,0157441,£960.00,Revenue,Mobility Care Services,70841,,
Chorley Borough Council,http://statistics.data.gov.uk/id/local-authority/30UE,Private Sector HSG Renewal,1073,Communities,External Contractor,40198,Miscellaneous Expenses,5034,Ref 4707,16/06/2021,0157441,£49.50,Revenue,Mobility Care Services,70841,,
Chorley Borough Council,http://statistics.data.gov.uk/id/local-authority/30UE,Private Sector HSG Renewal,1073,Communities,External Contractor,40198,Miscellaneous Expenses,5034,Ref 4607,16/06/2021,0157441,£118.80,Revenue,Mobility Care Services,70841,,
Chorley Borough Council,http://statistics.data.gov.uk/id/local-authority/30UE,Private Sector HSG Renewal,1073,Communities,External Contractor,40198,Miscellaneous Expenses,5034,Ref 4619,16/06/2021,0157441,£66.00,Revenue,Mobility Care Services,70841,,
Chorley Borough Council,http://statistics.data.gov.uk/id/local-authority/30UE,Private Sector HSG Renewal,1073,Communities,External Contractor,40198,Miscellaneous Expenses,5034,Ref 4620,16/06/2021,0157441,£66.00,Revenue,Mobility Care Services,70841,,
Chorley Borough Council,http://statistics.data.gov.uk/id/local-authority/30UE,Private Sector HSG Renewal,1073,Communities,External Contractor,40198,Miscellaneous Expenses,5034,Ref 4621,16/06/2021,0157441,£73.00,Revenue,Mobility Care Services,70841,,
Chorley Borough Council,http://statistics.data.gov.uk/id/local-authority/30UE,Private Sector HSG Renewal,1073,Communities,External Contractor,40198,Miscellaneous Expenses,5034,Ref 4623,16/06/2021,0157441,£111.00,Revenue,Mobility Care Services,70841,,
Chorley Borough Council,http://statistics.data.gov.uk/id/local-authority/30UE,Private Sector HSG Renewal,1073,Communities,External Contractor,40198,Miscellaneous Expenses,5034,Ref 4624,16/06/2021,0157441,£69.30,Revenue,Mobility Care Services,70841,,
Chorley Borough Council,http://statistics.data.gov.uk/id/local-authority/30UE,Private Sector HSG Renewal,1073,Communities,External Contractor,40198,Miscellaneous Expenses,5034,Ref 4625,16/06/2021,0157441,£115.50,Revenue,Mobility Care Services,70841,,
Chorley Borough Council,http://statistics.data.gov.uk/id/local-authority/30UE,Private Sector HSG Renewal,1073,Communities,External Contractor,40198,Miscellaneous Expenses,5034,Ref 4642,16/06/2021,0157441,£66.00,Revenue,Mobility Care Services,70841,,
Chorley Borough Council,http://statistics.data.gov.uk/id/local-authority/30UE,Private Sector HSG Renewal,1073,Communities,External Contractor,40198,Miscellaneous Expenses,5034,Ref 4645,16/06/2021,0157441,£66.00,Revenue,Mobility Care Services,70841,,
Chorley Borough Council,http://statistics.data.gov.uk/id/local-authority/30UE,Private Sector HSG Renewal,1073,Communities,External Contractor,40198,Miscellaneous Expenses,5034,Ref 4676,16/06/2021,0157441,£66.00,Revenue,Mobility Care Services,70841,,
Chorley Borough Council,http://statistics.data.gov.uk/id/local-authority/30UE,Private Sector HSG Renewal,1073,Communities,External Contractor,40198,Miscellaneous Expenses,5034,Ref 4677,16/06/2021,0157441,£82.50,Revenue,Mobility Care Services,70841,,
Chorley Borough Council,http://statistics.data.gov.uk/id/local-authority/30UE,Private Sector HSG Renewal,1073,Communities,External Contractor,40198,Miscellaneous Expenses,5034,Ref 4678,16/06/2021,0157441,£128.00,Revenue,Mobility Care Services,70841,,
Chorley Borough Council,http://statistics.data.gov.uk/id/local-authority/30UE,Private Sector HSG Renewal,1073,Communities,External Contractor,40198,Miscellaneous Expenses,5034,Ref 4679,16/06/2021,0157441,£111.00,Revenue,Mobility Care Services,70841,,
Chorley Borough Council,http://statistics.data.gov.uk/id/local-authority/30UE,Capital,Capital,Policy & Governance,Main Contractor,03007,Capital Expenditure,Capital,acquisition of ADDRESS REDACTED,02/06/2021,0154990,"£167,250.00",Capital,NAME REDACTED,81996,,
Chorley Borough Council,http://statistics.data.gov.uk/id/local-authority/30UE,Precepts and Collection Fund,Precept,Customer & Digital,Refunds,02021,Precepts & Collection Fund,Precept,exors of NAME REDACTED,02/06/2021,0154751,"£2,192.12",Revenue,NAME REDACTED,81955,,
Chorley Borough Council,http://statistics.data.gov.uk/id/local-authority/30UE,Development Control,1091,Customer & Digital,Planning Application Fees,60149,Customer & Client Receipts,5064,Application returned,30/06/2021,0158101,£924.00,Revenue,NAME REDACTED,82904,,
Chorley Borough Council,http://statistics.data.gov.uk/id/local-authority/30UE,Economic Development,1096,Commercial & Property,Promotional Expenses,40159,Miscellaneous Expenses,5034,balloons,30/06/2021,0157989,£250.00,Revenue,NAME REDACTED,72655,,
Chorley Borough Council,http://statistics.data.gov.uk/id/local-authority/30UE,Homelessness,1075,Communities,Service Fees,40056,Services,5027,payment due to damage caused by tenant,23/06/2021,0157987,£350.00,Revenue,NAME REDACTED,82326,,
Chorley Borough Council,http://statistics.data.gov.uk/id/local-authority/30UE,Tourism,1039,Policy & Governance,Miscellaneous Expenses,40200,Miscellaneous Expenses,5034,"Prepared for NAME REDACTED, Vinyl Wristbands, Printed, Purple/Pink/Blue/Silver/Green/White",09/06/2021,0157108,"£2,915.00",Revenue,Munco International T/A Adband,60837,,
Chorley Borough Council,http://statistics.data.gov.uk/id/local-authority/30UE,Unapportionable Central OHeads,1009,Chief Executive,Stationery,40050,"Printing, Stationery & General",5026,"2 PART NCR SUNDRY RECEIPT BOOKS - 2 RECEIPTS TO VIEW, Size: 160 X 130. Artwork: From Existing artwork",30/06/2021,0158318,£277.00,Revenue,N B Colour Print Ltd,17917,,
Chorley Borough Council,http://statistics.data.gov.uk/id/local-authority/30UE,Service Management & Support,1009,Customer & Digital,Refuse Collection,20037,Cleaning and Domestic Supplies,5012,Hazardous waste removal and disposal.,30/06/2021,0158218,£664.00,Revenue,Neales Waste Management,17583,,
Chorley Borough Council,http://statistics.data.gov.uk/id/local-authority/30UE,Business Support,1095,Commercial & Property,Security Service,40062,Services,5027,"Evening Site Security Services at Market Walk Shopping Centre, 5pm-midnight, 7 days a week. 1st April 2021-End March 2022",16/06/2021,0156853,£575.75,Revenue,New Concept Security NW Ltd T/A New Concept Goup,80488,,
Chorley Borough Council,http://statistics.data.gov.uk/id/local-authority/30UE,Business Support,1095,Commercial & Property,Security Service,40062,Services,5027,"Evening Site Security Services at Market Walk Shopping Centre, 5pm-midnight, 7 days a week. 1st April 2021-End March 2022",04/06/2021,0156923,£552.25,Revenue,New Concept Security NW Ltd T/A New Concept Goup,80488,,
Chorley Borough Council,http://statistics.data.gov.uk/id/local-authority/30UE,Business Support,1095,Commercial & Property,Security Service,40062,Services,5027,"Evening Site Security Services at Market Walk Shopping Centre, 5pm-midnight, 7 days a week. 1st April 2021-End March 2022",09/06/2021,0157187,£575.75,Revenue,New Concept Security NW Ltd T/A New Concept Goup,80488,,
Chorley Borough Council,http://statistics.data.gov.uk/id/local-authority/30UE,Business Support,1095,Commercial & Property,Security Service,40062,Services,5027,"Evening Site Security Services at Market Walk Shopping Centre, 5pm-midnight, 7 days a week. 1st April 2021-End March 2022",30/06/2021,0157976,£575.75,Revenue,New Concept Security NW Ltd T/A New Concept Goup,80488,,
Chorley Borough Council,http://statistics.data.gov.uk/id/local-authority/30UE,Business Support,1095,Commercial & Property,Security Service,40062,Services,5027,"Evening Site Security Services at Market Walk Shopping Centre, 5pm-midnight, 7 days a week. 1st April 2021-End March 2022",30/06/2021,0158129,£575.75,Revenue,New Concept Security NW Ltd T/A New Concept Goup,80488,,
Chorley Borough Council,http://statistics.data.gov.uk/id/local-authority/30UE,Service Management & Support,1009,Customer & Digital,Supplies-Grounds Maintenance,40025,"Equipment, Furniture & Materia",5023,"Evening Site Security Services at Market Walk Shopping Centre, 5pm-midnight, 7 days a week. 1st April 2021-End March 2022",04/06/2021,0156710,£902.00,Revenue,Nomix Enviro Ltd,82223,,
Chorley Borough Council,http://statistics.data.gov.uk/id/local-authority/30UE,Service Management & Support,1009,Customer & Digital,Supplies-Grounds Maintenance,40025,"Equipment, Furniture & Materia",5023,1x Universal Cleaner – 5 Litres @ £24.10,04/06/2021,0156710,£24.10,Revenue,Nomix Enviro Ltd,82223,,
Chorley Borough Council,http://statistics.data.gov.uk/id/local-authority/30UE,Service Management & Support,1009,Customer & Digital,Supplies-Grounds Maintenance,40025,"Equipment, Furniture & Materia",5023,1x Nomix Dual – Box of 4 x 750ml @ £80.00,04/06/2021,0156710,£80.00,Revenue,Nomix Enviro Ltd,82223,,
Chorley Borough Council,http://statistics.data.gov.uk/id/local-authority/30UE,Service Management & Support,1009,Customer & Digital,Supplies-Grounds Maintenance,40025,"Equipment, Furniture & Materia",5023,1x Universal Cleaner – Box of 4 x 750ml @ £26.00,04/06/2021,0156710,£26.00,Revenue,Nomix Enviro Ltd,82223,,
Chorley Borough Council,http://statistics.data.gov.uk/id/local-authority/30UE,Service Management & Support,1009,Customer & Digital,Supplies-Grounds Maintenance,40025,"Equipment, Furniture & Materia",5023,carriage,04/06/2021,0156710,£32.00,Revenue,Nomix Enviro Ltd,82223,,
Chorley Borough Council,http://statistics.data.gov.uk/id/local-authority/30UE,Service Management & Support,1009,Customer & Digital,Supplies-Grounds Maintenance,40025,"Equipment, Furniture & Materia",5023,4x Nomix Dual – 5 Litres @ £112.75,16/06/2021,0157355,£451.00,Revenue,Nomix Enviro Ltd,82223,,
Chorley Borough Council,http://statistics.data.gov.uk/id/local-authority/30UE,Service Management & Support,1009,Customer & Digital,Supplies-Grounds Maintenance,40025,"Equipment, Furniture & Materia",5023,1x Nomix Dual – Box of 4 x 750ml @ £80.00,16/06/2021,0157355,£80.00,Revenue,Nomix Enviro Ltd,82223,,
Chorley Borough Council,http://statistics.data.gov.uk/id/local-authority/30UE,Business Support,1095,Commercial & Property,Refreshments,40036,Catering,5024,refreshments order,25/06/2021,0158113,£340.47,Revenue,North West Tea FM Solutions,78255,,
Chorley Borough Council,http://statistics.data.gov.uk/id/local-authority/30UE,Business Support,1095,Commercial & Property,Refreshments,40036,Catering,5024,vat item,25/06/2021,0158113,£6.99,Revenue,North West Tea FM Solutions,78255,,
Chorley Borough Council,http://statistics.data.gov.uk/id/local-authority/30UE,Central Support Services,1009,Customer & Digital,Other Fees,40212,Miscellaneous Expenses,5034,"Legal Deeds Scanning - 280 boxes Prepare, scan and index, batches 2 and 3. 156 boxes",09/06/2021,0156360,"£20,280.00",Revenue,Northgate Public Services (UK) Limited,18285,,
Chorley Borough Council,http://statistics.data.gov.uk/id/local-authority/30UE,Elections,1012,Customer & Digital,Hire Of Vehicles and Plant,30028,Contrct Hire & Operating Lease,5018,"Ford Transit SWB custom 22 day hire, Delivered to Bengal street depot Friday am 23/04/2021, Collection 3pm 14/05/2021",04/06/2021,0156900,£395.76,Revenue,Northgate Vehicle Hire (NW) Ltd,17360,,
Chorley Borough Council,http://statistics.data.gov.uk/id/local-authority/30UE,Elections,1012,Customer & Digital,Hire Of Vehicles and Plant,30028,Contrct Hire & Operating Lease,5018,"Ford Transit SWB custom 22 day hire, Delivered to Bengal street depot Friday am 23/04/2021, Collection 3pm 14/05/2021",04/06/2021,0156900,£369.96,Revenue,Northgate Vehicle Hire (NW) Ltd,17360,,
Chorley Borough Council,http://statistics.data.gov.uk/id/local-authority/30UE,Corporate Management,1008,Customer & Digital,Miscellaneous Expenses,40200,Miscellaneous Expenses,5034,"Hire NU19 AXX, NX17 TGU x129 days, NV70 RVX x128 days, NU68 HJA, GJ68 RXP x132 days, NV70 FBX, NV67 KVSx167 days",09/06/2021,0156987,£520.24,Revenue,Northgate Vehicle Hire (NW) Ltd,17360,,
Chorley Borough Council,http://statistics.data.gov.uk/id/local-authority/30UE,Corporate Management,1008,Customer & Digital,Hire Of Vehicles and Plant,30028,Contrct Hire & Operating Lease,5018,"vehicle hire, 3.5 ton Luton Van with tail lift (April 2021 - 31 March 2022)",16/06/2021,0157354,£594.16,Revenue,Northgate Vehicle Hire (NW) Ltd,17360,,
Chorley Borough Council,http://statistics.data.gov.uk/id/local-authority/30UE,Corporate Management,1008,Customer & Digital,Miscellaneous Expenses,40200,Miscellaneous Expenses,5034,"Hire NU19 AXX, NX17 TGU x129 days, NV70 RVX x128 days, NU68 HJA, GJ68 RXP x132 days, NV70 FBX, NV67 KVSx167 days",30/06/2021,0158221,£520.24,Revenue,Northgate Vehicle Hire (NW) Ltd,17360,,
Chorley Borough Council,http://statistics.data.gov.uk/id/local-authority/30UE,Corporate Management,1008,Commercial & Property,Miscellaneous Expenses,40200,Miscellaneous Expenses,5034,"Botany Bay - covid toilets,  STD PORTABLE TOILET, Hire period: 24th May - 28th June 2021",16/06/2021,0157350,£500.00,Revenue,Northwest Portable Toilet Company Limited,81866,,
Chorley Borough Council,http://statistics.data.gov.uk/id/local-authority/30UE,Unapportionable Central OHeads,1009,Commercial & Property,Electricity,20013,Energy Costs,5006,annual charge,02/06/2021,0155615,£215.00,Revenue,Npower Commercial Gas,16814,,
Chorley Borough Council,http://statistics.data.gov.uk/id/local-authority/30UE,Unapportionable Central OHeads,1009,Commercial & Property,Electricity,20013,Energy Costs,5006,annual charge,02/06/2021,0155615,£215.00,Revenue,Npower Commercial Gas,16814,,
Chorley Borough Council,http://statistics.data.gov.uk/id/local-authority/30UE,Unapportionable Central OHeads,1009,Commercial & Property,Electricity,20013,Energy Costs,5006,annual charge,02/06/2021,0155615,£215.00,Revenue,Npower Commercial Gas,16814,,
Chorley Borough Council,http://statistics.data.gov.uk/id/local-authority/30UE,Democratic Represent and  Mgnt,1007,Commercial & Property,Electricity,20013,Energy Costs,5006,annual charge,02/06/2021,0155615,£215.00,Revenue,Npower Commercial Gas,16814,,
Chorley Borough Council,http://statistics.data.gov.uk/id/local-authority/30UE,Parking Services,1066,Commercial & Property,External Contractors,50008,Private Contractors,5042,"Off street car park enforcement, cash collection, cash counting facilities, third party bulk cash collections, 01.04.21 - 31.10.21",30/06/2021,0156988,"£4,724.63",Revenue,NSL Limited,67253,,
Chorley Borough Council,http://statistics.data.gov.uk/id/local-authority/30UE,Democratic Represent and  Mgnt,1007,Customer & Digital,Supplies-Grounds Maintenance,40025,"Equipment, Furniture & Materia",5023,Supply RAF feature & Poppy feature,30/06/2021,0155600,£600.00,Revenue,Nuchoice Limited,75454,,
Chorley Borough Council,http://statistics.data.gov.uk/id/local-authority/30UE,Service Management & Support,1009,Customer & Digital,Supplies-Grounds Maintenance,40025,"Equipment, Furniture & Materia",5023,"25 x Clean, sand, treat memorial benches at Astley Park",18/06/2021,0157357,£500.00,Revenue,Nuchoice Limited,75454,,
Chorley Borough Council,http://statistics.data.gov.uk/id/local-authority/30UE,Planning Policy,1092,Communities,Operational Employees Salaries,10000,Direct Employee Expenses,5001,Temporary Agency Staff (Standard Hours) for work on the Central Lancashire Local Plan,02/06/2021,0156910,"£1,667.50",Revenue,Park Avenue Recruitment Ltd,82305,,
Chorley Borough Council,http://statistics.data.gov.uk/id/local-authority/30UE,Planning Policy,1092,Communities,Operational Employees Salaries,10000,Direct Employee Expenses,5001,Temporary Agency Staff (Standard Hours) for work on the Central Lancashire Local Plan,02/06/2021,0156914,"£1,561.76",Revenue,Park Avenue Recruitment Ltd,82305,,
Chorley Borough Council,http://statistics.data.gov.uk/id/local-authority/30UE,Planning Policy,1092,Communities,Operational Employees Salaries,10000,Direct Employee Expenses,5001,Temporary Agency Staff (Standard Hours) for work on the Central Lancashire Local Plan,02/06/2021,0156915,"£1,667.50",Revenue,Park Avenue Recruitment Ltd,82305,,
Chorley Borough Council,http://statistics.data.gov.uk/id/local-authority/30UE,Planning Policy,1092,Communities,Operational Employees Salaries,10000,Direct Employee Expenses,5001,Temporary Agency Staff (Standard Hours) for work on the Central Lancashire Local Plan,02/06/2021,0156916,"£1,299.50",Revenue,Park Avenue Recruitment Ltd,82305,,
Chorley Borough Council,http://statistics.data.gov.uk/id/local-authority/30UE,Planning Policy,1092,Communities,Operational Employees Salaries,10000,Direct Employee Expenses,5001,Temporary Agency Staff (Standard Hours) for work on the Central Lancashire Local Plan,09/06/2021,0157035,"£1,640.02",Revenue,Park Avenue Recruitment Ltd,82305,,
Chorley Borough Council,http://statistics.data.gov.uk/id/local-authority/30UE,Planning Policy,1092,Communities,Operational Employees Salaries,10000,Direct Employee Expenses,5001,Temporary Agency Staff (Standard Hours) for work on the Central Lancashire Local Plan,09/06/2021,0157036,"£1,667.50",Revenue,Park Avenue Recruitment Ltd,82305,,
Chorley Borough Council,http://statistics.data.gov.uk/id/local-authority/30UE,Planning Policy,1092,Communities,Operational Employees Salaries,10000,Direct Employee Expenses,5001,Temporary Agency Staff (Standard Hours) for work on the Central Lancashire Local Plan,16/06/2021,0157422,"£1,345.50",Revenue,Park Avenue Recruitment Ltd,82305,,
Chorley Borough Council,http://statistics.data.gov.uk/id/local-authority/30UE,Planning Policy,1092,Communities,Operational Employees Salaries,10000,Direct Employee Expenses,5001,Temporary Agency Staff (Standard Hours) for work on the Central Lancashire Local Plan,16/06/2021,0157428,£734.44,Revenue,Park Avenue Recruitment Ltd,82305,,
Chorley Borough Council,http://statistics.data.gov.uk/id/local-authority/30UE,Planning Policy,1092,Communities,Operational Employees Salaries,10000,Direct Employee Expenses,5001,Temporary Agency Staff (Standard Hours) for work on the Central Lancashire Local Plan,23/06/2021,0158114,"£1,506.50",Revenue,Park Avenue Recruitment Ltd,82305,,
Chorley Borough Council,http://statistics.data.gov.uk/id/local-authority/30UE,Planning Policy,1092,Communities,Operational Employees Salaries,10000,Direct Employee Expenses,5001,Temporary Agency Staff (Standard Hours) for work on the Central Lancashire Local Plan,25/06/2021,0158126,"£1,667.50",Revenue,Park Avenue Recruitment Ltd,82305,,
Chorley Borough Council,http://statistics.data.gov.uk/id/local-authority/30UE,Planning Policy,1092,Communities,Operational Employees Salaries,10000,Direct Employee Expenses,5001,Temporary Agency Staff (Standard Hours) for work on the Central Lancashire Local Plan,25/06/2021,0158127,"£1,411.26",Revenue,Park Avenue Recruitment Ltd,82305,,
Chorley Borough Council,http://statistics.data.gov.uk/id/local-authority/30UE,Planning Policy,1092,Communities,Operational Employees Salaries,10000,Direct Employee Expenses,5001,Temporary Agency Staff (Standard Hours) for work on the Central Lancashire Local Plan,25/06/2021,0158147,"£1,143.37",Revenue,Park Avenue Recruitment Ltd,82305,,
Chorley Borough Council,http://statistics.data.gov.uk/id/local-authority/30UE,Planning Policy,1092,Communities,Operational Employees Salaries,10000,Direct Employee Expenses,5001,Temporary Agency Staff (Standard Hours) for work on the Central Lancashire Local Plan,30/06/2021,0158285,"£1,667.50",Revenue,Park Avenue Recruitment Ltd,82305,,
Chorley Borough Council,http://statistics.data.gov.uk/id/local-authority/30UE,Planning Policy,1092,Communities,Operational Employees Salaries,10000,Direct Employee Expenses,5001,Temporary Agency Staff (Standard Hours) for work on the Central Lancashire Local Plan,30/06/2021,0158416,"£1,350.63",Revenue,Park Avenue Recruitment Ltd,82305,,
Chorley Borough Council,http://statistics.data.gov.uk/id/local-authority/30UE,Corporate Management,1008,Communities,Miscellaneous Expenses,40200,Miscellaneous Expenses,5034,"Parr Hall Hotel Fees NAME REDACTED, Monday 6th July to Sunday 12th July inclusive, 7 nights @ £50.00 per night",23/06/2021,0157467,£100.00,Revenue,Parr Hall Farm,76175,,
Chorley Borough Council,http://statistics.data.gov.uk/id/local-authority/30UE,Corporate Management,1008,Communities,Miscellaneous Expenses,40200,Miscellaneous Expenses,5034,"Parr Hall Hotel Fees NAME REDACTED, Monday 6th July to Sunday 12th July inclusive, 7 nights @ £50.00 per night",23/06/2021,0157467,£250.00,Revenue,Parr Hall Farm,76175,,
Chorley Borough Council,http://statistics.data.gov.uk/id/local-authority/30UE,Corporate Management,1008,Communities,Miscellaneous Expenses,40200,Miscellaneous Expenses,5034,"Parr Hall Hotel Fees NAME REDACTED, Monday 6th July to Sunday 12th July inclusive, 7 nights @ £50.00 per night",23/06/2021,0157468,£350.00,Revenue,Parr Hall Farm,76175,,
Chorley Borough Council,http://statistics.data.gov.uk/id/local-authority/30UE,Democratic Represent and  Mgnt,1007,Communities,Cleaning Materials,40019,"Equipment, Furniture & Materia",5023,"Blue Roll x12, Cleaner Disinfectant x4, Refuse Bags x1, Mirror & Glass Cleaner x4, Bleach x2, Toilet Descaler x6, Lemon Gel x8",11/06/2021,0157223,£376.19,Revenue,Pattersons Holdings (Bristol),77537,,
Chorley Borough Council,http://statistics.data.gov.uk/id/local-authority/30UE,Economic Development,1096,Commercial & Property,Cleaning Materials,40019,"Equipment, Furniture & Materia",5023,Please supply cleaning products as per email:,23/06/2021,0157997,£295.61,Revenue,Pattersons Holdings (Bristol),77537,,
Chorley Borough Council,http://statistics.data.gov.uk/id/local-authority/30UE,Unapportionable Central OHeads,1009,Policy & Governance,Exhibitions & Special Events,40158,Miscellaneous Expenses,5034,Staging for display,23/06/2021,0157990,£725.00,Revenue,Paul K Sound & Vision,16607,,
Chorley Borough Council,http://statistics.data.gov.uk/id/local-authority/30UE,Unapportionable Central OHeads,1009,Policy & Governance,Exhibitions & Special Events,40158,Miscellaneous Expenses,5034,TO SUPPLY KITCHEN DEMONSTRATION SET FOR TWO DAYS INCLUDING OVERNIGHT DIISMANTLE AND REBUILD,23/06/2021,0157991,"£1,500.00",Revenue,Paul K Sound & Vision,16607,,
Chorley Borough Council,http://statistics.data.gov.uk/id/local-authority/30UE,Unapportionable Central OHeads,1009,Policy & Governance,HR Approved Occ Health Fees,15201,Indirect Employee Expenses,5002,Occupational Health Fees for April 2021,09/06/2021,0157132,£356.00,Revenue,People Asset Management Limited,76487,,
Chorley Borough Council,http://statistics.data.gov.uk/id/local-authority/30UE,Unapportionable Central OHeads,1009,Policy & Governance,HR Approved Occ Health Fees,15201,Indirect Employee Expenses,5002,no vat,09/06/2021,0157132,£360.00,Revenue,People Asset Management Limited,76487,,
Chorley Borough Council,http://statistics.data.gov.uk/id/local-authority/30UE,Unapportionable Central OHeads,1009,Policy & Governance,HR Approved Occ Health Fees,15201,Indirect Employee Expenses,5002,Occupational Health Charges for February 2021,09/06/2021,0157134,"£1,925.00",Revenue,People Asset Management Limited,76487,,
Chorley Borough Council,http://statistics.data.gov.uk/id/local-authority/30UE,Unapportionable Central OHeads,1009,Policy & Governance,HR Approved Occ Health Fees,15201,Indirect Employee Expenses,5002,vat items,09/06/2021,0157134,£138.75,Revenue,People Asset Management Limited,76487,,
Chorley Borough Council,http://statistics.data.gov.uk/id/local-authority/30UE,Unapportionable Central OHeads,1009,Policy & Governance,HR Approved Occ Health Fees,15201,Indirect Employee Expenses,5002,Occupational Health Fees for March 2021,09/06/2021,0157135,£494.75,Revenue,People Asset Management Limited,76487,,
Chorley Borough Council,http://statistics.data.gov.uk/id/local-authority/30UE,Central Support Services,1009,Commercial & Property,Professional Fees,40063,Services,5027,Extension to professional services,11/06/2021,0157028,"£5,200.00",Revenue,Perfect Circle JV Ltd,76438,,
Chorley Borough Council,http://statistics.data.gov.uk/id/local-authority/30UE,Corporate Management,1008,Customer & Digital,Printing,40043,"Printing, Stationery & General",5026,Garden waste collection subscription permits 2021-22,09/06/2021,0156707,"£20,677.02",Revenue,Permiserv Ltd,77202,,
Chorley Borough Council,http://statistics.data.gov.uk/id/local-authority/30UE,Corporate Management,1008,Customer & Digital,Printing,40043,"Printing, Stationery & General",5026,Garden waste collection subscription permits 2021-22,18/06/2021,0157975,"£1,463.28",Revenue,Permiserv Ltd,77202,,
Chorley Borough Council,http://statistics.data.gov.uk/id/local-authority/30UE,Central Support Services,1009,Customer & Digital,IT Software - Annual Licences,40101,Communication and Computing,5028,cancelled by credit CN/030950,09/06/2021,0156856,"£54,196.06",Revenue,Phoenix Software Ltd,17046,,
Chorley Borough Council,http://statistics.data.gov.uk/id/local-authority/30UE,Central Support Services,1009,Customer & Digital,IT Software - Annual Licences,40101,Communication and Computing,5028,"Visio x10, project plan3 x10, phone system, vsprosub, windows server data center core x 12, windows remote desktop services",09/06/2021,0156870,"£12,243.48",Revenue,Phoenix Software Ltd,17046,,
Chorley Borough Council,http://statistics.data.gov.uk/id/local-authority/30UE,Central Support Services,1009,Customer & Digital,IT Software - Annual Licences,40101,Communication and Computing,5028,"Visio x10, project plan3 x10, phone system, vsprosub, windows server data center core x 12, windows remote desktop services",09/06/2021,0156871,"£46,153.89",Revenue,Phoenix Software Ltd,17046,,
Chorley Borough Council,http://statistics.data.gov.uk/id/local-authority/30UE,Central Support Services,1009,Communities,Veterinary Fees Etc,40074,Services,5027,Vet Fees 2021/22,09/06/2021,0156992,£383.33,Revenue,Pinewood Veterinary Practice,16395,,
Chorley Borough Council,http://statistics.data.gov.uk/id/local-authority/30UE,Development Control,1091,Customer & Digital,Professional Fees,40063,Services,5027,"Planning Enforcement Services, 18 April 2021 to March 2022",09/06/2021,0156973,"£1,406.00",Revenue,Planning and PACE Solutions Ltd,82083,,
Chorley Borough Council,http://statistics.data.gov.uk/id/local-authority/30UE,Development Control,1091,Customer & Digital,Professional Fees,40063,Services,5027,"Planning Enforcement Services, 18 April 2021 to March 2022",09/06/2021,0156993,"£1,444.00",Revenue,Planning and PACE Solutions Ltd,82083,,
Chorley Borough Council,http://statistics.data.gov.uk/id/local-authority/30UE,Development Control,1091,Customer & Digital,General Subscriptions,40146,Grants and Subscriptions,5031,Planning Jungle Membership 01/06/2021 - 31 May 2022,04/06/2021,0156964,£300.00,Revenue,Planning Jungle Limited,59686,,
Chorley Borough Council,http://statistics.data.gov.uk/id/local-authority/30UE,Development Control,1091,Customer & Digital,Planning Application Fees,60149,Customer & Client Receipts,5064,Hope Cottage,09/06/2021,0157052,"£7,392.00",Revenue,Planning Portal Ltd,77808,,
Chorley Borough Council,http://statistics.data.gov.uk/id/local-authority/30UE,Corporate Management,1008,Chief Executive,Other Contributions,40145,Grants and Subscriptions,5031,2020/21 Contribution to LRF Admin Post - £859.53,23/06/2021,0155588,£859.53,Revenue,Police & Crime Commissioner,17548,,
Chorley Borough Council,http://statistics.data.gov.uk/id/local-authority/30UE,Precepts and Collection Fund,Precepts,Policy & Governance,LPA Precept,02010,Precepts & Collection Fund,Precept,PCC Council Tax Precept,02/06/2021,0155632,"£849,149.49",Revenue,Police & Crime Commissioner,17438,,
Chorley Borough Council,http://statistics.data.gov.uk/id/local-authority/30UE,Precepts and Collection Fund,Precepts,Policy & Governance,LPA Precept,02010,Precepts & Collection Fund,Precept,PCC Council Tax Precept,02/06/2021,0156947,"£849,159.00",Revenue,Police & Crime Commissioner,17438,,
Chorley Borough Council,http://statistics.data.gov.uk/id/local-authority/30UE,Corporate Management,1008,Chief Executive,Other Contributions,40145,Grants and Subscriptions,5031,LRF Secretary Contribution 2021/22 Value - £861.94,23/06/2021,0156994,£861.94,Revenue,Police & Crime Commissioner,17548,,
Chorley Borough Council,http://statistics.data.gov.uk/id/local-authority/30UE,Capital,Capital,Commercial & Property,Other Capital Related Fees,03024,Capital Expenditure,Capital,Main & Side entrance signage (illuminated),04/06/2021,0155466,"£14,546.14",Capital,Poppy Signs Ltd,21898,,
Chorley Borough Council,http://statistics.data.gov.uk/id/local-authority/30UE,Corporate Management,1008,Policy & Governance,Training Course Fees,17010,Indirect Employee Expenses,5002,2 x Interview Skills Training sessions 1 June 2021,25/06/2021,0157972,£400.00,Revenue,Potential Unearthed,22243,,
Chorley Borough Council,http://statistics.data.gov.uk/id/local-authority/30UE,Democratic Represent and  Mgnt,1007,Commercial & Property,Performing Rights Society Fees,40148,Grants and Subscriptions,5031,backgroundmusic,23/06/2021,0158012,"£1,728.19",Revenue,PPL PRS Ltd,77455,,
Chorley Borough Council,http://statistics.data.gov.uk/id/local-authority/30UE,Elections,1012,Policy & Governance,Printing,40043,"Printing, Stationery & General",5026,Borough Ballot books as per order acknowledgement reference 8008,18/06/2021,0157423,"£10,135.72",Revenue,Print Image Network,21171,,
Chorley Borough Council,http://statistics.data.gov.uk/id/local-authority/30UE,Elections,1012,Policy & Governance,Printing,40043,"Printing, Stationery & General",5026,proof amend requests,18/06/2021,0157423,£120.00,Revenue,Print Image Network,21171,,
Chorley Borough Council,http://statistics.data.gov.uk/id/local-authority/30UE,Elections,1012,Policy & Governance,Printing,40043,"Printing, Stationery & General",5026,Ballot Books for Lancashire County Council Elections - as per your order quotation 8009,18/06/2021,0157424,"£10,083.83",Revenue,Print Image Network,21171,,
Chorley Borough Council,http://statistics.data.gov.uk/id/local-authority/30UE,Elections,1012,Policy & Governance,Printing,40043,"Printing, Stationery & General",5026,proof amend request,18/06/2021,0157424,£135.00,Revenue,Print Image Network,21171,,
Chorley Borough Council,http://statistics.data.gov.uk/id/local-authority/30UE,Elections,1012,Policy & Governance,Printing,40043,"Printing, Stationery & General",5026,Ballot Books for PCC Elections - as per order acknowledgement 8010,16/06/2021,0157425,"£7,911.90",Revenue,Print Image Network,21171,,
Chorley Borough Council,http://statistics.data.gov.uk/id/local-authority/30UE,Elections,1012,Policy & Governance,Printing,40043,"Printing, Stationery & General",5026,2021 combined Borough/LCC postal ballot packs plus spares for re issue,25/06/2021,0157430,"£21,829.63",Revenue,Print Image Network,21171,,
Chorley Borough Council,http://statistics.data.gov.uk/id/local-authority/30UE,Elections,1012,Policy & Governance,Printing,40043,"Printing, Stationery & General",5026,2021 PCC postal ballot packs plus spare re issues - as per quote reference 7902,16/06/2021,0157431,"£19,922.01",Revenue,Print Image Network,21171,,
Chorley Borough Council,http://statistics.data.gov.uk/id/local-authority/30UE,Elections,1012,Policy & Governance,Printing,40043,"Printing, Stationery & General",5026,Parish postal vote packs 2021,30/06/2021,0158279,"£1,490.00",Revenue,Print Image Network,21171,,
Chorley Borough Council,http://statistics.data.gov.uk/id/local-authority/30UE,Interest Payable on Debt,1020,Policy & Governance,Interest Payable,09009,Interest Payments,5067,Interest repayment 2020/21,02/06/2021,0155450,"£80,283.75",Revenue,Public Works Loans Board,21480,,
Chorley Borough Council,http://statistics.data.gov.uk/id/local-authority/30UE,Interest Payable on Debt,1020,Policy & Governance,Interest Payable,09009,Interest Payments,5067,LN509178,02/06/2021,0156948,"£26,202.50",Revenue,Public Works Loans Board,21480,,
Chorley Borough Council,http://statistics.data.gov.uk/id/local-authority/30UE,Democratic Represent and  Mgnt,1007,Communities,Miscellaneous Expenses,40200,Miscellaneous Expenses,5034,"May School Transport @ 40 per School, BSP 12 Schools, ASLC 59 Schools",18/06/2021,0157968,"£2,360.00",Revenue,R S Tyrer Ltd,16255,,
Chorley Borough Council,http://statistics.data.gov.uk/id/local-authority/30UE,Democratic Represent and  Mgnt,1007,Communities,Miscellaneous Expenses,40200,Miscellaneous Expenses,5034,"May School Transport @ 40 per School, BSP 12 Schools, ASLC 59 Schools",18/06/2021,0157968,£480.00,Revenue,R S Tyrer Ltd,16255,,
Chorley Borough Council,http://statistics.data.gov.uk/id/local-authority/30UE,Capital,Capital,Commercial & Property,Main Contractor,03007,Capital Expenditure,Capital,Construction of Whittle GP surgery,09/06/2021,0156471,"£141,928.97",Capital,Rayner Rowen Construction Limited,80915,,
Chorley Borough Council,http://statistics.data.gov.uk/id/local-authority/30UE,Capital,Capital,Commercial & Property,Main Contractor,03007,Capital Expenditure,Capital,Construction of Whittle GP surgery,23/06/2021,0157977,"£149,218.53",Capital,Rayner Rowen Construction Limited,80915,,
Chorley Borough Council,http://statistics.data.gov.uk/id/local-authority/30UE,Planning Policy,1092,Communities,HR Recruitment - Advertising,15300,Indirect Employee Expenses,5002,Job Adverts for Central Lancs Team vacancies,16/06/2021,0156999,"£2,000.00",Revenue,Redactive Publishing Ltd,21692,,
Chorley Borough Council,http://statistics.data.gov.uk/id/local-authority/30UE,Central Support Services,1009,Commercial & Property,Professional Fees,40063,Services,5027,Professional Services Rendered: The Woodlands Centre Southport Road Chorley,30/06/2021,0158167,"£2,850.00",Revenue,REFA - Robert E Fry & Associates LTD,82419,,
Chorley Borough Council,http://statistics.data.gov.uk/id/local-authority/30UE,Central Support Services,1009,Commercial & Property,Professional Fees,40063,Services,5027,Professional Services Rendered: The Woodlands Centre Southport Road Chorley,30/06/2021,0158226,"£5,930.00",Revenue,REFA - Robert E Fry & Associates LTD,82419,,
Chorley Borough Council,http://statistics.data.gov.uk/id/local-authority/30UE,Business Support,1095,Commercial & Property,General Repairs - Reactive,20004,Repairs Maintenance & Alts,5005,"8 Service Inspections for Mice, Rats including Call Outs, 2 Service Inspections for Pigeon Trapping Total £1880.80 +VAT",04/06/2021,0156576,£470.20,Revenue,Rentokil,76639,,
Chorley Borough Council,http://statistics.data.gov.uk/id/local-authority/30UE,Control Accounts,Control,Policy & Governance,General Balances,00100,Balance Sheet,Balance,CCV vouchers,02/06/2021,0153963,"£1,130.00",Revenue,Reward Gateway (UK) Ltd,66814,,
Chorley Borough Council,http://statistics.data.gov.uk/id/local-authority/30UE,Control Accounts,Control,Policy & Governance,General Balances,00100,Balance Sheet,Balance,CCV vouchers,02/06/2021,0155197,"£1,130.00",Revenue,Reward Gateway (UK) Ltd,66814,,
Chorley Borough Council,http://statistics.data.gov.uk/id/local-authority/30UE,Control Accounts,Control,Policy & Governance,General Balances,00100,Balance Sheet,Balance,3 may 2021 vouchers,02/06/2021,0156122,"£1,042.00",Revenue,Reward Gateway (UK) Ltd,66814,,
Chorley Borough Council,http://statistics.data.gov.uk/id/local-authority/30UE,Control Accounts,Control,Policy & Governance,General Balances,00100,Balance Sheet,Balance,Childcare vouchers,28/06/2021,0157096,£972.00,Revenue,Reward Gateway (UK) Ltd,66814,,
Chorley Borough Council,http://statistics.data.gov.uk/id/local-authority/30UE,Non Domestic Rates Redistribut,,Policy & Governance,Tariff to Business Rates Pool,49002,Expenditure not in NCOS,,Lancs Bus Rates Pool,30/06/2021,0158099,"£2,662.08",Revenue,Ribble Valley Borough Council,77109,,
Chorley Borough Council,http://statistics.data.gov.uk/id/local-authority/30UE,Non Domestic Rates Redistribut,,Policy & Governance,Tariff to Business Rates Pool,49002,Expenditure not in NCOS,,Lancs Bus Rates Pool,02/06/2021,0155485,"£520,258.00",Revenue,Ribble Valley Borough Council DIRECT DEBIT ONLY,21100,,
Chorley Borough Council,http://statistics.data.gov.uk/id/local-authority/30UE,Non Domestic Rates Redistribut,,Policy & Governance,Tariff to Business Rates Pool,49002,Expenditure not in NCOS,,Lancs Bus Rates Pool,02/06/2021,0156908,"£585,290.00",Revenue,Ribble Valley Borough Council DIRECT DEBIT ONLY,21100,,
Chorley Borough Council,http://statistics.data.gov.uk/id/local-authority/30UE,Non Domestic Rates Redistribut,,Policy & Governance,Tariff to Business Rates Pool,49002,Expenditure not in NCOS,,Lancs Bus Rates Pool,28/06/2021,0158157,"£585,290.00",Revenue,Ribble Valley Borough Council DIRECT DEBIT ONLY,21100,,
Chorley Borough Council,http://statistics.data.gov.uk/id/local-authority/30UE,Central Support Services,1009,Commercial & Property,Consultants` Fees,40077,Services,5027,Provision of Project Management & Quantity Surveying Services on the Tatton Regeneration scheme,02/06/2021,0156795,"£8,535.00",Revenue,Rider Levett Bucknall,67527,,
Chorley Borough Council,http://statistics.data.gov.uk/id/local-authority/30UE,Central Support Services,1009,Commercial & Property,Consultants` Fees,40077,Services,5027,Provision of Project Management & Quantity Surveying Services on the Tatton Regeneration scheme,11/06/2021,0157201,"£8,535.00",Revenue,Rider Levett Bucknall,67527,,
Chorley Borough Council,http://statistics.data.gov.uk/id/local-authority/30UE,Central Support Services,1009,Commercial & Property,Professional Fees,40063,Services,5027,"Employers Agent & QS: Construction Stage, Rectification Period, Final Account",16/06/2021,0157211,"£4,193.25",Revenue,Rider Levett Bucknall,67527,,
Chorley Borough Council,http://statistics.data.gov.uk/id/local-authority/30UE,Service Management & Support,1009,Customer & Digital,Supplies-Grounds Maintenance,40025,"Equipment, Furniture & Materia",5023,20x 10Ltr Impact line marker paint @ 26.00each,02/06/2021,0156365,£520.00,Revenue,Rigby Taylor Ltd,16299,,
Chorley Borough Council,http://statistics.data.gov.uk/id/local-authority/30UE,Service Management & Support,1009,Customer & Digital,Supplies-Grounds Maintenance,40025,"Equipment, Furniture & Materia",5023,40 x 10Ltr Impact Line Marker Paint white @ 26.00each,11/06/2021,0157106,"£1,040.00",Revenue,Rigby Taylor Ltd,16299,,
Chorley Borough Council,http://statistics.data.gov.uk/id/local-authority/30UE,Service Management & Support,1009,Customer & Digital,Supplies-Grounds Maintenance,40025,"Equipment, Furniture & Materia",5023,20 x Trustee Amenity @ 27.00each,18/06/2021,0157434,£540.00,Revenue,Rigby Taylor Ltd,16299,,
Chorley Borough Council,http://statistics.data.gov.uk/id/local-authority/30UE,Central Support Services,1009,Commercial & Property,Professional Fees,40063,Services,5027,"Rightmove advertising for 12 months - 7-18 properties band, 6 months at £235pm, 6 months at £570pm",02/06/2021,0156746,£560.50,Revenue,Rightmove Group Ltd,77717,,
Chorley Borough Council,http://statistics.data.gov.uk/id/local-authority/30UE,Central Support Services,1009,Commercial & Property,Professional Fees,40063,Services,5027,"Rightmove advertising for 12 months - 7-18 properties band, 6 months at £235pm, 6 months at £570pm",30/06/2021,0158222,£570.00,Revenue,Rightmove Group Ltd,77717,,
Chorley Borough Council,http://statistics.data.gov.uk/id/local-authority/30UE,Capital,Capital,Customer & Digital,Other Contractor,03012,Capital Expenditure,Capital,IP Addresses,02/06/2021,0154221,£946.60,Capital,Ripe NCC,77888,,
Chorley Borough Council,http://statistics.data.gov.uk/id/local-authority/30UE,Economic Development,1096,Commercial & Property,Professional Fees,40063,Services,5027,Painting works at Chorley Covered Market as per prices submitted as part of the Covered Market Improvement works,09/06/2021,0156745,"£1,269.43",Revenue,RJ Clarke Painting Contractor Limited,80959,,
Chorley Borough Council,http://statistics.data.gov.uk/id/local-authority/30UE,Economic Development,1096,Commercial & Property,Professional Fees,40063,Services,5027,internal roof soffits & roof trusses,09/06/2021,0156745,"£5,581.38",Revenue,RJ Clarke Painting Contractor Limited,80959,,
Chorley Borough Council,http://statistics.data.gov.uk/id/local-authority/30UE,Economic Development,1096,Commercial & Property,Professional Fees,40063,Services,5027,Access hire,09/06/2021,0156745,"£1,076.40",Revenue,RJ Clarke Painting Contractor Limited,80959,,
Chorley Borough Council,http://statistics.data.gov.uk/id/local-authority/30UE,Capital,Capital,Commercial & Property,Other Capital Related Fees,03024,Capital Expenditure,Capital,Internal roller shutters door and frames,09/06/2021,0156745,"£4,120.12",Capital,RJ Clarke Painting Contractor Limited,80959,,
Chorley Borough Council,http://statistics.data.gov.uk/id/local-authority/30UE,Capital,Capital,Commercial & Property,Other Capital Related Fees,03024,Capital Expenditure,Capital,Internal lobbies,09/06/2021,0156745,"£1,913.40",Capital,RJ Clarke Painting Contractor Limited,80959,,
Chorley Borough Council,http://statistics.data.gov.uk/id/local-authority/30UE,Capital,Capital,Commercial & Property,Other Capital Related Fees,03024,Capital Expenditure,Capital,Plywood to new box gutter walkway,09/06/2021,0156745,"£1,383.00",Capital,RJ Clarke Painting Contractor Limited,80959,,
Chorley Borough Council,http://statistics.data.gov.uk/id/local-authority/30UE,Capital,Capital,Commercial & Property,Other Capital Related Fees,03024,Capital Expenditure,Capital,Variations: Painting to external pipework,09/06/2021,0156745,£110.00,Capital,RJ Clarke Painting Contractor Limited,80959,,
Chorley Borough Council,http://statistics.data.gov.uk/id/local-authority/30UE,Capital,Capital,Commercial & Property,Other Capital Related Fees,03024,Capital Expenditure,Capital,"Paint timber windows behind shutters to units no: 5, 6,7,8,10, 12, 26, 27 & 28",09/06/2021,0156745,"£1,072.00",Capital,RJ Clarke Painting Contractor Limited,80959,,
Chorley Borough Council,http://statistics.data.gov.uk/id/local-authority/30UE,Capital,Capital,Commercial & Property,Other Capital Related Fees,03024,Capital Expenditure,Capital,Internal & external samples generally,09/06/2021,0156745,£350.00,Capital,RJ Clarke Painting Contractor Limited,80959,,
Chorley Borough Council,http://statistics.data.gov.uk/id/local-authority/30UE,Capital,Capital,Commercial & Property,Other Capital Related Fees,03024,Capital Expenditure,Capital,Repaint side entrances - client change,09/06/2021,0156745,£261.00,Capital,RJ Clarke Painting Contractor Limited,80959,,
Chorley Borough Council,http://statistics.data.gov.uk/id/local-authority/30UE,Capital,Capital,Commercial & Property,Other Capital Related Fees,03024,Capital Expenditure,Capital,clean walkway canopy glazing and aluminium frame,09/06/2021,0156745,"£1,083.00",Capital,RJ Clarke Painting Contractor Limited,80959,,
Chorley Borough Council,http://statistics.data.gov.uk/id/local-authority/30UE,Capital,Capital,Commercial & Property,Other Capital Related Fees,03024,Capital Expenditure,Capital,Extra over walkway change in scope to paint steelwork and timer in lieu of plywood,09/06/2021,0156745,£470.00,Capital,RJ Clarke Painting Contractor Limited,80959,,
Chorley Borough Council,http://statistics.data.gov.uk/id/local-authority/30UE,Capital,Capital,Commercial & Property,Other Capital Related Fees,03024,Capital Expenditure,Capital,"Extra over internal works, internal windows, doors, sundry items",09/06/2021,0156745,£280.00,Capital,RJ Clarke Painting Contractor Limited,80959,,
Chorley Borough Council,http://statistics.data.gov.uk/id/local-authority/30UE,Capital,Capital,Commercial & Property,Other Capital Related Fees,03024,Capital Expenditure,Capital,Overtime working,09/06/2021,0156745,£960.00,Capital,RJ Clarke Painting Contractor Limited,80959,,
Chorley Borough Council,http://statistics.data.gov.uk/id/local-authority/30UE,Democratic Represent and  Mgnt,1007,Customer & Digital,Miscellaneous Expenses,40200,Miscellaneous Expenses,5034,"As per invoice #042, 2 Tractor and Tanker Pumps for 24 Hours, 2 Tractor and Tanker Pumps for 12 Hours",30/06/2021,0158068,"£3,000.00",Revenue,RJB Group Holdings LTD,82619,,
Chorley Borough Council,http://statistics.data.gov.uk/id/local-authority/30UE,Capital,Capital,Commercial & Property,Main Contractor,03007,Capital Expenditure,Capital,"Delivery of the Tatton regeneration scheme, All in accordance with the executed NEC Engineering & Construct Contract",09/06/2021,0157029,"£826,888.12",Capital,Robertson CE Limited,81176,,
Chorley Borough Council,http://statistics.data.gov.uk/id/local-authority/30UE,Elections,1012,Policy & Governance,Postages,40082,Communication and Computing,5028,Postal vote returns elections 6 May 2021,04/06/2021,0156963,"£3,582.98",Revenue,Royal Mail Group Plc,17522,,
Chorley Borough Council,http://statistics.data.gov.uk/id/local-authority/30UE,Elections,1012,Policy & Governance,Postages,40082,Communication and Computing,5028,Business reply service RRHA-KZCB-CAXA from April 2021,04/06/2021,0156967,£254.32,Revenue,Royal Mail Group Plc,17522,,
Chorley Borough Council,http://statistics.data.gov.uk/id/local-authority/30UE,Elections,1012,Policy & Governance,Postages,40082,Communication and Computing,5028,2nd issue of postal votes for 6 May elections - docket number 5`10559379,11/06/2021,0157188,£700.46,Revenue,Royal Mail Group Plc,17522,,
Chorley Borough Council,http://statistics.data.gov.uk/id/local-authority/30UE,Elections,1012,Policy & Governance,Postages,40082,Communication and Computing,5028,postal vote licence and timed delivery fee for elections 6 May 2021,11/06/2021,0157189,£882.65,Revenue,Royal Mail Group Plc,17522,,
Chorley Borough Council,http://statistics.data.gov.uk/id/local-authority/30UE,Elections,1012,Policy & Governance,Postages,40082,Communication and Computing,5028,mail out first batch of postal votes for May 2021 elections,11/06/2021,0157215,"£24,682.84",Revenue,Royal Mail Group Plc,17522,,
Chorley Borough Council,http://statistics.data.gov.uk/id/local-authority/30UE,Elections,1012,Policy & Governance,Postages,40082,Communication and Computing,5028,zero rated,11/06/2021,0157215,£32.00,Revenue,Royal Mail Group Plc,17522,,
Chorley Borough Council,http://statistics.data.gov.uk/id/local-authority/30UE,Unapportionable Central OHeads,1009,Chief Executive,Postages,40082,Communication and Computing,5028,Response Service Mail CHW 231,18/06/2021,0157961,£422.54,Revenue,Royal Mail Group Plc,17522,,
Chorley Borough Council,http://statistics.data.gov.uk/id/local-authority/30UE,Service Management & Support,1009,Chief Executive,Insurance Claims,40154,Miscellaneous Expenses,5034,Insurance,23/06/2021,0156950,£700.67,Revenue,Sam Bird Motorbodies,20116,,
Chorley Borough Council,http://statistics.data.gov.uk/id/local-authority/30UE,Unapportionable Central OHeads,1009,Policy & Governance,HR Approved Occ Health Fees,15201,Indirect Employee Expenses,5002,Weekend Incident Support Service on 15/16 May 2021,04/06/2021,0157070,£420.00,Revenue,Sarah Walsh,78412,,
Chorley Borough Council,http://statistics.data.gov.uk/id/local-authority/30UE,Unapportionable Central OHeads,1009,Policy & Governance,HR Approved Occ Health Fees,15201,Indirect Employee Expenses,5002,Counselling sessions for staff during May 2021,04/06/2021,0157071,£495.00,Revenue,Sarah Walsh,78412,,
Chorley Borough Council,http://statistics.data.gov.uk/id/local-authority/30UE,Business Support,1095,Commercial & Property,External Contractor,40198,Miscellaneous Expenses,5034,Concierge services April 2021 to March 2022,02/06/2021,0156406,"£6,822.90",Revenue,Sector Security Services,19269,,
Chorley Borough Council,http://statistics.data.gov.uk/id/local-authority/30UE,Homelessness,1075,Commercial & Property,Security Service,40062,Services,5027,In respect of concierge services at Cotswold Supported House for the period: 01/04/2021 - 31/03/2022,02/06/2021,0156407,"£6,897.71",Revenue,Sector Security Services,19269,,
Chorley Borough Council,http://statistics.data.gov.uk/id/local-authority/30UE,Elections,1012,Policy & Governance,Rent/Hire Of Premises,20017,Premises Rents,5007,"Security cover for Clayton Green Sports Centre, Centre Drive, Clayton le Woods, PR6 7TL as per your quote 20578",16/06/2021,0157345,"£1,686.10",Revenue,Sector Security Services,19269,,
Chorley Borough Council,http://statistics.data.gov.uk/id/local-authority/30UE,Business Support,1095,Commercial & Property,External Contractor,40198,Miscellaneous Expenses,5034,Concierge services April 2021 to March 2022,18/06/2021,0157387,"£7,199.96",Revenue,Sector Security Services,19269,,
Chorley Borough Council,http://statistics.data.gov.uk/id/local-authority/30UE,Homelessness,1075,Commercial & Property,Security Service,40062,Services,5027,In respect of concierge services at Cotswold Supported House for the period: 01/04/2021 - 31/03/2022,30/06/2021,0157388,"£7,358.56",Revenue,Sector Security Services,19269,,
Chorley Borough Council,http://statistics.data.gov.uk/id/local-authority/30UE,Democratic Represent and  Mgnt,1007,Communities,Miscellaneous Expenses,40200,Miscellaneous Expenses,5034,May Maintenance Charges,09/06/2021,0157127,"£1,595.00",Revenue,Service Sport Ltd,65601,,
Chorley Borough Council,http://statistics.data.gov.uk/id/local-authority/30UE,Democratic Represent and  Mgnt,1007,Communities,Miscellaneous Expenses,40200,Miscellaneous Expenses,5034,June 2021 Service Charges,16/06/2021,0157432,"£1,595.00",Revenue,Service Sport Ltd,65601,,
Chorley Borough Council,http://statistics.data.gov.uk/id/local-authority/30UE,Corporate Management,1008,Policy & Governance,Miscellaneous Expenses,40200,Miscellaneous Expenses,5034,Leadership Development Programme,09/06/2021,0156897,"£13,931.25",Revenue,Soc of Local Chief Execs & Snr Mngs (Solace Group),82059,,
Chorley Borough Council,http://statistics.data.gov.uk/id/local-authority/30UE,Central Support Services,1009,Customer & Digital,IT Software - Annual Licences,40101,Communication and Computing,5028,"20x EntMobandSecE3 Shared All Language MonthlySub Addon ToUserECAL, 10x ShrdSvr All Language SubsVL MVL AddOn",09/06/2021,0157027,£756.20,Revenue,Softcat Ltd,69996,,
Chorley Borough Council,http://statistics.data.gov.uk/id/local-authority/30UE,Business Support,1095,Commercial & Property,Window Cleaning,20034,Cleaning and Domestic Supplies,5012,12 months window cleaning,25/06/2021,0158125,£477.95,Revenue,Sparkle Window Cleaning (Michael Jennings),77989,,
Chorley Borough Council,http://statistics.data.gov.uk/id/local-authority/30UE,Business Support,1095,Commercial & Property,Planned Maintenance,20006,Repairs Maintenance & Alts,5005,cleaning windows,30/06/2021,0158177,£374.00,Revenue,Sparkle Window Cleaning (Michael Jennings),77989,,
Chorley Borough Council,http://statistics.data.gov.uk/id/local-authority/30UE,Unapportionable Central OHeads,1009,Policy & Governance,IT Software - Annual Licences,40101,Communication and Computing,5028,social media management software,28/06/2021,0158065,"£11,264.81",Revenue,Sprout Social,78471,,
Chorley Borough Council,http://statistics.data.gov.uk/id/local-authority/30UE,Control Accounts,Control,Policy & Governance,General Balances,00100,Balance Sheet,Balance,Monthly deds from payroll,23/06/2021,0158119,£390.60,Revenue,St Catherines Hospice Promotions,72375,,
Chorley Borough Council,http://statistics.data.gov.uk/id/local-authority/30UE,Capital,Capital,Communities,Grants,03002,Capital Expenditure,Capital,25/05/2021,02/06/2021,0156909,"£3,538.00",Capital,Stannah Lift Services Ltd,80943,,
Chorley Borough Council,http://statistics.data.gov.uk/id/local-authority/30UE,Capital,Capital,Communities,Grants,03002,Capital Expenditure,Capital,NAME REDACTED,02/06/2021,0156949,"£5,436.00",Capital,Stannah Lift Services Ltd,80943,,
Chorley Borough Council,http://statistics.data.gov.uk/id/local-authority/30UE,Capital,Capital,Communities,Grants,03002,Capital Expenditure,Capital,56 byron,11/06/2021,0157198,"£3,074.00",Capital,Stannah Lift Services Ltd,80943,,
Chorley Borough Council,http://statistics.data.gov.uk/id/local-authority/30UE,Capital,Capital,Communities,Consultants Fees,03025,Capital Expenditure,Capital,Westway Grass Pitch Contract - contract administration to completion.,23/06/2021,0156996,"£2,710.00",Capital,Steve Wells Associates Ltd,77157,,
Chorley Borough Council,http://statistics.data.gov.uk/id/local-authority/30UE,Central Support Services,1009,Commercial & Property,Professional Fees,40063,Services,5027,Building Consultancy – M&E Design & Consultancy,11/06/2021,0157008,"£1,214.69",Revenue,Steven A Hunt & Associates Ltd,80511,,
Chorley Borough Council,http://statistics.data.gov.uk/id/local-authority/30UE,Corporate Management,1008,Commercial & Property,Miscellaneous Expenses,40200,Miscellaneous Expenses,5034,Market Research on Chorley Food Festival 2021,23/06/2021,0158058,"£1,075.00",Revenue,Storecheckers UK Limited,82377,,
Chorley Borough Council,http://statistics.data.gov.uk/id/local-authority/30UE,Corporate Management,1008,Customer & Digital,Items For Resale,40027,"Equipment, Furniture & Materia",5023,"40 X Lid assembly kit (2 hinges, 1 bar, 2 pins)",09/06/2021,0157007,£318.00,Revenue,Storm Environmental Limited,77802,,
Chorley Borough Council,http://statistics.data.gov.uk/id/local-authority/30UE,Corporate Management,1008,Customer & Digital,Items For Resale,40027,"Equipment, Furniture & Materia",5023,20 X Reverse Lid for 1100L bin. COLOUR = BLUE,23/06/2021,0158059,"£1,240.00",Revenue,Storm Environmental Limited,77802,,
Chorley Borough Council,http://statistics.data.gov.uk/id/local-authority/30UE,Corporate Management,1008,Customer & Digital,Items For Resale,40027,"Equipment, Furniture & Materia",5023,20 X Reverse Lid for 1100L bin. Colour = BROWN,23/06/2021,0158059,"£1,240.00",Revenue,Storm Environmental Limited,77802,,
Chorley Borough Council,http://statistics.data.gov.uk/id/local-authority/30UE,Parking Services,1066,Commercial & Property,Consultants` Fees,40077,Services,5027,"Provision of Public Realm & Highway Design, Engineering services, April 2021 – January 2022",09/06/2021,0157130,"£2,809.08",Revenue,Street Civil Engineering Limited,76750,,
Chorley Borough Council,http://statistics.data.gov.uk/id/local-authority/30UE,Service Management & Support,1009,Customer & Digital,Refuse Collection,20037,Cleaning and Domestic Supplies,5012,"Exchange 20 yard Street Sweeping Skip @ £80.96, to cover period  01/04/2021 - 31/03/2022",02/06/2021,0154209,"£1,376.32",Revenue,SUEZ R&R UK LTD,17615,,
Chorley Borough Council,http://statistics.data.gov.uk/id/local-authority/30UE,Service Management & Support,1009,Customer & Digital,Refuse Collection,20037,Cleaning and Domestic Supplies,5012,"Exchange 35 yard General Waste Skip @ £89.94, to cover period  01/04/2021 - 31/03/2022",02/06/2021,0154209,"£1,081.08",Revenue,SUEZ R&R UK LTD,17615,,
Chorley Borough Council,http://statistics.data.gov.uk/id/local-authority/30UE,Service Management & Support,1009,Customer & Digital,Refuse Collection,20037,Cleaning and Domestic Supplies,5012,"Exchange 35 yard Green Waste skip @ £84.26, to cover period 01/04/2021 - 31/03/2022",02/06/2021,0154209,£337.04,Revenue,SUEZ R&R UK LTD,17615,,
Chorley Borough Council,http://statistics.data.gov.uk/id/local-authority/30UE,Service Management & Support,1009,Customer & Digital,Refuse Collection,20037,Cleaning and Domestic Supplies,5012,Disposal charge and processing of Green Waste @ £37.50 per tonne,02/06/2021,0154209,£375.00,Revenue,SUEZ R&R UK LTD,17615,,
Chorley Borough Council,http://statistics.data.gov.uk/id/local-authority/30UE,Service Management & Support,1009,Customer & Digital,Refuse Collection,20037,Cleaning and Domestic Supplies,5012,"Exchange 20 yard Street Sweeping Skip @ £80.96, to cover period  01/04/2021 - 31/03/2022",02/06/2021,0155432,"£1,619.20",Revenue,SUEZ R&R UK LTD,17615,,
Chorley Borough Council,http://statistics.data.gov.uk/id/local-authority/30UE,Service Management & Support,1009,Customer & Digital,Refuse Collection,20037,Cleaning and Domestic Supplies,5012,"Exchange 35 yard General Waste Skip @ £89.94, to cover period  01/04/2021 - 31/03/2022",02/06/2021,0155432,"£1,081.08",Revenue,SUEZ R&R UK LTD,17615,,
Chorley Borough Council,http://statistics.data.gov.uk/id/local-authority/30UE,Service Management & Support,1009,Customer & Digital,Refuse Collection,20037,Cleaning and Domestic Supplies,5012,"Exchange 35 yard Green Waste skip @ £84.26, to cover period 01/04/2021 - 31/03/2022",02/06/2021,0155432,£337.04,Revenue,SUEZ R&R UK LTD,17615,,
Chorley Borough Council,http://statistics.data.gov.uk/id/local-authority/30UE,Service Management & Support,1009,Customer & Digital,Refuse Collection,20037,Cleaning and Domestic Supplies,5012,Disposal charge and processing of Green Waste @ £37.50 per tonne,02/06/2021,0155432,£215.25,Revenue,SUEZ R&R UK LTD,17615,,
Chorley Borough Council,http://statistics.data.gov.uk/id/local-authority/30UE,Democratic Represent and  Mgnt,1007,Customer & Digital,Miscellaneous Expenses,40200,Miscellaneous Expenses,5034,"All Seasons Leisure Centre, Water Street, Chorley, PR7 1EX, 2 x 1100L for General Waste - emptied once per week",02/06/2021,0156615,£75.34,Revenue,SUEZ R&R UK LTD,17615,,
Chorley Borough Council,http://statistics.data.gov.uk/id/local-authority/30UE,Democratic Represent and  Mgnt,1007,Customer & Digital,Miscellaneous Expenses,40200,Miscellaneous Expenses,5034,"All Seasons Leisure Centre, Water Street, Chorley, PR7 1EX, 1x 1100L for Mixed Recycling - emptied once per week",02/06/2021,0156615,£22.01,Revenue,SUEZ R&R UK LTD,17615,,
Chorley Borough Council,http://statistics.data.gov.uk/id/local-authority/30UE,Democratic Represent and  Mgnt,1007,Customer & Digital,Miscellaneous Expenses,40200,Miscellaneous Expenses,5034,"Clayton Green Sports Centre, Clayton Green Rd, Clayton-Le-Woods, PR6 7TL. 3x 1100L for General Waste - once per week",02/06/2021,0156615,£37.67,Revenue,SUEZ R&R UK LTD,17615,,
Chorley Borough Council,http://statistics.data.gov.uk/id/local-authority/30UE,Democratic Represent and  Mgnt,1007,Customer & Digital,Miscellaneous Expenses,40200,Miscellaneous Expenses,5034,"Clayton Green Sports Centre, Clayton Green Rd, Clayton-Le-Woods, PR6 7TL, 1x 1100L for Mixed Recycling - once per fortnight",02/06/2021,0156615,£10.98,Revenue,SUEZ R&R UK LTD,17615,,
Chorley Borough Council,http://statistics.data.gov.uk/id/local-authority/30UE,Democratic Represent and  Mgnt,1007,Customer & Digital,Miscellaneous Expenses,40200,Miscellaneous Expenses,5034,"Brinscall Public Baths, Lodge Bank, Brinscall, Chorley, PR6 8QU, 1x 1100L for General Waste - emptied once per week",02/06/2021,0156615,£37.67,Revenue,SUEZ R&R UK LTD,17615,,
Chorley Borough Council,http://statistics.data.gov.uk/id/local-authority/30UE,Democratic Represent and  Mgnt,1007,Customer & Digital,Miscellaneous Expenses,40200,Miscellaneous Expenses,5034,"Brinscall Public Baths, Lodge Bank, Brinscall, Chorley, PR6 8QU, 1x 1100L for Mixed Recycling - emptied once per fortnight",02/06/2021,0156615,£10.98,Revenue,SUEZ R&R UK LTD,17615,,
Chorley Borough Council,http://statistics.data.gov.uk/id/local-authority/30UE,Unapportionable Central OHeads,1009,Customer & Digital,Refuse Collection,20037,Cleaning and Domestic Supplies,5012,Trade waste collection & disposal (1 April 2020 - 31 March 2021) Civic Offices General Waste 2 X 1100L bin 3/week,02/06/2021,0156615,£226.03,Revenue,SUEZ R&R UK LTD,17615,,
Chorley Borough Council,http://statistics.data.gov.uk/id/local-authority/30UE,Unapportionable Central OHeads,1009,Customer & Digital,Refuse Collection,20037,Cleaning and Domestic Supplies,5012,Trade waste collection & disposal (1 April 2020 - 31 March 2021) Civic Offices RECYCLING 1 X 1100L bin 1/week,02/06/2021,0156615,£22.01,Revenue,SUEZ R&R UK LTD,17615,,
Chorley Borough Council,http://statistics.data.gov.uk/id/local-authority/30UE,Unapportionable Central OHeads,1009,Customer & Digital,Refuse Collection,20037,Cleaning and Domestic Supplies,5012,Trade waste collection & disposal (1 April 2020 - 31 March 2021) Town Hall GENERAL WASTE 1 X 1100L 3/week,02/06/2021,0156615,£113.01,Revenue,SUEZ R&R UK LTD,17615,,
Chorley Borough Council,http://statistics.data.gov.uk/id/local-authority/30UE,Unapportionable Central OHeads,1009,Customer & Digital,Refuse Collection,20037,Cleaning and Domestic Supplies,5012,Trade waste collection & disposal (1 April 2020 - 31 March 2021) Town Hall RECYCLING 1 X 1100L 3/Week,02/06/2021,0156615,£22.01,Revenue,SUEZ R&R UK LTD,17615,,
Chorley Borough Council,http://statistics.data.gov.uk/id/local-authority/30UE,Business Support,1095,Customer & Digital,Refuse Collection,20037,Cleaning and Domestic Supplies,5012,Trade waste collection & disposal (1 April 2020 - 31 March 2021) Strawberry Fields GENERAL WASTE 3 X 1100L 1/week,02/06/2021,0156615,£113.01,Revenue,SUEZ R&R UK LTD,17615,,
Chorley Borough Council,http://statistics.data.gov.uk/id/local-authority/30UE,Business Support,1095,Customer & Digital,Refuse Collection,20037,Cleaning and Domestic Supplies,5012,Trade waste collection & disposal (1 April 2020 - 31 March 2021) Strawberry Fields RECYCLING 3 X 1100L 1/week,02/06/2021,0156615,£66.03,Revenue,SUEZ R&R UK LTD,17615,,
Chorley Borough Council,http://statistics.data.gov.uk/id/local-authority/30UE,Community Development,1097,Customer & Digital,Refuse Collection,20037,Cleaning and Domestic Supplies,5012,Trade waste collection & disposal (1 April 2020 - 31 March 2021) MP`s Office (35-39) Market Street 1 X 1100L,02/06/2021,0156615,£37.67,Revenue,SUEZ R&R UK LTD,17615,,
Chorley Borough Council,http://statistics.data.gov.uk/id/local-authority/30UE,Democratic Represent and  Mgnt,1007,Customer & Digital,Refuse Collection,20037,Cleaning and Domestic Supplies,5012,Trade waste collection & disposal (1 April 2020 - 31 March 2021) Tatton CC Silverdale Road 1x 100L bin 1/fortnight,02/06/2021,0156615,£20.49,Revenue,SUEZ R&R UK LTD,17615,,
Chorley Borough Council,http://statistics.data.gov.uk/id/local-authority/30UE,Democratic Represent and  Mgnt,1007,Customer & Digital,Refuse Collection,20037,Cleaning and Domestic Supplies,5012,Trade waste collection & disposal (1 April 2020 - 31 March 2021) Eaves Green CC  1  X 360L bin 1/week,02/06/2021,0156615,£20.49,Revenue,SUEZ R&R UK LTD,17615,,
Chorley Borough Council,http://statistics.data.gov.uk/id/local-authority/30UE,Democratic Represent and  Mgnt,1007,Customer & Digital,Refuse Collection,20037,Cleaning and Domestic Supplies,5012,Trade waste collection & disposal (1 April 2020 - 31 March 2021) Astley Hall 1 X 1100L bin 1/week,02/06/2021,0156615,£37.67,Revenue,SUEZ R&R UK LTD,17615,,
Chorley Borough Council,http://statistics.data.gov.uk/id/local-authority/30UE,Recreation & Sport,1037,Customer & Digital,Miscellaneous Expenses,40200,Miscellaneous Expenses,5034,"Trade waste collection & disposal (1 April 2020 - 31 March 2021) Lancaster Way CC, Buckshaw Village 1 X 360L bin 1/week",02/06/2021,0156615,£20.49,Revenue,SUEZ R&R UK LTD,17615,,
Chorley Borough Council,http://statistics.data.gov.uk/id/local-authority/30UE,Recreation & Sport,1037,Customer & Digital,Miscellaneous Expenses,40200,Miscellaneous Expenses,5034,Trade waste collection & disposal (1 April 2020 - 31 March 2021) Buttermere Green CC 1 X 360L BIN 1/week,02/06/2021,0156615,£20.49,Revenue,SUEZ R&R UK LTD,17615,,
Chorley Borough Council,http://statistics.data.gov.uk/id/local-authority/30UE,Democratic Represent and  Mgnt,1007,Customer & Digital,Refuse Collection,20037,Cleaning and Domestic Supplies,5012,Trade waste collection & disposal (1 April 2020 - 31 March 2021) Clayton Brook Village Hall 6 X black sack 1/week,02/06/2021,0156615,£24.80,Revenue,SUEZ R&R UK LTD,17615,,
Chorley Borough Council,http://statistics.data.gov.uk/id/local-authority/30UE,Democratic Represent and  Mgnt,1007,Customer & Digital,Refuse Collection,20037,Cleaning and Domestic Supplies,5012,Trade waste collection & disposal (1 April 2020 - 31 March 2021) Astley Village CC 1 x 360L bin 1/week,02/06/2021,0156615,£20.49,Revenue,SUEZ R&R UK LTD,17615,,
Chorley Borough Council,http://statistics.data.gov.uk/id/local-authority/30UE,Business Support,1095,Customer & Digital,Refuse Collection,20037,Cleaning and Domestic Supplies,5012,"Calico Lounge - General Waste, 3 x 1100L bins, £9.83 +VAT per bin per lift x 52 weeks Total £1533.48",02/06/2021,0156615,£238.18,Revenue,SUEZ R&R UK LTD,17615,,
Chorley Borough Council,http://statistics.data.gov.uk/id/local-authority/30UE,Business Support,1095,Customer & Digital,Refuse Collection,20037,Cleaning and Domestic Supplies,5012,"Calico Lounge - Glass Waste, 4 x 240L bins, £3.84 +VAT per bin per lift x 52 weeks – Total £798.72",02/06/2021,0156615,£97.88,Revenue,SUEZ R&R UK LTD,17615,,
Chorley Borough Council,http://statistics.data.gov.uk/id/local-authority/30UE,Service Management & Support,1009,Customer & Digital,Refuse Collection,20037,Cleaning and Domestic Supplies,5012,Exchange 20 yard Street Sweeping Skip @ £80.96 to cover period  01/04/2021 - 31/03/2022,02/06/2021,0156618,"£1,133.44",Revenue,SUEZ R&R UK LTD,17615,,
Chorley Borough Council,http://statistics.data.gov.uk/id/local-authority/30UE,Service Management & Support,1009,Customer & Digital,Refuse Collection,20037,Cleaning and Domestic Supplies,5012,Exchange 35 yard General Waste Skip @ £89.94 to cover period  01/04/2021 - 31/03/2022,02/06/2021,0156618,"£1,079.28",Revenue,SUEZ R&R UK LTD,17615,,
Chorley Borough Council,http://statistics.data.gov.uk/id/local-authority/30UE,Service Management & Support,1009,Customer & Digital,Refuse Collection,20037,Cleaning and Domestic Supplies,5012,Exchange 35 yard Green Waste skip @ £84.26 to cover period 01/04/2021 - 31/03/2022,02/06/2021,0156618,£84.26,Revenue,SUEZ R&R UK LTD,17615,,
Chorley Borough Council,http://statistics.data.gov.uk/id/local-authority/30UE,Service Management & Support,1009,Customer & Digital,Refuse Collection,20037,Cleaning and Domestic Supplies,5012,Disposal charge and processing of Green Waste @ £37.50 per tonne,02/06/2021,0156618,£30.75,Revenue,SUEZ R&R UK LTD,17615,,
Chorley Borough Council,http://statistics.data.gov.uk/id/local-authority/30UE,Economic Development,1096,Commercial & Property,Refuse Collection,20037,Cleaning and Domestic Supplies,5012,Market Walk/Market Walk Extension/Markets/Calico Lounge/Reel Cinema Waste Removal 01.04.2021 - 31.03.2022,16/06/2021,0157143,"£2,260.26",Revenue,SUEZ R&R UK LTD,17615,,
Chorley Borough Council,http://statistics.data.gov.uk/id/local-authority/30UE,Economic Development,1096,Commercial & Property,Refuse Collection,20037,Cleaning and Domestic Supplies,5012,"Market Walk YARD 1 - GENERAL WASTE (Market Walk) - 8 cubic yard FEL skip x 1, £55.78 per week",16/06/2021,0157143,£241.77,Revenue,SUEZ R&R UK LTD,17615,,
Chorley Borough Council,http://statistics.data.gov.uk/id/local-authority/30UE,Business Support,1095,Commercial & Property,Refuse Collection,20037,Cleaning and Domestic Supplies,5012,"Market Walk YARD 2 - CARDBOARD ONLY - 35 cubic yard RoRo skip x 1, £25 per month",16/06/2021,0157143,£25.00,Revenue,SUEZ R&R UK LTD,17615,,
Chorley Borough Council,http://statistics.data.gov.uk/id/local-authority/30UE,Business Support,1095,Commercial & Property,Refuse Collection,20037,Cleaning and Domestic Supplies,5012,"Market Walk YARD 2 - GENERAL WASTE - 8 cubic yard FEL skip x 1, £55.78 per week",16/06/2021,0157143,£242.64,Revenue,SUEZ R&R UK LTD,17615,,
Chorley Borough Council,http://statistics.data.gov.uk/id/local-authority/30UE,Business Support,1095,Commercial & Property,Refuse Collection,20037,Cleaning and Domestic Supplies,5012,"Market Walk YARD 3 - GENERAL WASTE - 8 cubic yard FEL skip x 2, £55.78 per skip per week. ( £111.56 pw for 2 skips)",16/06/2021,0157143,£485.29,Revenue,SUEZ R&R UK LTD,17615,,
Chorley Borough Council,http://statistics.data.gov.uk/id/local-authority/30UE,Business Support,1095,Commercial & Property,Refuse Collection,20037,Cleaning and Domestic Supplies,5012,"Market Walk YARD 3 - CARDBOARD ONLY - 35 cubic yard RoRo skip x 1, £25 per month",16/06/2021,0157143,£25.00,Revenue,SUEZ R&R UK LTD,17615,,
Chorley Borough Council,http://statistics.data.gov.uk/id/local-authority/30UE,Business Support,1095,Commercial & Property,Refuse Collection,20037,Cleaning and Domestic Supplies,5012,"Market Walk YARD 3 - PLASTIC FILM - 35 cubic yard RoRo skip x 1, £25 per month",16/06/2021,0157143,£25.00,Revenue,SUEZ R&R UK LTD,17615,,
Chorley Borough Council,http://statistics.data.gov.uk/id/local-authority/30UE,Business Support,1095,Commercial & Property,Refuse Collection,20037,Cleaning and Domestic Supplies,5012,"Market Walk Ext, Chorley PR7 1FD - GENERAL WASTE - Euro 1100 Litre x 8. £8.66 per bin per week",16/06/2021,0157143,£150.34,Revenue,SUEZ R&R UK LTD,17615,,
Chorley Borough Council,http://statistics.data.gov.uk/id/local-authority/30UE,Business Support,1095,Commercial & Property,Refuse Collection,20037,Cleaning and Domestic Supplies,5012,"Market Walk Ext, Chorley PR7 1FD - MIXED RECYCLING - Euro 1100 Litre x 8. £5.06 per bin per week",16/06/2021,0157143,£87.84,Revenue,SUEZ R&R UK LTD,17615,,
Chorley Borough Council,http://statistics.data.gov.uk/id/local-authority/30UE,Business Support,1095,Commercial & Property,Refuse Collection,20037,Cleaning and Domestic Supplies,5012,"Market Walk Ext, Chorley PR7 1FD - FOOD WASTE - 240 Litre bins x 4. £8.75 per bin per week",16/06/2021,0157143,£105.35,Revenue,SUEZ R&R UK LTD,17615,,
Chorley Borough Council,http://statistics.data.gov.uk/id/local-authority/30UE,Business Support,1095,Commercial & Property,Refuse Collection,20037,Cleaning and Domestic Supplies,5012,"Market Walk Ext, Chorley PR7 1FD - GLASS ONLY - 240 Litre bins x 6. £3.75 per bin per week",16/06/2021,0157143,£97.88,Revenue,SUEZ R&R UK LTD,17615,,
Chorley Borough Council,http://statistics.data.gov.uk/id/local-authority/30UE,Business Support,1095,Commercial & Property,Refuse Collection,20037,Cleaning and Domestic Supplies,5012,"Calico Lounge, Market Walk, Chorley, PR7 1FD - GENERAL WASTE - Euro 1100 Litre bins x 3. £8.66 per bin per week",16/06/2021,0157143,£40.10,Revenue,SUEZ R&R UK LTD,17615,,
Chorley Borough Council,http://statistics.data.gov.uk/id/local-authority/30UE,Business Support,1095,Commercial & Property,Refuse Collection,20037,Cleaning and Domestic Supplies,5012,"Calico Lounge, Market Walk, Chorley, PR7 1FD - MIXED RECYCLING - Euro 1100 Litre bins x 3. £5.06 per bin per week",16/06/2021,0157143,£23.43,Revenue,SUEZ R&R UK LTD,17615,,
Chorley Borough Council,http://statistics.data.gov.uk/id/local-authority/30UE,Business Support,1095,Commercial & Property,Refuse Collection,20037,Cleaning and Domestic Supplies,5012,"Calico Lounge, Market Walk, Chorley, PR7 1FD  - FOOD WASTE - 240 Litre bins x 2. £8.75 per bin per week",16/06/2021,0157143,£34.38,Revenue,SUEZ R&R UK LTD,17615,,
Chorley Borough Council,http://statistics.data.gov.uk/id/local-authority/30UE,Business Support,1095,Commercial & Property,Refuse Collection,20037,Cleaning and Domestic Supplies,5012,"Calico Lounge, Market Walk, Chorley, PR7 1FD - GLASS ONLY - 240 Litre bins x 4. £3.75 per bin per week",16/06/2021,0157143,£29.47,Revenue,SUEZ R&R UK LTD,17615,,
Chorley Borough Council,http://statistics.data.gov.uk/id/local-authority/30UE,Business Support,1095,Commercial & Property,Refuse Collection,20037,Cleaning and Domestic Supplies,5012,REEL Cinema - GENERAL WASTE - Euro 1100 Litre bins x 4. £8.66 per bin - emptied twice a week,16/06/2021,0157143,£194.43,Revenue,SUEZ R&R UK LTD,17615,,
Chorley Borough Council,http://statistics.data.gov.uk/id/local-authority/30UE,Business Support,1095,Commercial & Property,Refuse Collection,20037,Cleaning and Domestic Supplies,5012,REEL Cinema - MIXED RECYCLING - Euro 1100 Litre bins x 2. £5.06 per bin emptied twice a week,16/06/2021,0157143,£56.80,Revenue,SUEZ R&R UK LTD,17615,,
Chorley Borough Council,http://statistics.data.gov.uk/id/local-authority/30UE,Business Support,1095,Commercial & Property,Refuse Collection,20037,Cleaning and Domestic Supplies,5012,Any excess weight charges for skips & FELS,16/06/2021,0157143,£54.88,Revenue,SUEZ R&R UK LTD,17615,,
Chorley Borough Council,http://statistics.data.gov.uk/id/local-authority/30UE,Unapportionable Central OHeads,1009,Customer & Digital,Refuse Collection,20037,Cleaning and Domestic Supplies,5012,"Chorley Council Buildings, Trade Waste (1 April 21 to 31 March 22). Town Hall, GENERAL WASTE 1 x 1100L bin 3 times/week",16/06/2021,0157212,£113.01,Revenue,SUEZ R&R UK LTD,17615,,
Chorley Borough Council,http://statistics.data.gov.uk/id/local-authority/30UE,Unapportionable Central OHeads,1009,Customer & Digital,Refuse Collection,20037,Cleaning and Domestic Supplies,5012,"Chorley Council Buildings, Trade Waste (1 April 21 to 31 March 22). Town Hall, MIXED RECYCLING 1 x 1100L bin once/week",16/06/2021,0157212,£22.01,Revenue,SUEZ R&R UK LTD,17615,,
Chorley Borough Council,http://statistics.data.gov.uk/id/local-authority/30UE,Unapportionable Central OHeads,1009,Customer & Digital,Refuse Collection,20037,Cleaning and Domestic Supplies,5012,"Chorley Council Buildings, Trade Waste (1 April 21 to 31 March 22). Civic Offices GENERAL WASTE 2 x 1100L bin 3 times/week",16/06/2021,0157212,£226.03,Revenue,SUEZ R&R UK LTD,17615,,
Chorley Borough Council,http://statistics.data.gov.uk/id/local-authority/30UE,Unapportionable Central OHeads,1009,Customer & Digital,Refuse Collection,20037,Cleaning and Domestic Supplies,5012,"Chorley Council Buildings, Trade Waste (1 April 21 to 31 March 22). Civic Offices MIXED RECYCLING 1 x 1100L bin once/week",16/06/2021,0157212,£22.01,Revenue,SUEZ R&R UK LTD,17615,,
Chorley Borough Council,http://statistics.data.gov.uk/id/local-authority/30UE,Democratic Represent and  Mgnt,1007,Customer & Digital,Refuse Collection,20037,Cleaning and Domestic Supplies,5012,"Chorley Council Buildings, Trade Waste (1 April 21 to 31 March 22). Astley Hall, GENERAL WASTE 1 x 1100L bin once/week",16/06/2021,0157212,£37.67,Revenue,SUEZ R&R UK LTD,17615,,
Chorley Borough Council,http://statistics.data.gov.uk/id/local-authority/30UE,Community Development,1097,Customer & Digital,Refuse Collection,20037,Cleaning and Domestic Supplies,5012,CHORLEY COUNCIL BUILDINGS TRADE WASTE (FY 2021 :2022) MP’s Constituency Office 1 X1100 L bin emptied once/week,16/06/2021,0157212,£37.67,Revenue,SUEZ R&R UK LTD,17615,,
Chorley Borough Council,http://statistics.data.gov.uk/id/local-authority/30UE,Democratic Represent and  Mgnt,1007,Customer & Digital,Refuse Collection,20037,Cleaning and Domestic Supplies,5012,"CHORLEY COUNCIL BUILDINGS TRADE WASTE (04/2021 - 03/2022) Eaves Green Community Centre, 1 X 360 L bin once/week",16/06/2021,0157212,£20.49,Revenue,SUEZ R&R UK LTD,17615,,
Chorley Borough Council,http://statistics.data.gov.uk/id/local-authority/30UE,Democratic Represent and  Mgnt,1007,Customer & Digital,Refuse Collection,20037,Cleaning and Domestic Supplies,5012,"CHORLEY COUNCIL BUILDINGS TRADE WASTE (04/2021 - 03/2022) Astley Village Community Centre, 1 X 360 bin once/week",16/06/2021,0157212,£20.49,Revenue,SUEZ R&R UK LTD,17615,,
Chorley Borough Council,http://statistics.data.gov.uk/id/local-authority/30UE,Recreation & Sport,1037,Customer & Digital,Miscellaneous Expenses,40200,Miscellaneous Expenses,5034,"CHORLEY COUNCIL BUILDINGS TRADE WASTE (04/2021 - 03/2022) Buttermere Green Community Centre, 1 X 360 L bin",16/06/2021,0157212,£20.49,Revenue,SUEZ R&R UK LTD,17615,,
Chorley Borough Council,http://statistics.data.gov.uk/id/local-authority/30UE,Recreation & Sport,1037,Customer & Digital,Miscellaneous Expenses,40200,Miscellaneous Expenses,5034,"CHORLEY COUNCIL BUILDINGS TRADE WASTE (04/2021 - 03/2022) Lancaster Way Community Centre, 1 X 360 L bin",16/06/2021,0157212,£20.49,Revenue,SUEZ R&R UK LTD,17615,,
Chorley Borough Council,http://statistics.data.gov.uk/id/local-authority/30UE,Democratic Represent and  Mgnt,1007,Customer & Digital,Refuse Collection,20037,Cleaning and Domestic Supplies,5012,"CHORLEY COUNCIL BUILDINGS TRADE WASTE (04/2021 - 03/2022) Tatton Community Centre, 1 X 360 L bin once/week",16/06/2021,0157212,£20.49,Revenue,SUEZ R&R UK LTD,17615,,
Chorley Borough Council,http://statistics.data.gov.uk/id/local-authority/30UE,Democratic Represent and  Mgnt,1007,Customer & Digital,Refuse Collection,20037,Cleaning and Domestic Supplies,5012,"CHORLEY COUNCIL BUILDINGS TRADE WASTE (04/2021 - 03/2022) Clayton Brook Village Hall, Refuse Sacks - 6 per week",16/06/2021,0157212,£24.80,Revenue,SUEZ R&R UK LTD,17615,,
Chorley Borough Council,http://statistics.data.gov.uk/id/local-authority/30UE,Business Support,1095,Customer & Digital,Refuse Collection,20037,Cleaning and Domestic Supplies,5012,CHORLEY COUNCIL BUILDINGS TRADE WASTE (04/2021 - 03/2022) Strawberry Fields Digital Hub GENERAL WASTE 3 bins,16/06/2021,0157212,£113.01,Revenue,SUEZ R&R UK LTD,17615,,
Chorley Borough Council,http://statistics.data.gov.uk/id/local-authority/30UE,Business Support,1095,Customer & Digital,Refuse Collection,20037,Cleaning and Domestic Supplies,5012,"CHORLEY COUNCIL BUILDINGS TRADE WASTE (04/2021 - 03/2022) Strawberry Fields Digital Hub, MIXED RECYCLING X 3",16/06/2021,0157212,£66.03,Revenue,SUEZ R&R UK LTD,17615,,
Chorley Borough Council,http://statistics.data.gov.uk/id/local-authority/30UE,Democratic Represent and  Mgnt,1007,Customer & Digital,Miscellaneous Expenses,40200,Miscellaneous Expenses,5034,CHORLEY COUNCIL BUILDINGS TRADE WASTE (04/2021 - 03/2022) All Seasons Leisure Centre GENERAL WASTE 2 X 1100L,16/06/2021,0157212,£75.34,Revenue,SUEZ R&R UK LTD,17615,,
Chorley Borough Council,http://statistics.data.gov.uk/id/local-authority/30UE,Democratic Represent and  Mgnt,1007,Customer & Digital,Miscellaneous Expenses,40200,Miscellaneous Expenses,5034,"CHORLEY COUNCIL BUILDINGS TRADE WASTE (04/2021 - 03/2022) All Seasons Leisure Centre, MIXED RECYCLING 1 X bin",16/06/2021,0157212,£22.01,Revenue,SUEZ R&R UK LTD,17615,,
Chorley Borough Council,http://statistics.data.gov.uk/id/local-authority/30UE,Democratic Represent and  Mgnt,1007,Customer & Digital,Miscellaneous Expenses,40200,Miscellaneous Expenses,5034,CHORLEY COUNCIL BUILDINGS TRADE WASTE (04/2021 - 03/2022) Clayton Green Sports Centre GENERAL WASTE 1 X bin,16/06/2021,0157212,£37.67,Revenue,SUEZ R&R UK LTD,17615,,
Chorley Borough Council,http://statistics.data.gov.uk/id/local-authority/30UE,Democratic Represent and  Mgnt,1007,Customer & Digital,Miscellaneous Expenses,40200,Miscellaneous Expenses,5034,CHORLEY COUNCIL BUILDINGS TRADE WASTE (04/2021 - 03/2022) Clayton Green Sports Centre MIXED RECYCLING,16/06/2021,0157212,£10.98,Revenue,SUEZ R&R UK LTD,17615,,
Chorley Borough Council,http://statistics.data.gov.uk/id/local-authority/30UE,Democratic Represent and  Mgnt,1007,Customer & Digital,Miscellaneous Expenses,40200,Miscellaneous Expenses,5034,CHORLEY COUNCIL BUILDINGS TRADE WASTE (04/2021 - 03/2022) Brinscall Public Baths MIXED RECYCLING 1 X 1100L bin,16/06/2021,0157212,£10.98,Revenue,SUEZ R&R UK LTD,17615,,
Chorley Borough Council,http://statistics.data.gov.uk/id/local-authority/30UE,Democratic Represent and  Mgnt,1007,Customer & Digital,Miscellaneous Expenses,40200,Miscellaneous Expenses,5034,CHORLEY COUNCIL BUILDINGS TRADE WASTE (04/2021 - 03/2022) Brinscall Public Baths GENERAL WASTE 1 X 1100L bin,16/06/2021,0157212,£37.67,Revenue,SUEZ R&R UK LTD,17615,,
Chorley Borough Council,http://statistics.data.gov.uk/id/local-authority/30UE,Central Support Services,1009,Communities,Miscellaneous Expenses,40200,Miscellaneous Expenses,5034,Hire of skip at Coppull - Byron Crescent - Saturday 8th May,23/06/2021,0158067,£455.05,Revenue,SUEZ R&R UK LTD,17615,,
Chorley Borough Council,http://statistics.data.gov.uk/id/local-authority/30UE,Central Support Services,1009,Communities,Miscellaneous Expenses,40200,Miscellaneous Expenses,5034,Hire of skip at Adlington - Harding St Carpark - Saturday 22nd May,23/06/2021,0158067,£160.17,Revenue,SUEZ R&R UK LTD,17615,,
Chorley Borough Council,http://statistics.data.gov.uk/id/local-authority/30UE,Business Support,1095,Communities,Refuse Collection,20037,Cleaning and Domestic Supplies,5012,"4th Dec 20 Market Walk Extension - General Waste, 8 x 1100L bins £9.83 +VAT per bin per lift x 52 weeks Total £4089.28",25/06/2021,0158072,£170.65,Revenue,SUEZ R&R UK LTD,17615,,
Chorley Borough Council,http://statistics.data.gov.uk/id/local-authority/30UE,Business Support,1095,Communities,Refuse Collection,20037,Cleaning and Domestic Supplies,5012,"4th Dec 20 Market Walk Extension - Mixed Recycling, 8 x 1100L bins, £8.09 +VAT per bin per lift x 52 weeks Total £3365.44",25/06/2021,0158072,£140.44,Revenue,SUEZ R&R UK LTD,17615,,
Chorley Borough Council,http://statistics.data.gov.uk/id/local-authority/30UE,Business Support,1095,Communities,Refuse Collection,20037,Cleaning and Domestic Supplies,5012,"4th Dec 20 Market Walk Extension - Glass Waste, 6 x 240L bins, £3.84 +VAT per bin per lift x 52 weeks – Total £1198.08",25/06/2021,0158072,£159.71,Revenue,SUEZ R&R UK LTD,17615,,
Chorley Borough Council,http://statistics.data.gov.uk/id/local-authority/30UE,Business Support,1095,Communities,Refuse Collection,20037,Cleaning and Domestic Supplies,5012,"4th Dec 20 Calico Lounge - General Waste, 3 x 1100L bins,  £9.83 +VAT per bin per lift x 52 weeks Total £1533.48",25/06/2021,0158072,£128.28,Revenue,SUEZ R&R UK LTD,17615,,
Chorley Borough Council,http://statistics.data.gov.uk/id/local-authority/30UE,Business Support,1095,Communities,Refuse Collection,20037,Cleaning and Domestic Supplies,5012,"4th Dec 20 Calico Lounge - Mixed Recycling, 3 x 1100L bins, £8.09 +VAT per bin per lift x 52 weeks Total £1262.04",25/06/2021,0158072,£96.49,Revenue,SUEZ R&R UK LTD,17615,,
Chorley Borough Council,http://statistics.data.gov.uk/id/local-authority/30UE,Business Support,1095,Communities,Refuse Collection,20037,Cleaning and Domestic Supplies,5012,"4th Dec 20 Calico Lounge - Food Waste, 2 x 240L bins, £9.43 +VAT per bin per lift x 52 lifts – Total £980.72",25/06/2021,0158072,£4.21,Revenue,SUEZ R&R UK LTD,17615,,
Chorley Borough Council,http://statistics.data.gov.uk/id/local-authority/30UE,Business Support,1095,Communities,Refuse Collection,20037,Cleaning and Domestic Supplies,5012,"4th Dec 20 Calico Lounge - Glass Waste, 4 x 240L bins, £3.84 +VAT per bin per lift x 52 weeks – Total £798.72",25/06/2021,0158072,£128.45,Revenue,SUEZ R&R UK LTD,17615,,
Chorley Borough Council,http://statistics.data.gov.uk/id/local-authority/30UE,Business Support,1095,Communities,Refuse Collection,20037,Cleaning and Domestic Supplies,5012,Any Excess Weight Charges from Market Walk Extension and Calico Lounge bins £5000,25/06/2021,0158072,£83.30,Revenue,SUEZ R&R UK LTD,17615,,
Chorley Borough Council,http://statistics.data.gov.uk/id/local-authority/30UE,Democratic Represent and  Mgnt,1007,Communities,External Contractor,40198,Miscellaneous Expenses,5034,Skips from July 2020 for Buchannan Street £239.18 and Crosse Hall Allotments £304.14,25/06/2021,0158072,£543.32,Revenue,SUEZ R&R UK LTD,17615,,
Chorley Borough Council,http://statistics.data.gov.uk/id/local-authority/30UE,Central Support Services,1009,Communities,Miscellaneous Expenses,40200,Miscellaneous Expenses,5034,Delivery and co-ordination of TIF physical activity programme,11/06/2021,0156864,"£2,000.00",Revenue,SVP Chorley Buddies,82307,,
Chorley Borough Council,http://statistics.data.gov.uk/id/local-authority/30UE,Business Support,1095,Commercial & Property,Burglar Alarms & Security Systems,20075,Fixtures and Fittings,5010,"X6 Additional CCTV cameras all 3 for server rooms at Strawberry Fields DOP. Supply, install and commission.",23/06/2021,0157069,"£4,538.99",Revenue,Technology Solutions,72376,,
Chorley Borough Council,http://statistics.data.gov.uk/id/local-authority/30UE,Unapportionable Central OHeads,1009,Customer & Digital,Planned Maintenance,20006,Repairs Maintenance & Alts,5005,"Service yard excavation & reinstatement works. Work to be undertaken on a Saturday, date to be agreed with G. Street",09/06/2021,0156767,"£9,500.00",Revenue,THE ASPHALT WORKS LIMITED,82101,,
Chorley Borough Council,http://statistics.data.gov.uk/id/local-authority/30UE,Central Support Services,1009,Commercial & Property,General Repairs - Reactive,20004,Repairs Maintenance & Alts,5005,ADDRESS REDACTED Surface reinstatement,02/06/2021,0156821,£642.50,Revenue,THE ASPHALT WORKS LIMITED,82101,,
Chorley Borough Council,http://statistics.data.gov.uk/id/local-authority/30UE,Unapportionable Central OHeads,1009,Commercial & Property,General Repairs - Reactive,20004,Repairs Maintenance & Alts,5005,"The White Hart, Surface reinstatement",02/06/2021,0156821,£642.50,Revenue,THE ASPHALT WORKS LIMITED,82101,,
Chorley Borough Council,http://statistics.data.gov.uk/id/local-authority/30UE,Business Support,1095,Commercial & Property,Security Service,40062,Services,5027,Rolling PO for security cover service at Strawberry Fields between April 2021 to September 2021 as per schedule,09/06/2021,0157056,"£7,256.03",Revenue,The ExcluSec Group Ltd,78056,,
Chorley Borough Council,http://statistics.data.gov.uk/id/local-authority/30UE,Central Support Services,1009,Customer & Digital,Miscellaneous Expenses,40200,Miscellaneous Expenses,5034,65x LP1033 community litter picker @ 6.63each,23/06/2021,0157966,£430.95,Revenue,The Helping Hand Company,17779,,
Chorley Borough Council,http://statistics.data.gov.uk/id/local-authority/30UE,Democratic Represent and  Mgnt,1007,Policy & Governance,Printing of Year Book,40045,"Printing, Stationery & General",5026,"120 x DIARY BOOKLETS 2021/22 - vanilla 180gsm, matt laminated, all 80 inner pages black and white 75g Perfect Bound",02/06/2021,0156854,"£1,060.00",Revenue,The Print Quarter,17987,,
Chorley Borough Council,http://statistics.data.gov.uk/id/local-authority/30UE,Unapportionable Central OHeads,1009,Policy & Governance,Miscellaneous Expenses,40200,Miscellaneous Expenses,5034,"Publicity Items: Outdoor Vinyl Banners 440gsm 8ftx3ft, A3 Posters 150g silk, A2 Posters 190g digital print, A4 Posters 150g silk",09/06/2021,0157068,£322.56,Revenue,The Print Quarter,17987,,
Chorley Borough Council,http://statistics.data.gov.uk/id/local-authority/30UE,Democratic Represent and  Mgnt,1007,Policy & Governance,Souvenirs,40033,"Equipment, Furniture & Materia",5023,"9x luxury candles, 30x luxury reed diffusers, 60x travel candles, 70x wax melts, 7x tester tins, 1x promotional material",23/06/2021,0157970,£835.48,Revenue,The Wax House,80859,,
Chorley Borough Council,http://statistics.data.gov.uk/id/local-authority/30UE,Economic Development,1096,Commercial & Property,Publicity - Advertising,40157,Miscellaneous Expenses,5034,"Replace Flag Dome Tops, restring Flags, install around Town Centre by 21st June. 40 flags @ £12.50 each",30/06/2021,0158299,£475.00,Revenue,Town Centre Trees,57436,,
Chorley Borough Council,http://statistics.data.gov.uk/id/local-authority/30UE,Democratic Represent and  Mgnt,1007,Policy & Governance,Souvenirs,40033,"Equipment, Furniture & Materia",5023,"Mini Flower Press x 1, Dragon Kite x 1, Octopus Kite x 1, Junior Adventurer`s Binoculars x 1",23/06/2021,0157979,£255.20,Revenue,Town Mills Craft Centre t/a House of Marbles,80858,,
Chorley Borough Council,http://statistics.data.gov.uk/id/local-authority/30UE,Democratic Represent and  Mgnt,1007,Policy & Governance,Souvenirs,40033,"Equipment, Furniture & Materia",5023,zero rated,23/06/2021,0157979,£222.56,Revenue,Town Mills Craft Centre t/a House of Marbles,80858,,
Chorley Borough Council,http://statistics.data.gov.uk/id/local-authority/30UE,Development Control,1091,Customer & Digital,Professional Fees,40063,Services,5027,"Expert Witness Planning Appeal, Director - 5.25 days @ £1000 per day, Dev Survey - 7 days @ £650 per day",25/06/2021,0156941,"£9,800.00",Revenue,Trebbi Continuum,77723,,
